Workbook

Sheet AER Draft Decision - Labour
B1: AER Draft Decision - Ancillary Network Services - Energex 2024–25
B3: Reading guide:
B4: Table 1 | C4: sets out the draft decision X factors referred to in section 16.1.1.2 of Draft Decision Attachment 16 – Alternative control services. For ancillary network services, the X factor is the annual change in wage prices.
B5: Table 2 | C5: sets out the Labour rates for Business and After hours referred to in Tables 16.1 and 16.2 of Draft Decision Attachment 16 - Alternative control services.
B8: Table 1 | C8: X factors for each year of the 2025–30 regulatory control period for ancillary network services, draft decision (per cent)
D10: 2025-26 | E10: 2026-27 | F10: 2027-28 | G10: 2028-29 | H10: 2029-30
B11: Ancillary Network Services X-factor | C11: Per cent | E11: ='Output|Quoted'!D7 -> -0.009861100793 | F11: ='Output|Quoted'!E7 -> -0.008443651806 | G11: ='Output|Quoted'!F7 -> -0.01051247269 | H11: ='Output|Quoted'!G7 -> -0.01236745202
B13: Note:
B14: We do not apply an X factor for 2025–26 because we set 2025–26 ancillary network services prices in this Draft determination. To be clear, the labour escalators in this table are operating as de-facto X factors. Therefore, positive labour escalators are represented as negative in this table and vice versa. X factors in this table are rounded to 4 decimal places but distributors should use the raw X factors in the draft decision model.
B17: Table 2 | C17: Fee-based and quoted service hourly labour rates (business hours and after hours) for 2025–26, draft decision ($2025–26)
B19: Labour Categories | C19: Business Hours | D19: Initial proposal | E19: Draft decision
A20: 1 | B20: ='Calc|Labour Rates'!B10 -> Administrative | C20: ='Calc|Labour Rates'!C10 -> Business hours | D20: 157.6137847 | E20: =VLOOKUP(B20,'Calc|Labour Rates'!B10:E39,4,FALSE) -> 104.22
A21: 2 | B21: ='Calc|Labour Rates'!B11 -> Technical Service Person | C21: ='Calc|Labour Rates'!C11 -> Business hours | D21: 190.5769488 | E21: =VLOOKUP(B21,'Calc|Labour Rates'!B11:E40,4,FALSE) -> 193.054486
A22: 3 | B22: ='Calc|Labour Rates'!B12 -> Supervisor | C22: ='Calc|Labour Rates'!C12 -> Business hours | D22: 226.3694842 | E22: =VLOOKUP(B22,'Calc|Labour Rates'!B12:E41,4,FALSE) -> 229.3123312
A23: 4 | B23: ='Calc|Labour Rates'!B13 -> Para Professional | C23: ='Calc|Labour Rates'!C13 -> Business hours | D23: 212.9744889 | E23: =VLOOKUP(B23,'Calc|Labour Rates'!B13:E42,4,FALSE) -> 215.7431984
A24: 5 | B24: ='Calc|Labour Rates'!B14 -> 50% TSP/Contractor mix | C24: ='Calc|Labour Rates'!C14 -> Business hours | D24: 89.66899358 | E24: =VLOOKUP(B24,'Calc|Labour Rates'!B14:E43,4,FALSE) -> 90.83470784
A25: 6 | B25: ='Calc|Labour Rates'!B15 -> 20% TSP/Contractor mix | C25: ='Calc|Labour Rates'!C15 -> Business hours | D25: 34.51892204 | E25: =VLOOKUP(B25,'Calc|Labour Rates'!B15:E44,4,FALSE) -> 34.9676747
A26: 7 | B26: ='Calc|Labour Rates'!B16 -> Administrative | C26: ='Calc|Labour Rates'!C16 -> After hours | D26: 182.840696 | E26: =VLOOKUP(B26,'Calc|Labour Rates'!B16:E45,4,FALSE) -> 182.38
A27: 8 | B27: ='Calc|Labour Rates'!B17 -> Technical Service Person | C27: ='Calc|Labour Rates'!C17 -> After hours | D27: 216.7299351 | E27: =VLOOKUP(B27,'Calc|Labour Rates'!B17:E46,4,FALSE) -> 219.5474662
A28: 9 | B28: ='Calc|Labour Rates'!B18 -> Supervisor | C28: ='Calc|Labour Rates'!C18 -> After hours | D28: 296.4420284 | E28: =VLOOKUP(B28,'Calc|Labour Rates'!B18:E47,4,FALSE) -> 300.2958321
A29: 10 | B29: ='Calc|Labour Rates'!B19 -> Para Professional | C29: ='Calc|Labour Rates'!C19 -> After hours | D29: 253.6004015 | E29: =VLOOKUP(B29,'Calc|Labour Rates'!B19:E48,4,FALSE) -> 256.8972558
A30: 11 | B30: ='Calc|Labour Rates'!B20 -> 50% TSP/Contractor mix | C30: ='Calc|Labour Rates'!C20 -> After hours | D30: 101.9743221 | E30: =VLOOKUP(B30,'Calc|Labour Rates'!B20:E49,4,FALSE) -> 103.300008
A31: 12 | B31: ='Calc|Labour Rates'!B21 -> 20% TSP/Contractor mix | C31: ='Calc|Labour Rates'!C21 -> After hours | D31: 39.25597392 | E31: =VLOOKUP(B31,'Calc|Labour Rates'!B21:E50,4,FALSE) -> 39.76630917
A32: 13 | B32: ='Calc|Labour Rates'!B22 -> Administrative (Quoted) | C32: ='Calc|Labour Rates'!C22 -> Business hours | D32: 199.2026586 | E32: =VLOOKUP(B32,'Calc|Labour Rates'!B22:E51,4,FALSE) -> 104.22
A33: 14 | B33: ='Calc|Labour Rates'!B23 -> Professional & Managerial (Quoted) | C33: ='Calc|Labour Rates'!C23 -> Business hours | D33: 306.4310041 | E33: =VLOOKUP(B33,'Calc|Labour Rates'!B23:E52,4,FALSE) -> 260.54
A34: 15 | B34: ='Calc|Labour Rates'!B24 -> Power Worker (Quoted) | C34: ='Calc|Labour Rates'!C24 -> Business hours | D34: 192.7509531 | E34: =VLOOKUP(B34,'Calc|Labour Rates'!B24:E53,4,FALSE) -> 195.2567528
A35: 16 | B35: ='Calc|Labour Rates'!B25 -> Technical Service Person (Quoted) | C35: ='Calc|Labour Rates'!C25 -> Business hours | D35: 240.8636716 | E35: =VLOOKUP(B35,'Calc|Labour Rates'!B25:E54,4,FALSE) -> 243.9949459
A36: 17 | B36: ='Calc|Labour Rates'!B26 -> Elec Sys Designer (Quoted) | C36: ='Calc|Labour Rates'!C26 -> Business hours | D36: 232.6364968 | E36: =VLOOKUP(B36,'Calc|Labour Rates'!B26:E55,4,FALSE) -> 235.6608162
A37: 18 | B37: ='Calc|Labour Rates'!B27 -> Supervisor (Quoted) | C37: ='Calc|Labour Rates'!C27 -> Business hours | D37: 286.1006299 | E37: =VLOOKUP(B37,'Calc|Labour Rates'!B27:E56,4,FALSE) -> 260.54
A38: 19 | B38: ='Calc|Labour Rates'!B28 -> Para Professional (Quoted) | C38: ='Calc|Labour Rates'!C28 -> Business hours | D38: 269.1711546 | E38: =VLOOKUP(B38,'Calc|Labour Rates'!B28:E57,4,FALSE) -> 256.92
A39: 20 | B39: ='Calc|Labour Rates'!B29 -> Apprentice (Quoted) | C39: ='Calc|Labour Rates'!C29 -> Business hours | D39: 169.4948054 | E39: =VLOOKUP(B39,'Calc|Labour Rates'!B29:E58,4,FALSE) -> 171.6982707
A40: 21 | B40: ='Calc|Labour Rates'!B30 -> System Operator (Quoted) | C40: ='Calc|Labour Rates'!C30 -> Business hours | D40: 369.4226558 | E40: =VLOOKUP(B40,'Calc|Labour Rates'!B30:E59,4,FALSE) -> 312.65
A41: 22 | B41: ='Calc|Labour Rates'!B31 -> Administrative (Quoted) | C41: ='Calc|Labour Rates'!C31 -> After hours | D41: 231.0915884 | E41: =VLOOKUP(B41,'Calc|Labour Rates'!B31:E60,4,FALSE) -> 182.38
A42: 23 | B42: ='Calc|Labour Rates'!B32 -> Professional & Managerial (Quoted) | C42: ='Calc|Labour Rates'!C32 -> After hours | D42: 377.4837867 | E42: =VLOOKUP(B42,'Calc|Labour Rates'!B32:E61,4,FALSE) -> 382.3911489
A43: 24 | B43: ='Calc|Labour Rates'!B33 -> Power Worker (Quoted) | C43: ='Calc|Labour Rates'!C33 -> After hours | D43: 230.32226 | E43: =VLOOKUP(B43,'Calc|Labour Rates'!B33:E62,4,FALSE) -> 233.3164939
A44: 25 | B44: ='Calc|Labour Rates'!B34 -> Technical Service Person (Quoted) | C44: ='Calc|Labour Rates'!C34 -> After hours | D44: 273.9175343 | E44: =VLOOKUP(B44,'Calc|Labour Rates'!B34:E63,4,FALSE) -> 277.4785152
A45: 26 | B45: ='Calc|Labour Rates'!B35 -> Elec Sys Designer (Quoted) | C45: ='Calc|Labour Rates'!C35 -> After hours | D45: 287.4357328 | E45: =VLOOKUP(B45,'Calc|Labour Rates'!B35:E64,4,FALSE) -> 291.1724529
A46: 27 | B46: ='Calc|Labour Rates'!B36 -> Supervisor (Quoted) | C46: ='Calc|Labour Rates'!C36 -> After hours | D46: 374.662916 | E46: =VLOOKUP(B46,'Calc|Labour Rates'!B36:E65,4,FALSE) -> 379.5336064
A47: 28 | B47: ='Calc|Labour Rates'!B37 -> Para Professional (Quoted) | C47: ='Calc|Labour Rates'!C37 -> After hours | D47: 320.5168527 | E47: =VLOOKUP(B47,'Calc|Labour Rates'!B37:E66,4,FALSE) -> 324.6836337
A48: 29 | B48: ='Calc|Labour Rates'!B38 -> Apprentice (Quoted) | C48: ='Calc|Labour Rates'!C38 -> After hours | D48: 173.2820566 | E48: =VLOOKUP(B48,'Calc|Labour Rates'!B38:E67,4,FALSE) -> 175.5347568
A49: 30 | B49: ='Calc|Labour Rates'!B39 -> System Operator (Quoted) | C49: ='Calc|Labour Rates'!C39 -> After hours | D49: 500.5030565 | E49: =VLOOKUP(B49,'Calc|Labour Rates'!B39:E68,4,FALSE) -> 507.009693
A51: End

Sheet AER Draft Decision - Services
B1: AER Draft Decision - Ancillary Network Services - Energex - 2024-25
B3: Reading guide:
B4: Table 3 | C4: refers to our draft decision prices for Energex's fee-based services
B5: Table 4 | C5: refers to the (non-exhaustive) list of Energex's quoted services
B10: Table 3 | C10: List of Fee-based ancillary network services prices for 2025–26, draft decision ($2025–26)
F12: Price ($2025-26)
B13: Service Code | C13: Service Description | D13: Hours | E13: Permutations | F13: Initial Proposal | G13: Draft Decision
A14: 1 | B14: ='Output|Fee Based'!B12 -> DNV1MBU | C14: ='Output|Fee Based'!C12 -> Retailer requested de-energisation of the customer's premises where the de-energisation can be performed at the premises ie by a method other than main switch seal (eg pole, pillar, transformer or meter isolation link) | D14: ='Output|Fee Based'!D12 -> Business hours | E14: ='Output|Fee Based'!G12 -> No CT | F14: 127.603102 | G14: =VLOOKUP(B14,'Output|Fee Based'!B12:H126,7,FALSE) -> 129.261967
A15: 2 | B15: ='Output|Fee Based'!B13 -> DNV2MBU | C15: ='Output|Fee Based'!C13 -> Retailer requested de-energisation of the customer's premises where the de-energisation can be performed at the premises ie by a method other than main switch seal (eg pole, pillar, transformer or meter isolation link) | D15: ='Output|Fee Based'!D13 -> Business hours | E15: ='Output|Fee Based'!G13 -> CT | F15: 486.9290852 | G15: =VLOOKUP(B15,'Output|Fee Based'!B13:H127,7,FALSE) -> 493.2592575
A16: 3 | B16: ='Output|Fee Based'!B14 -> DN$1MBU | C16: ='Output|Fee Based'!C14 -> Retailer requested de-energisation of the customer's premises where the de-energisation can be performed at the premises ie by a method other than main switch seal (eg pole, pillar, transformer or meter isolation link) | D16: ='Output|Fee Based'!D14 -> Business hours | E16: ='Output|Fee Based'!G14 -> No Payment No CT | F16: 178.8356335 | G16: =VLOOKUP(B16,'Output|Fee Based'!B14:H128,7,FALSE) -> 181.1605313
A17: 4 | B17: ='Output|Fee Based'!B15 -> DN$2MBU | C17: ='Output|Fee Based'!C15 -> Retailer requested de-energisation of the customer's premises where the de-energisation can be performed at the premises ie by a method other than main switch seal (eg pole, pillar, transformer or meter isolation link) | D17: ='Output|Fee Based'!D15 -> Business hours | E17: ='Output|Fee Based'!G15 -> No Payment CT | F17: 486.9290852 | G17: =VLOOKUP(B17,'Output|Fee Based'!B15:H129,7,FALSE) -> 493.2592575
A18: 5 | B18: ='Output|Fee Based'!B16 -> DNMS1MBU | C18: ='Output|Fee Based'!C16 -> Retailer requested de-energisation (MSS) | D18: ='Output|Fee Based'!D16 -> Business hours | E18: ='Output|Fee Based'!G16 -> No CT | F18: 132.9946435 | G18: =VLOOKUP(B18,'Output|Fee Based'!B16:H130,7,FALSE) -> 134.7235996
A19: 6 | B19: ='Output|Fee Based'!B17 -> DNS$1MBU | C19: ='Output|Fee Based'!C17 -> Retailer requested de-energisation (MSS) | D19: ='Output|Fee Based'!D17 -> Business hours | E19: ='Output|Fee Based'!G17 -> No Payment No CT | F19: 172.9947527 | G19: =VLOOKUP(B19,'Output|Fee Based'!B17:H131,7,FALSE) -> 175.2437179
A20: 7 | B20: ='Output|Fee Based'!B18 -> RN$1MBU | C20: ='Output|Fee Based'!C18 -> Retailer requests a re-energisation of the customer's premises where the customer has not paid their electricity account. No visual required | D20: ='Output|Fee Based'!D18 -> Business hours | E20: ='Output|Fee Based'!G18 -> No Payment No CT | F20: 203.4452489 | G20: =VLOOKUP(B20,'Output|Fee Based'!B18:H132,7,FALSE) -> 206.0900765
A21: 8 | B21: ='Output|Fee Based'!B19 -> RN$2MBU | C21: ='Output|Fee Based'!C19 -> Retailer requests a re-energisation of the customer's premises where the customer has not paid their electricity account. No visual required | D21: ='Output|Fee Based'!D19 -> Business hours | E21: ='Output|Fee Based'!G19 -> No Payment CT | F21: 215.1270105 | G21: =VLOOKUP(B21,'Output|Fee Based'!B19:H133,7,FALSE) -> 217.9237033
A22: 9 | B22: ='Output|Fee Based'!B20 -> RN$1MAU | C22: ='Output|Fee Based'!C20 -> Retailer requests a re-energisation of the customer's premises where the customer has not paid their electricity account. No visual required | D22: ='Output|Fee Based'!D20 -> After hours | E22: ='Output|Fee Based'!G20 -> No Payment No CT | F22: 359.1269898 | G22: =VLOOKUP(B22,'Output|Fee Based'!B20:H134,7,FALSE) -> 363.7957101
A23: 10 | B23: ='Output|Fee Based'!B21 -> RNS1MBU | C23: ='Output|Fee Based'!C21 -> Retailer requests a re-energisation for the customer's premises following a main switch seal (no visual required) | D23: ='Output|Fee Based'!D21 -> Business hours | E23: ='Output|Fee Based'!G21 -> No CT | F23: 121.5460388 | G23: =VLOOKUP(B23,'Output|Fee Based'!B21:H135,7,FALSE) -> 123.1261608
A24: 11 | B24: ='Output|Fee Based'!B22 -> RNS1MAU | C24: ='Output|Fee Based'!C22 -> Retailer requests a re-energisation for the customer's premises following a main switch seal (no visual required) | D24: ='Output|Fee Based'!D22 -> After hours | E24: ='Output|Fee Based'!G22 -> No CT | F24: 179.5634949 | G24: =VLOOKUP(B24,'Output|Fee Based'!B22:H136,7,FALSE) -> 181.897855
A25: 12 | B25: ='Output|Fee Based'!B23 -> RNS$1MBU | C25: ='Output|Fee Based'!C23 -> Retailer requests a re-energisation for the customer's premises following a main switch seal (no visual required) | D25: ='Output|Fee Based'!D23 -> Business hours | E25: ='Output|Fee Based'!G23 -> No Payment No CT | F25: 203.4452489 | G25: =VLOOKUP(B25,'Output|Fee Based'!B23:H137,7,FALSE) -> 206.0900765
A26: 13 | B26: ='Output|Fee Based'!B24 -> RNV1MBU | C26: ='Output|Fee Based'!C24 -> Retailer or metering coordinator/provider requests a visual examination upon re-energisation (physical or remote) of the customer’s premises. | D26: ='Output|Fee Based'!D24 -> Business hours | E26: ='Output|Fee Based'!G24 -> No CT | F26: 181.4722758 | G26: =VLOOKUP(B26,'Output|Fee Based'!B24:H138,7,FALSE) -> 183.8314505
A27: 14 | B27: ='Output|Fee Based'!B25 -> RNV2MBU | C27: ='Output|Fee Based'!C25 -> Retailer or metering coordinator/provider requests a visual examination upon re-energisation (physical or remote) of the customer’s premises. | D27: ='Output|Fee Based'!D25 -> Business hours | E27: ='Output|Fee Based'!G25 -> CT | F27: 328.0141276 | G27: =VLOOKUP(B27,'Output|Fee Based'!B25:H139,7,FALSE) -> 332.2783747
A28: 15 | B28: ='Output|Fee Based'!B26 -> RNV1MAU | C28: ='Output|Fee Based'!C26 -> Retailer or metering coordinator/provider requests a visual examination upon re-energisation (physical or remote) of the customer’s premises. | D28: ='Output|Fee Based'!D26 -> After hours | E28: ='Output|Fee Based'!G26 -> No CT | F28: 237.4872029 | G28: =VLOOKUP(B28,'Output|Fee Based'!B26:H140,7,FALSE) -> 240.5745825
A29: 16 | B29: ='Output|Fee Based'!B27 -> RNV2MAU | C29: ='Output|Fee Based'!C27 -> Retailer or metering coordinator/provider requests a visual examination upon re-energisation (physical or remote) of the customer’s premises. | D29: ='Output|Fee Based'!D27 -> After hours | E29: ='Output|Fee Based'!G27 -> CT | F29: 590.8218218 | G29: =VLOOKUP(B29,'Output|Fee Based'!B27:H141,7,FALSE) -> 598.5026198
A30: 17 | B30: ='Output|Fee Based'!B28 -> RN$V1MBU | C30: ='Output|Fee Based'!C28 -> Retailer or metering coordinator/provider requests a visual examination upon re-energisation (physical) of the customer’s premises where the customer has not paid their electricity account. NMI de-energised > 30 days. | D30: ='Output|Fee Based'!D28 -> Business hours | E30: ='Output|Fee Based'!G28 -> No Payment No CT | F30: 186.4063218 | G30: =VLOOKUP(B30,'Output|Fee Based'!B28:H142,7,FALSE) -> 188.82964
A31: 18 | B31: ='Output|Fee Based'!B29 -> RN$V1MAU | C31: ='Output|Fee Based'!C29 -> Retailer or metering coordinator/provider requests a visual examination upon re-energisation (physical) of the customer’s premises where the customer has not paid their electricity account. NMI de-energised > 30 days. | D31: ='Output|Fee Based'!D29 -> After hours | E31: ='Output|Fee Based'!G29 -> No Payment No CT | F31: 474.9744058 | G31: =VLOOKUP(B31,'Output|Fee Based'!B29:H143,7,FALSE) -> 481.1491649
A32: 19 | B32: ='Output|Fee Based'!B30 -> RN$V2MBU | C32: ='Output|Fee Based'!C30 -> Retailer or metering coordinator/provider requests a visual examination upon re-energisation (physical) of the customer’s premises where the customer has not paid their electricity account. NMI de-energised > 30 days. | D32: ='Output|Fee Based'!D30 -> Business hours | E32: ='Output|Fee Based'!G30 -> No Payment CT | F32: 330.2480017 | G32: =VLOOKUP(B32,'Output|Fee Based'!B30:H144,7,FALSE) -> 334.5412896
A33: 20 | B33: ='Output|Fee Based'!B31 -> TDNNDBU | C33: ='Output|Fee Based'!C31 -> Temporary de-energisation and re-energisation of supply to allow customer or contractor to work close - the supply will be disconnected - No Dismantling | D33: ='Output|Fee Based'!D31 -> Business hours | E33: ='Output|Fee Based'!G31 -> No CT | F33: 486.9290852 | G33: =VLOOKUP(B33,'Output|Fee Based'!B31:H145,7,FALSE) -> 493.2592575
A34: 21 | B34: ='Output|Fee Based'!B32 -> TDNNDAU | C34: ='Output|Fee Based'!C32 -> Temporary de-energisation and re-energisation of supply to allow customer or contractor to work close - the supply will be disconnected - No Dismantling | D34: ='Output|Fee Based'!D32 -> After hours | E34: ='Output|Fee Based'!G32 -> No CT | F34: 553.7506487 | G34: =VLOOKUP(B34,'Output|Fee Based'!B32:H146,7,FALSE) -> 560.9495142
A35: 22 | B35: ='Output|Fee Based'!B33 -> TDNSPBU | C35: ='Output|Fee Based'!C33 -> Temporary de-energisation and re-energisation of supply to allow customer or contractor to work close - the service may be physically dismantled or disconnected (e.g. overhead service dropped). This services includes switching if required. - Dismantling Single Phase | D35: ='Output|Fee Based'!D33 -> Business hours | E35: ='Output|Fee Based'!G33 -> No CT | F35: 1028.866896 | G35: =VLOOKUP(B35,'Output|Fee Based'!B33:H147,7,FALSE) -> 1042.242364
A36: 23 | B36: ='Output|Fee Based'!B34 -> TDNMPBU | C36: ='Output|Fee Based'!C34 -> Temporary de-energisation and re-energisation of supply to allow customer or contractor to work close - the service may be physically dismantled or disconnected (e.g. overhead service dropped). This services includes switching if required. - Dismantling Multi Phase | D36: ='Output|Fee Based'!D34 -> Business hours | E36: ='Output|Fee Based'!G34 -> No CT | F36: 1232.602914 | G36: =VLOOKUP(B36,'Output|Fee Based'!B34:H148,7,FALSE) -> 1248.626991
A37: 24 | B37: ='Output|Fee Based'!B35 -> TDNSPTCBU | C37: ='Output|Fee Based'!C35 -> Temporary de-energisation and re-energisation of supply to allow customer or contractor to work close - the service may be physically dismantled or disconnected (e.g. overhead service dropped). This services includes switching if required. - Dismantling Single Phase | D37: ='Output|Fee Based'!D35 -> Business hours | E37: ='Output|Fee Based'!G35 -> Traffic Control | F37: 2107.392438 | G37: =VLOOKUP(B37,'Output|Fee Based'!B35:H149,7,FALSE) -> 2134.788947
A38: 25 | B38: ='Output|Fee Based'!B36 -> TDNMPTCBU | C38: ='Output|Fee Based'!C36 -> Temporary de-energisation and re-energisation of supply to allow customer or contractor to work close - the service may be physically dismantled or disconnected (e.g. overhead service dropped). This services includes switching if required. - Dismantling Multi Phase | D38: ='Output|Fee Based'!D36 -> Business hours | E38: ='Output|Fee Based'!G36 -> Traffic Control | F38: 2311.128457 | G38: =VLOOKUP(B38,'Output|Fee Based'!B36:H150,7,FALSE) -> 2341.173574
A39: 26 | B39: ='Output|Fee Based'!B37 -> TDNSPAU | C39: ='Output|Fee Based'!C37 -> Temporary de-energisation and re-energisation of supply to allow customer or contractor to work close - the service may be physically dismantled or disconnected (e.g. overhead service dropped). This services includes switching if required. - Dismantling Single Phase | D39: ='Output|Fee Based'!D37 -> After hours | E39: ='Output|Fee Based'!G37 -> No CT | F39: 1170.058902 | G39: =VLOOKUP(B39,'Output|Fee Based'!B37:H151,7,FALSE) -> 1185.269894
A40: 27 | B40: ='Output|Fee Based'!B38 -> TDNMPAU | C40: ='Output|Fee Based'!C38 -> Temporary de-energisation and re-energisation of supply to allow customer or contractor to work close - the service may be physically dismantled or disconnected (e.g. overhead service dropped). This services includes switching if required. - Dismantling Multi Phase | D40: ='Output|Fee Based'!D38 -> After hours | E40: ='Output|Fee Based'!G38 -> No CT | F40: 1401.753734 | G40: =VLOOKUP(B40,'Output|Fee Based'!B38:H152,7,FALSE) -> 1419.976804
A41: 28 | B41: ='Output|Fee Based'!B39 -> TDNSPTCAU | C41: ='Output|Fee Based'!C39 -> Temporary de-energisation and re-energisation of supply to allow customer or contractor to work close - the service may be physically dismantled or disconnected (e.g. overhead service dropped). This services includes switching if required. - Dismantling Single Phase | D41: ='Output|Fee Based'!D39 -> After hours | E41: ='Output|Fee Based'!G39 -> Traffic Control No CT | F41: 2248.584444 | G41: =VLOOKUP(B41,'Output|Fee Based'!B39:H153,7,FALSE) -> 2277.816477
A42: 29 | B42: ='Output|Fee Based'!B40 -> TDNMPTCAU | C42: ='Output|Fee Based'!C40 -> Temporary de-energisation and re-energisation of supply to allow customer or contractor to work close - the service may be physically dismantled or disconnected (e.g. overhead service dropped). This services includes switching if required. - Dismantling Multi Phase | D42: ='Output|Fee Based'!D40 -> After hours | E42: ='Output|Fee Based'!G40 -> Traffic Control | F42: 2480.279277 | G42: =VLOOKUP(B42,'Output|Fee Based'!B40:H154,7,FALSE) -> 2512.523387
A43: 30 | B43: ='Output|Fee Based'!B41 -> NCT1MBU | C43: ='Output|Fee Based'!C41 -> Customer requested temporary connection (short term) and the recovery of the temporary builders supply. Excludes work on metering equipment. | D43: ='Output|Fee Based'!D41 -> Business hours | E43: ='Output|Fee Based'!G41 -> No CT | F43: 1232.602914 | G43: =VLOOKUP(B43,'Output|Fee Based'!B41:H155,7,FALSE) -> 1248.626991
A44: 31 | B44: ='Output|Fee Based'!B42 -> NCT1MAU | C44: ='Output|Fee Based'!C42 -> Customer requested temporary connection (short term) and the recovery of the temporary builders supply. Excludes work on metering equipment. | D44: ='Output|Fee Based'!D42 -> After hours | E44: ='Output|Fee Based'!G42 -> No CT | F44: 1401.753734 | G44: =VLOOKUP(B44,'Output|Fee Based'!B42:H156,7,FALSE) -> 1419.976804
A45: 32 | B45: ='Output|Fee Based'!B43 -> NCT2MBU | C45: ='Output|Fee Based'!C43 -> Customer requested temporary connection (short term) and the recovery of the temporary builders supply. Excludes work on metering equipment. | D45: ='Output|Fee Based'!D43 -> Business hours | E45: ='Output|Fee Based'!G43 -> CT | F45: 2047.54699 | G45: =VLOOKUP(B45,'Output|Fee Based'!B43:H157,7,FALSE) -> 2074.165497
A46: 33 | B46: ='Output|Fee Based'!B44 -> NCT2MAU | C46: ='Output|Fee Based'!C44 -> Customer requested temporary connection (short term) and the recovery of the temporary builders supply. Excludes work on metering equipment. | D46: ='Output|Fee Based'!D44 -> After hours | E46: ='Output|Fee Based'!G44 -> CT | F46: 2328.533063 | G46: =VLOOKUP(B46,'Output|Fee Based'!B44:H158,7,FALSE) -> 2358.804443
A47: 34 | B47: ='Output|Fee Based'!B45 -> SA2BU | C47: ='Output|Fee Based'!C45 -> Retailer requests Enexgex to abolish supply at a connection point and decommission a NMI. May be used where a property is to be demolished; supply is no longer required; an alternative connection point is to be used; or a redundant supply is to be removed. Overhead or Underground - Service Only | D47: ='Output|Fee Based'!D45 -> Business hours | E47: ='Output|Fee Based'!G45 -> CT | F47: 621.3948577 | G47: =VLOOKUP(B47,'Output|Fee Based'!B45:H159,7,FALSE) -> 629.473111
A48: 35 | B48: ='Output|Fee Based'!B46 -> SA2TCBU | C48: ='Output|Fee Based'!C46 -> Retailer requests Energex to abolish supply at a connection point and decommission a NMI. May be used where a property is to be demolished; supply is no longer required; an alternative connection point is to be used; or a redundant supply is to be removed. Overhead or Underground - Service Only | D48: ='Output|Fee Based'!D46 -> Business hours | E48: ='Output|Fee Based'!G46 -> Traffic Control CT | F48: 1699.9204 | G48: =VLOOKUP(B48,'Output|Fee Based'!B46:H160,7,FALSE) -> 1722.019694
A49: 36 | B49: ='Output|Fee Based'!B47 -> SA1BU | C49: ='Output|Fee Based'!C47 -> Retailer requests Energex to abolish supply at a connection point and decommission a NMI. May be used where a property is to be demolished; supply is no longer required; an alternative connection point is to be used; or a redundant supply is to be removed. Overhead or Underground - Service Only | D49: ='Output|Fee Based'!D47 -> Business hours | E49: ='Output|Fee Based'!G47 -> No CT | F49: 519.5268483 | G49: =VLOOKUP(B49,'Output|Fee Based'!B47:H161,7,FALSE) -> 526.2807977
A50: 37 | B50: ='Output|Fee Based'!B48 -> SA1TCBU | C50: ='Output|Fee Based'!C48 -> Retailer requests Energex to abolish supply at a connection point and decommission a NMI. May be used where a property is to be demolished; supply is no longer required; an alternative connection point is to be used; or a redundant supply is to be removed. Overhead or Underground - Service Only | D50: ='Output|Fee Based'!D48 -> Business hours | E50: ='Output|Fee Based'!G48 -> Traffic Control | F50: 1598.052391 | G50: =VLOOKUP(B50,'Output|Fee Based'!B48:H162,7,FALSE) -> 1618.827381
A51: 38 | B51: ='Output|Fee Based'!B49 -> SA2AU | C51: ='Output|Fee Based'!C49 -> Retailer requests Energex to abolish supply at a connection point and decommission a NMI. May be used where a property is to be demolished; supply is no longer required; an alternative connection point is to be used; or a redundant supply is to be removed. Overhead or Underground - Service Only | D51: ='Output|Fee Based'!D49 -> After hours | E51: ='Output|Fee Based'!G49 -> CT | F51: 706.6692379 | G51: =VLOOKUP(B51,'Output|Fee Based'!B49:H163,7,FALSE) -> 715.8560746
A52: 39 | B52: ='Output|Fee Based'!B50 -> SA2TCAU | C52: ='Output|Fee Based'!C50 -> Retailer requests Energex to abolish supply at a connection point and decommission a NMI. May be used where a property is to be demolished; supply is no longer required; an alternative connection point is to be used; or a redundant supply is to be removed. Overhead or Underground - Service Only | D52: ='Output|Fee Based'!D50 -> After hours | E52: ='Output|Fee Based'!G50 -> Traffic Control CT | F52: 1785.19478 | G52: =VLOOKUP(B52,'Output|Fee Based'!B50:H164,7,FALSE) -> 1808.402658
A53: 40 | B53: ='Output|Fee Based'!B51 -> SA1AU | C53: ='Output|Fee Based'!C51 -> Retailer requests Energex to abolish supply at a connection point and decommission a NMI. May be used where a property is to be demolished; supply is no longer required; an alternative connection point is to be used; or a redundant supply is to be removed. Overhead or Underground - Service Only | D53: ='Output|Fee Based'!D51 -> After hours | E53: ='Output|Fee Based'!G51 -> No CT | F53: 590.8218218 | G53: =VLOOKUP(B53,'Output|Fee Based'!B51:H165,7,FALSE) -> 598.5026198
A54: 41 | B54: ='Output|Fee Based'!B52 -> SA1TCAU | C54: ='Output|Fee Based'!C52 -> Retailer requests Energex to abolish supply at a connection point and decommission a NMI. May be used where a property is to be demolished; supply is no longer required; an alternative connection point is to be used; or a redundant supply is to be removed. Overhead or Underground - Service Only | D54: ='Output|Fee Based'!D52 -> After hours | E54: ='Output|Fee Based'!G52 -> Traffic Control | F54: 1669.347364 | G54: =VLOOKUP(B54,'Output|Fee Based'!B52:H166,7,FALSE) -> 1691.049203
A55: 42 | B55: ='Output|Fee Based'!B53 -> SA4BU | C55: ='Output|Fee Based'!C53 -> Retailer requests Energex to abolish supply at a connection point and decommission a NMI. May be used where a property is to be demolished; supply is no longer required; an alternative connection point is to be used; or a redundant supply is to be removed. Overhead or Underground (No travel time) | D55: ='Output|Fee Based'!D53 -> Business hours | E55: ='Output|Fee Based'!G53 -> CT | F55: 407.4720378 | G55: =VLOOKUP(B55,'Output|Fee Based'!B53:H167,7,FALSE) -> 412.7692531
A56: 43 | B56: ='Output|Fee Based'!B54 -> SA3BU | C56: ='Output|Fee Based'!C54 -> Retailer requests Energex to abolish supply at a connection point and decommission a NMI. May be used where a property is to be demolished; supply is no longer required; an alternative connection point is to be used; or a redundant supply is to be removed. Overhead or Underground (No travel time) - Meter Only | D56: ='Output|Fee Based'!D54 -> Business hours | E56: ='Output|Fee Based'!G54 -> No CT | F56: 101.8680095 | G56: =VLOOKUP(B56,'Output|Fee Based'!B54:H168,7,FALSE) -> 103.1923133
A57: 44 | B57: ='Output|Fee Based'!B55 -> SA4AU | C57: ='Output|Fee Based'!C55 -> Retailer requests Energex to abolish supply at a connection point and decommission a NMI. May be used where a property is to be demolished; supply is no longer required; an alternative connection point is to be used; or a redundant supply is to be removed. Overhead or Underground (No travel time) - Meter Only | D57: ='Output|Fee Based'!D55 -> After hours | E57: ='Output|Fee Based'!G55 -> CT | F57: 463.3896642 | G57: =VLOOKUP(B57,'Output|Fee Based'!B55:H169,7,FALSE) -> 469.4138194
A58: 45 | B58: ='Output|Fee Based'!B56 -> SA3AU | C58: ='Output|Fee Based'!C56 -> Retailer requests Energex to abolish supply at a connection point and decommission a NMI. May be used where a property is to be demolished; supply is no longer required; an alternative connection point is to be used; or a redundant supply is to be removed. Overhead or Underground (No travel time) - Meter Only | D58: ='Output|Fee Based'!D56 -> After hours | E58: ='Output|Fee Based'!G56 -> No CT | F58: 115.847416 | G58: =VLOOKUP(B58,'Output|Fee Based'!B56:H170,7,FALSE) -> 117.3534549
A59: 46 | B59: ='Output|Fee Based'!B57 -> DNUMSBU | C59: ='Output|Fee Based'!C57 -> Request to de-energise an unmetered supply point. | D59: ='Output|Fee Based'!D57 -> Business hours | E59: ='Output|Fee Based'!G57 -> No CT | F59: 519.5268483 | G59: =VLOOKUP(B59,'Output|Fee Based'!B57:H171,7,FALSE) -> 526.2807977
A60: 47 | B60: ='Output|Fee Based'!B58 -> DNUMSAU | C60: ='Output|Fee Based'!C58 -> Request to de-energise an unmetered supply point. | D60: ='Output|Fee Based'!D58 -> After hours | E60: ='Output|Fee Based'!G58 -> No CT | F60: 590.8218218 | G60: =VLOOKUP(B60,'Output|Fee Based'!B58:H172,7,FALSE) -> 598.5026198
A61: 48 | B61: ='Output|Fee Based'!B59 -> DNUMSTCBU | C61: ='Output|Fee Based'!C59 -> Request to de-energise an unmetered supply point. | D61: ='Output|Fee Based'!D59 -> Business hours | E61: ='Output|Fee Based'!G59 -> Traffic Control | F61: 1598.052391 | G61: =VLOOKUP(B61,'Output|Fee Based'!B59:H173,7,FALSE) -> 1618.827381
A62: 49 | B62: ='Output|Fee Based'!B60 -> DNUMSTCAU | C62: ='Output|Fee Based'!C60 -> Request to de-energise an unmetered supply point. | D62: ='Output|Fee Based'!D60 -> After hours | E62: ='Output|Fee Based'!G60 -> Traffic Control | F62: 1669.347364 | G62: =VLOOKUP(B62,'Output|Fee Based'!B60:H174,7,FALSE) -> 1691.049203
A63: 50 | B63: ='Output|Fee Based'!B61 -> SEOMPBU | C63: ='Output|Fee Based'!C61 -> Service upgrade. For example, an upgrade from single phase to multi phase and/or increase capacity. Excludes work on metering equipment (if required). Overhead - Single to Multi Phase | D63: ='Output|Fee Based'!D61 -> Business hours | E63: ='Output|Fee Based'!G61 -> No CT | F63: 1372.820152 | G63: =VLOOKUP(B63,'Output|Fee Based'!B61:H175,7,FALSE) -> 1390.66708
A64: 51 | B64: ='Output|Fee Based'!B62 -> SEOMPTCBU | C64: ='Output|Fee Based'!C62 -> Service upgrade. For example, an upgrade from single phase to multi phase and/or increase capacity. Excludes work on metering equipment (if required). Overhead - Single to Multi Phase | D64: ='Output|Fee Based'!D62 -> Business hours | E64: ='Output|Fee Based'!G62 -> Traffic Control | F64: 2451.345695 | G64: =VLOOKUP(B64,'Output|Fee Based'!B62:H176,7,FALSE) -> 2483.213663
A65: 52 | B65: ='Output|Fee Based'!B63 -> SEOCAPBU | C65: ='Output|Fee Based'!C63 -> Service upgrade. For example, an upgrade from single phase to multi phase and/or increase capacity. Excludes work on metering equipment (if required). Overhead - Multi Phase Increase Capacity | D65: ='Output|Fee Based'!D63 -> Business hours | E65: ='Output|Fee Based'!G63 -> No CT | F65: 1474.688162 | G65: =VLOOKUP(B65,'Output|Fee Based'!B63:H177,7,FALSE) -> 1493.859393
A66: 53 | B66: ='Output|Fee Based'!B64 -> SEOCAPTCBU | C66: ='Output|Fee Based'!C64 -> Service upgrade. For example, an upgrade from single phase to multi phase and/or increase capacity. Excludes work on metering equipment (if required). Overhead - Multi Phase Increase Capacity | D66: ='Output|Fee Based'!D64 -> Business hours | E66: ='Output|Fee Based'!G64 -> Traffic Control | F66: 2553.213704 | G66: =VLOOKUP(B66,'Output|Fee Based'!B64:H178,7,FALSE) -> 2586.405976
A67: 54 | B67: ='Output|Fee Based'!B65 -> SEOMPAU | C67: ='Output|Fee Based'!C65 -> Service upgrade. For example, an upgrade from single phase to multi phase and/or increase capacity. Excludes work on metering equipment (if required). Overhead - Single to Multi Phase | D67: ='Output|Fee Based'!D65 -> After hours | E67: ='Output|Fee Based'!G65 -> No CT | F67: 1514.012159 | G67: =VLOOKUP(B67,'Output|Fee Based'!B65:H179,7,FALSE) -> 1533.69461
A68: 55 | B68: ='Output|Fee Based'!B66 -> SEOMPTCAU | C68: ='Output|Fee Based'!C66 -> Service upgrade. For example, an upgrade from single phase to multi phase and/or increase capacity. Excludes work on metering equipment (if required). Overhead - Single to Multi Phase | D68: ='Output|Fee Based'!D66 -> After hours | E68: ='Output|Fee Based'!G66 -> Traffic Control | F68: 2534.290174 | G68: =VLOOKUP(B68,'Output|Fee Based'!B66:H180,7,FALSE) -> 2567.236436
A69: 56 | B69: ='Output|Fee Based'!B67 -> SEOCAPAU | C69: ='Output|Fee Based'!C67 -> Service upgrade. For example, an upgrade from single phase to multi phase and/or increase capacity. Excludes work on metering equipment (if required). Overhead - Multi Phase Increase Capacity | D69: ='Output|Fee Based'!D67 -> After hours | E69: ='Output|Fee Based'!G67 -> No CT | F69: 1629.859575 | G69: =VLOOKUP(B69,'Output|Fee Based'!B67:H181,7,FALSE) -> 1651.048065
A70: 57 | B70: ='Output|Fee Based'!B68 -> SEOCAPTCAU | C70: ='Output|Fee Based'!C68 -> Service upgrade. For example, an upgrade from single phase to multi phase and/or increase capacity. Excludes work on metering equipment (if required). Overhead - Multi Phase Increase Capacity | D70: ='Output|Fee Based'!D68 -> After hours | E70: ='Output|Fee Based'!G68 -> Traffic Control | F70: 2708.385117 | G70: =VLOOKUP(B70,'Output|Fee Based'!B68:H182,7,FALSE) -> 2743.594647
A71: 58 | B71: ='Output|Fee Based'!B69 -> SEUMPBU | C71: ='Output|Fee Based'!C69 -> Service upgrade. For example, an upgrade from single phase to multi phase and/or increase capacity. Excludes work on metering equipment (if required). Underground - Single to Multi Phase | D71: ='Output|Fee Based'!D69 -> Business hours | E71: ='Output|Fee Based'!G69 -> No CT | F71: 310.6974289 | G71: =VLOOKUP(B71,'Output|Fee Based'!B69:H183,7,FALSE) -> 314.7365555
A72: 59 | B72: ='Output|Fee Based'!B70 -> SEUMPTCBU | C72: ='Output|Fee Based'!C70 -> Service upgrade. For example, an upgrade from single phase to multi phase and/or increase capacity. Excludes work on metering equipment (if required). Underground - Single to Multi Phase | D72: ='Output|Fee Based'!D70 -> Business hours | E72: ='Output|Fee Based'!G70 -> Traffic Control | F72: 1389.222971 | G72: =VLOOKUP(B72,'Output|Fee Based'!B70:H184,7,FALSE) -> 1407.283138
A73: 60 | B73: ='Output|Fee Based'!B71 -> SEUCAPBU | C73: ='Output|Fee Based'!C71 -> Service upgrade. For example, an upgrade from single phase to multi phase and/or increase capacity. Excludes work on metering equipment (if required). Underground - Multi Phase Increase Capacity | D73: ='Output|Fee Based'!D71 -> Business hours | E73: ='Output|Fee Based'!G71 -> No CT | F73: 310.6974289 | G73: =VLOOKUP(B73,'Output|Fee Based'!B71:H185,7,FALSE) -> 314.7365555
A74: 61 | B74: ='Output|Fee Based'!B72 -> SEUCAPTCBU | C74: ='Output|Fee Based'!C72 -> Service upgrade. For example, an upgrade from single phase to multi phase and/or increase capacity. Excludes work on metering equipment (if required). Underground - Multi Phase Increase Capacity | D74: ='Output|Fee Based'!D72 -> Business hours | E74: ='Output|Fee Based'!G72 -> Traffic Control | F74: 1389.222971 | G74: =VLOOKUP(B74,'Output|Fee Based'!B72:H186,7,FALSE) -> 1407.283138
A75: 62 | B75: ='Output|Fee Based'!B73 -> SEUMPAU | C75: ='Output|Fee Based'!C73 -> Service upgrade. For example, an upgrade from single phase to multi phase and/or increase capacity. Excludes work on metering equipment (if required). Underground - Single to Multi Phase | D75: ='Output|Fee Based'!D73 -> After hours | E75: ='Output|Fee Based'!G73 -> No CT | F75: 353.3346189 | G75: =VLOOKUP(B75,'Output|Fee Based'!B73:H187,7,FALSE) -> 357.9280373
A76: 63 | B76: ='Output|Fee Based'!B74 -> SEUMPTCAU | C76: ='Output|Fee Based'!C74 -> Service upgrade. For example, an upgrade from single phase to multi phase and/or increase capacity. Excludes work on metering equipment (if required). Underground - Single to Multi Phase | D76: ='Output|Fee Based'!D74 -> After hours | E76: ='Output|Fee Based'!G74 -> Traffic Control | F76: 1431.860161 | G76: =VLOOKUP(B76,'Output|Fee Based'!B74:H188,7,FALSE) -> 1450.47462
A77: 64 | B77: ='Output|Fee Based'!B75 -> SEUCAPAU | C77: ='Output|Fee Based'!C75 -> Service upgrade. For example, an upgrade from single phase to multi phase and/or increase capacity. Excludes work on metering equipment (if required). Underground - Multi Phase Increase Capacity | D77: ='Output|Fee Based'!D75 -> After hours | E77: ='Output|Fee Based'!G75 -> No CT | F77: 353.3346189 | G77: =VLOOKUP(B77,'Output|Fee Based'!B75:H189,7,FALSE) -> 357.9280373
A78: 65 | B78: ='Output|Fee Based'!B76 -> SEUCAPTCAU | C78: ='Output|Fee Based'!C76 -> Service upgrade. For example, an upgrade from single phase to multi phase and/or increase capacity. Excludes work on metering equipment (if required). Underground - Multi Phase Increase Capacity | D78: ='Output|Fee Based'!D76 -> After hours | E78: ='Output|Fee Based'!G76 -> Traffic Control | F78: 1431.860161 | G78: =VLOOKUP(B78,'Output|Fee Based'!B76:H190,7,FALSE) -> 1450.47462
A79: 66 | B79: ='Output|Fee Based'!B77 -> POASPBU | C79: ='Output|Fee Based'!C77 -> Customer requests their existing overhead service to be replaced or relocated, e.g.as a result of point of attachment relocation. No material change to load. This includes De-energisation, followed by physical dismantling then reattachment of service and re-energisation. Excludes work on metering equipment (if required) - Single Phase | D79: ='Output|Fee Based'!D77 -> Business hours | E79: ='Output|Fee Based'!G77 -> No CT | F79: 1026.46892 | G79: =VLOOKUP(B79,'Output|Fee Based'!B77:H191,7,FALSE) -> 1039.813215
A80: 67 | B80: ='Output|Fee Based'!B78 -> POASPTCBU | C80: ='Output|Fee Based'!C78 -> Customer requests their existing overhead service to be replaced or relocated, e.g.as a result of point of attachment relocation. No material change to load. This includes De-energisation, followed by physical dismantling then reattachment of service and re-energisation. Excludes work on metering equipment (if required) - Single Phase | D80: ='Output|Fee Based'!D78 -> Business hours | E80: ='Output|Fee Based'!G78 -> Traffic Control | F80: 2104.994463 | G80: =VLOOKUP(B80,'Output|Fee Based'!B78:H192,7,FALSE) -> 2132.359798
A81: 68 | B81: ='Output|Fee Based'!B79 -> POASPAU | C81: ='Output|Fee Based'!C79 -> Customer requests their existing overhead service to be replaced or relocated, e.g.as a result of point of attachment relocation. No material change to load. This includes De-energisation, followed by physical dismantling then reattachment of service and re-energisation. Excludes work on metering equipment (if required) - Single Phase | D81: ='Output|Fee Based'!D79 -> After hours | E81: ='Output|Fee Based'!G79 -> No CT | F81: 1120.130944 | G81: =VLOOKUP(B81,'Output|Fee Based'!B79:H193,7,FALSE) -> 1134.692863
A82: 69 | B82: ='Output|Fee Based'!B80 -> POASPTCAU | C82: ='Output|Fee Based'!C80 -> Customer requests their existing overhead service to be replaced or relocated, e.g.as a result of point of attachment relocation. No material change to load. This includes De-energisation, followed by physical dismantling then reattachment of service and re-energisation. Excludes work on metering equipment (if required) - Single Phase | D82: ='Output|Fee Based'!D80 -> After hours | E82: ='Output|Fee Based'!G80 -> Traffic Control | F82: 2198.656487 | G82: =VLOOKUP(B82,'Output|Fee Based'!B80:H194,7,FALSE) -> 2227.239446
A83: 70 | B83: ='Output|Fee Based'!B81 -> POAMPBU | C83: ='Output|Fee Based'!C81 -> Customer requests their existing overhead service to be replaced or relocated, e.g.as a result of point of attachment relocation. No material change to load. This includes De-energisation, followed by physical dismantling then reattachment of service and re-energisation. Excludes work on metering equipment (if required) - Multi Phase | D83: ='Output|Fee Based'!D81 -> Business hours | E83: ='Output|Fee Based'!G81 -> No CT | F83: 1185.383015 | G83: =VLOOKUP(B83,'Output|Fee Based'!B81:H195,7,FALSE) -> 1200.793223
A84: 71 | B84: ='Output|Fee Based'!B82 -> POAMPTCBU | C84: ='Output|Fee Based'!C82 -> Customer requests their existing overhead service to be replaced or relocated, e.g.as a result of point of attachment relocation. No material change to load. This includes De-energisation, followed by physical dismantling then reattachment of service and re-energisation. Excludes work on metering equipment (if required) - Multi Phase | D84: ='Output|Fee Based'!D82 -> Business hours | E84: ='Output|Fee Based'!G82 -> Traffic Control | F84: 2263.908557 | G84: =VLOOKUP(B84,'Output|Fee Based'!B82:H196,7,FALSE) -> 2293.339806
A85: 72 | B85: ='Output|Fee Based'!B83 -> POAMPAU | C85: ='Output|Fee Based'!C83 -> Customer requests their existing overhead service to be replaced or relocated, e.g.as a result of point of attachment relocation. No material change to load. This includes De-energisation, followed by physical dismantling then reattachment of service and re-energisation. Excludes work on metering equipment (if required) - Multi Phase | D85: ='Output|Fee Based'!D83 -> After hours | E85: ='Output|Fee Based'!G83 -> No CT | F85: 1300.852913 | G85: =VLOOKUP(B85,'Output|Fee Based'!B83:H197,7,FALSE) -> 1317.764253
A86: 73 | B86: ='Output|Fee Based'!B84 -> POAMPTCAU | C86: ='Output|Fee Based'!C84 -> Customer requests their existing overhead service to be replaced or relocated, e.g.as a result of point of attachment relocation. No material change to load. This includes De-energisation, followed by physical dismantling then reattachment of service and re-energisation. Excludes work on metering equipment (if required) - Multi Phase | D86: ='Output|Fee Based'!D84 -> After hours | E86: ='Output|Fee Based'!G84 -> Traffic Control | F86: 2379.378456 | G86: =VLOOKUP(B86,'Output|Fee Based'!B84:H198,7,FALSE) -> 2410.310836
A87: 74 | B87: ='Output|Fee Based'!B85 -> OH2UGSPBU | C87: ='Output|Fee Based'!C85 -> Rearrange connection assets at customer's request - simple (upgrade from overhead to underground where main connection point is in existence). Recovery of the overhead service and connection of the consumer mains to the pre-existing pillar for a customer requested conversion of existing overhead service to underground service - Single Phase | D87: ='Output|Fee Based'!D85 -> Business hours | E87: ='Output|Fee Based'!G85 -> No CT | F87: 779.2902724 | G87: =VLOOKUP(B87,'Output|Fee Based'!B85:H199,7,FALSE) -> 789.4211966
A88: 75 | B88: ='Output|Fee Based'!B86 -> OH2UGSPTBU | C88: ='Output|Fee Based'!C86 -> Rearrange connection assets at customer's request - simple (upgrade from overhead to underground where main connection point is in existence). Recovery of the overhead service and connection of the consumer mains to the pre-existing pillar for a customer requested conversion of existing overhead service to underground service - Single Phase | D88: ='Output|Fee Based'!D86 -> Business hours | E88: ='Output|Fee Based'!G86 -> Traffic Control | F88: 1857.815815 | G88: =VLOOKUP(B88,'Output|Fee Based'!B86:H200,7,FALSE) -> 1881.96778
A89: 76 | B89: ='Output|Fee Based'!B87 -> OH2UGSPAU | C89: ='Output|Fee Based'!C87 -> Rearrange connection assets at customer's request - simple (upgrade from overhead to underground where main connection point is in existence). Recovery of the overhead service and connection of the consumer mains to the pre-existing pillar for a customer requested conversion of existing overhead service to underground service - Single Phase | D89: ='Output|Fee Based'!D87 -> After hours | E89: ='Output|Fee Based'!G87 -> No CT | F89: 856.820615 | G89: =VLOOKUP(B89,'Output|Fee Based'!B87:H201,7,FALSE) -> 867.9594486
A90: 77 | B90: ='Output|Fee Based'!B88 -> OH2UGSPTAU | C90: ='Output|Fee Based'!C88 -> Rearrange connection assets at customer's request - simple (upgrade from overhead to underground where main connection point is in existence). Recovery of the overhead service and connection of the consumer mains to the pre-existing pillar for a customer requested conversion of existing overhead service to underground service - Single Phase | D90: ='Output|Fee Based'!D88 -> After hours | E90: ='Output|Fee Based'!G88 -> Traffic Control | F90: 1964.758275 | G90: =VLOOKUP(B90,'Output|Fee Based'!B88:H202,7,FALSE) -> 1990.300513
A91: 78 | B91: ='Output|Fee Based'!B89 -> OH2UGMPBU | C91: ='Output|Fee Based'!C89 -> Rearrange connection assets at customer's request - simple (upgrade from overhead to underground where main connection point is in existence). Recovery of the overhead service and connection of the consumer mains to the pre-existing pillar for a customer requested conversion of existing overhead service to underground service - Multi Phase | D91: ='Output|Fee Based'!D89 -> Business hours | E91: ='Output|Fee Based'!G89 -> No CT | F91: 932.0922866 | G91: =VLOOKUP(B91,'Output|Fee Based'!B89:H203,7,FALSE) -> 944.2096665
A92: 79 | B92: ='Output|Fee Based'!B90 -> OH2UGMPTBU | C92: ='Output|Fee Based'!C90 -> Rearrange connection assets at customer's request - simple (upgrade from overhead to underground where main connection point is in existence). Recovery of the overhead service and connection of the consumer mains to the pre-existing pillar for a customer requested conversion of existing overhead service to underground service - Multi Phase | D92: ='Output|Fee Based'!D90 -> Business hours | E92: ='Output|Fee Based'!G90 -> Traffic Control | F92: 2010.617829 | G92: =VLOOKUP(B92,'Output|Fee Based'!B90:H204,7,FALSE) -> 2036.756249
A93: 80 | B93: ='Output|Fee Based'!B91 -> OH2UGMPAU | C93: ='Output|Fee Based'!C91 -> Rearrange connection assets at customer's request - simple (upgrade from overhead to underground where main connection point is in existence). Recovery of the overhead service and connection of the consumer mains to the pre-existing pillar for a customer requested conversion of existing overhead service to underground service - Multi Phase | D93: ='Output|Fee Based'!D91 -> After hours | E93: ='Output|Fee Based'!G91 -> No CT | F93: 1060.003857 | G93: =VLOOKUP(B93,'Output|Fee Based'!B91:H205,7,FALSE) -> 1073.784112
A94: 81 | B94: ='Output|Fee Based'!B92 -> OH2UGMPTAU | C94: ='Output|Fee Based'!C92 -> Rearrange connection assets at customer's request - simple (upgrade from overhead to underground where main connection point is in existence). Recovery of the overhead service and connection of the consumer mains to the pre-existing pillar for a customer requested conversion of existing overhead service to underground service - Multi Phase | D94: ='Output|Fee Based'!D92 -> After hours | E94: ='Output|Fee Based'!G92 -> Traffic Control | F94: 2138.529399 | G94: =VLOOKUP(B94,'Output|Fee Based'!B92:H206,7,FALSE) -> 2166.330695
A95: 82 | B95: ='Output|Fee Based'!B93 -> RM1MBU | C95: ='Output|Fee Based'!C93 -> Removal of Meter | D95: ='Output|Fee Based'!D93 -> Business hours | E95: ='Output|Fee Based'!G93 -> No CT | F95: 196.9836115 | G95: =VLOOKUP(B95,'Output|Fee Based'!B93:H207,7,FALSE) -> 199.5444365
A96: 83 | B96: ='Output|Fee Based'!B94 -> RM2MBU | C96: ='Output|Fee Based'!C94 -> Removal of Meter | D96: ='Output|Fee Based'!D94 -> Business hours | E96: ='Output|Fee Based'!G94 -> CT | F96: 196.9836115 | G96: =VLOOKUP(B96,'Output|Fee Based'!B94:H208,7,FALSE) -> 199.5444365
A97: 84 | B97: ='Output|Fee Based'!B95 -> RM1MAU | C97: ='Output|Fee Based'!C95 -> Removal of Meter | D97: ='Output|Fee Based'!D95 -> After hours | E97: ='Output|Fee Based'!G95 -> No CT | F97: 226.3172053 | G97: =VLOOKUP(B97,'Output|Fee Based'!B95:H209,7,FALSE) -> 229.2593728
A98: 85 | B98: ='Output|Fee Based'!B96 -> MIMT1MBU | C98: ='Output|Fee Based'!C96 -> Customer requested Meter Accuracy Testing of type 5-6 meter (physically test meter) | D98: ='Output|Fee Based'!D96 -> Business hours | E98: ='Output|Fee Based'!G96 -> No CT | F98: 536.6197344 | G98: =VLOOKUP(B98,'Output|Fee Based'!B96:H210,7,FALSE) -> 543.5958947
A99: 86 | B99: ='Output|Fee Based'!B97 -> MIMT2MBU | C99: ='Output|Fee Based'!C97 -> Customer requested Meter Accuracy Testing of type 5-6 meter (physically test meter) | D99: ='Output|Fee Based'!D97 -> Business hours | E99: ='Output|Fee Based'!G97 -> CT | F99: 1108.778388 | G99: =VLOOKUP(B99,'Output|Fee Based'!B97:H211,7,FALSE) -> 1123.192721
A100: 87 | B100: ='Output|Fee Based'!B98 -> MIMT1MAU | C100: ='Output|Fee Based'!C98 -> Customer requested Meter Accuracy Testing of type 5-6 meter (physically test meter) | D100: ='Output|Fee Based'!D98 -> After hours | E100: ='Output|Fee Based'!G98 -> No CT | F100: 608.6136783 | G100: =VLOOKUP(B100,'Output|Fee Based'!B98:H212,7,FALSE) -> 616.5257738
A101: 88 | B101: ='Output|Fee Based'!B99 -> MIMT2MAU | C101: ='Output|Fee Based'!C99 -> Customer requested Meter Accuracy Testing of type 5-6 meter (physically test meter) | D101: ='Output|Fee Based'!D99 -> After hours | E101: ='Output|Fee Based'!G99 -> CT | F101: 1259.289998 | G101: =VLOOKUP(B101,'Output|Fee Based'!B99:H213,7,FALSE) -> 1275.661012
A102: 89 | B102: ='Output|Fee Based'!B100 -> MINS1MBU | C102: ='Output|Fee Based'!C100 -> Inspection required to check reported or suspected fault and no fault in meter is found. (no physical meter test) | D102: ='Output|Fee Based'!D100 -> Business hours | E102: ='Output|Fee Based'!G100 -> No CT | F102: 165.5529431 | G102: =VLOOKUP(B102,'Output|Fee Based'!B100:H214,7,FALSE) -> 167.7051633
A103: 90 | B103: ='Output|Fee Based'!B101 -> MINS2MBU | C103: ='Output|Fee Based'!C101 -> Inspection required to check reported or suspected fault and no fault in meter is found. (no physical meter test) | D103: ='Output|Fee Based'!D101 -> Business hours | E103: ='Output|Fee Based'!G101 -> CT | F103: 511.152732 | G103: =VLOOKUP(B103,'Output|Fee Based'!B101:H215,7,FALSE) -> 517.7978164
A104: 91 | B104: ='Output|Fee Based'!B102 -> MINSSUBU | C104: ='Output|Fee Based'!C102 -> A request to conduct a site review of the state of the customer’s metering installation(s) (no physical meter test), i.e. multiple premises. Includes provision of meter data above the minimum requirements and meter inspection to check a reported or suspected fault. Does not include provision of any hardware - First Unit | D104: ='Output|Fee Based'!D102 -> Business hours | E104: ='Output|Fee Based'!G102 -> No CT | F104: 207.2465038 | G104: =VLOOKUP(B104,'Output|Fee Based'!B102:H216,7,FALSE) -> 209.9407484
A105: 92 | B105: ='Output|Fee Based'!B103 -> MINSMUBU | C105: ='Output|Fee Based'!C103 -> A request to conduct a site review of the state of the customer’s metering installation(s) (no physical meter test), i.e. multiple premises. Includes provision of meter data above the minimum requirements and meter inspection to check a reported or suspected fault. Does not include provision of any hardware - Additional Units | D105: ='Output|Fee Based'!D103 -> Business hours | E105: ='Output|Fee Based'!G103 -> No CT | F105: 100.2850939 | G105: =VLOOKUP(B105,'Output|Fee Based'!B103:H217,7,FALSE) -> 101.5888195
A106: 93 | B106: ='Output|Fee Based'!B104 -> MRCLT1MBU | C106: ='Output|Fee Based'!C104 -> A request to make a change from one tariff to another tariff (Controlled Load) | D106: ='Output|Fee Based'!D104 -> Business hours | E106: ='Output|Fee Based'!G104 -> No CT | F106: 164.968855 | G106: =VLOOKUP(B106,'Output|Fee Based'!B104:H218,7,FALSE) -> 167.113482
A107: 94 | B107: ='Output|Fee Based'!B105 -> MRCLT2MBU | C107: ='Output|Fee Based'!C105 -> A request to make a change from one tariff to another tariff (Controlled Load) | D107: ='Output|Fee Based'!D105 -> Business hours | E107: ='Output|Fee Based'!G105 -> CT | F107: 429.6583244 | G107: =VLOOKUP(B107,'Output|Fee Based'!B105:H219,7,FALSE) -> 435.2439657
A108: 95 | B108: ='Output|Fee Based'!B106 -> MRCT1MBU | C108: ='Output|Fee Based'!C106 -> A request to make a change from one tariff to another tariff | D108: ='Output|Fee Based'!D106 -> Business hours | E108: ='Output|Fee Based'!G106 -> No CT | F108: 176.8844131 | G108: =VLOOKUP(B108,'Output|Fee Based'!B106:H220,7,FALSE) -> 179.1839447
A109: 96 | B109: ='Output|Fee Based'!B107 -> MRCT1MAU | C109: ='Output|Fee Based'!C107 -> A request to make a change from one tariff to another tariff | D109: ='Output|Fee Based'!D107 -> After hours | E109: ='Output|Fee Based'!G107 -> No CT | F109: 237.9019469 | G109: =VLOOKUP(B109,'Output|Fee Based'!B107:H221,7,FALSE) -> 240.9947183
A110: 97 | B110: ='Output|Fee Based'!B108 -> MRCT2MBU | C110: ='Output|Fee Based'!C108 -> A request to make a change from one tariff to another tariff | D110: ='Output|Fee Based'!D108 -> Business hours | E110: ='Output|Fee Based'!G108 -> CT | F110: 633.3943434 | G110: =VLOOKUP(B110,'Output|Fee Based'!B108:H222,7,FALSE) -> 641.6285923
A111: 98 | B111: ='Output|Fee Based'!B109 -> MRCL1MBU | C111: ='Output|Fee Based'!C109 -> Change load control equipment (inc. time switch and relay install, modify and removal) | D111: ='Output|Fee Based'!D109 -> Business hours | E111: ='Output|Fee Based'!G109 -> No CT | F111: 105.5617658 | G111: =VLOOKUP(B111,'Output|Fee Based'!B109:H223,7,FALSE) -> 106.9340892
A112: 99 | B112: ='Output|Fee Based'!B110 -> MRCL2MBU | C112: ='Output|Fee Based'!C110 -> Change load control equipment (inc. time switch and relay install, modify and removal) | D112: ='Output|Fee Based'!D110 -> Business hours | E112: ='Output|Fee Based'!G110 -> CT | F112: 429.6583244 | G112: =VLOOKUP(B112,'Output|Fee Based'!B110:H224,7,FALSE) -> 435.2439657
A113: 100 | B113: ='Output|Fee Based'!B111 -> MM1MBU | C113: ='Output|Fee Based'!C111 -> Meter alteration – meter is being relocated or meter wiring altered and requires DNSP to visit site to verify the integrity of the metering equipment | D113: ='Output|Fee Based'!D111 -> Business hours | E113: ='Output|Fee Based'!G111 -> No CT | F113: 226.4205525 | G113: =VLOOKUP(B113,'Output|Fee Based'!B111:H225,7,FALSE) -> 229.3640635
A114: 101 | B114: ='Output|Fee Based'!B112 -> MM2MBU | C114: ='Output|Fee Based'!C112 -> Meter alteration – meter is being relocated or meter wiring altered and requires DNSP to visit site to verify the integrity of the metering equipment | D114: ='Output|Fee Based'!D112 -> Business hours | E114: ='Output|Fee Based'!G112 -> CT | F114: 1149.525591 | G114: =VLOOKUP(B114,'Output|Fee Based'!B112:H226,7,FALSE) -> 1164.469646
A115: 102 | B115: ='Output|Fee Based'!B113 -> SRCRBU | C115: ='Output|Fee Based'!C113 -> Customer requests a check read, transfer read or validation of an estimated read on the meter, may be due to reported error in the meter reading. This is only used to check the accuracy of the meter reading | D115: ='Output|Fee Based'!D113 -> Business hours | E115: ='Output|Fee Based'!G113 -> No CT | F115: 19.93034543 | G115: =VLOOKUP(B115,'Output|Fee Based'!B113:H227,7,FALSE) -> 20.18944377
A116: 103 | B116: ='Output|Fee Based'!B114 -> RNRRBU | C116: ='Output|Fee Based'!C114 -> Site remains active and reading undertaken upon customer move in. Retail requested | D116: ='Output|Fee Based'!D114 -> Business hours | E116: ='Output|Fee Based'!G114 -> No CT | F116: 19.93034543 | G116: =VLOOKUP(B116,'Output|Fee Based'!B114:H228,7,FALSE) -> 20.18944377
A117: 104 | B117: ='Output|Fee Based'!B115 -> SRTRBU | C117: ='Output|Fee Based'!C115 -> Special meter reading excluding final read. Retailer or customer requested | D117: ='Output|Fee Based'!D115 -> Business hours | E117: ='Output|Fee Based'!G115 -> No CT | F117: 19.93034543 | G117: =VLOOKUP(B117,'Output|Fee Based'!B115:H229,7,FALSE) -> 20.18944377
A118: 105 | B118: ='Output|Fee Based'!B116 -> LPDBU | C118: ='Output|Fee Based'!C116 -> Provision of load profile data where available – Retailer requested | D118: ='Output|Fee Based'!D116 -> Business hours | E118: ='Output|Fee Based'!G116 -> No CT | F118: 220.8289051 | G118: =VLOOKUP(B118,'Output|Fee Based'!B116:H230,7,FALSE) -> 223.6997235
A119: 106 | B119: ='Output|Fee Based'!B117 -> AAMRBU | C119: ='Output|Fee Based'!C117 -> Reseal and inspection of meter after customer initiated work | D119: ='Output|Fee Based'!D117 -> Business hours | E119: ='Output|Fee Based'!G117 -> No CT | F119: 145.9603124 | G119: =VLOOKUP(B119,'Output|Fee Based'!B117:H231,7,FALSE) -> 147.8578247
A120: 107 | B120: ='Output|Fee Based'!B118 -> USV1MBU | C120: ='Output|Fee Based'!C118 -> Crews attend site at the customers request and is unable to perform job due to customers fault/fault of a third party. TECHNICAL. Wasted travel time and wasted time at customer's premises - 1 crew | D120: ='Output|Fee Based'!D118 -> Business hours | E120: ='Output|Fee Based'!G118 -> Technical | F120: 141.5965332 | G120: =VLOOKUP(B120,'Output|Fee Based'!B118:H232,7,FALSE) -> 143.4373155
A121: 108 | B121: ='Output|Fee Based'!B119 -> USV2MBU | C121: ='Output|Fee Based'!C119 -> Crews attend site at the customers request and is unable to perform job due to customers fault/fault of a third party. TECHNICAL. Wasted travel time and wasted time at customer's premises - 2 crews | D121: ='Output|Fee Based'!D119 -> Business hours | E121: ='Output|Fee Based'!G119 -> Technical | F121: 283.1930663 | G121: =VLOOKUP(B121,'Output|Fee Based'!B119:H233,7,FALSE) -> 286.8746309
A122: 109 | B122: ='Output|Fee Based'!B120 -> USV1MAU | C122: ='Output|Fee Based'!C120 -> Crews attend site at the customers request and is unable to perform job due to customers fault/fault of a third party. TECHNICAL. Wasted travel time and wasted time at customer's premises - 1 crew | D122: ='Output|Fee Based'!D120 -> After hours | E122: ='Output|Fee Based'!G120 -> Technical | F122: 161.0279083 | G122: =VLOOKUP(B122,'Output|Fee Based'!B120:H234,7,FALSE) -> 163.1213022
A123: 110 | B123: ='Output|Fee Based'!B121 -> USV2MAU | C123: ='Output|Fee Based'!C121 -> Crews attend site at the customers request and is unable to perform job due to customers fault/fault of a third party. TECHNICAL. Wasted travel time and wasted time at customer's premises - 2 crews | D123: ='Output|Fee Based'!D121 -> After hours | E123: ='Output|Fee Based'!G121 -> Technical | F123: 322.0558166 | G123: =VLOOKUP(B123,'Output|Fee Based'!B121:H235,7,FALSE) -> 326.2426045
A124: 111 | B124: ='Output|Fee Based'!B122 -> USVNTBU | C124: ='Output|Fee Based'!C122 -> Crews attend site at the customers request and is unable to perform job due to customers fault/fault of a third party. Wasted travel time. | D124: ='Output|Fee Based'!D122 -> Business hours | E124: ='Output|Fee Based'!G122 -> Non-technical | F124: 102.0950269 | G124: =VLOOKUP(B124,'Output|Fee Based'!B122:H236,7,FALSE) -> 103.422282
A125: 112 | B125: ='Output|Fee Based'!B123 -> USVNTAU | C125: ='Output|Fee Based'!C123 -> Crews attend site at the customers request and is unable to perform job due to customers fault/fault of a third party. Wasted travel time. | D125: ='Output|Fee Based'!D123 -> After hours | E125: ='Output|Fee Based'!G123 -> Non-technical | F125: 102.0950269 | G125: =VLOOKUP(B125,'Output|Fee Based'!B123:H237,7,FALSE) -> 103.422282
A126: 113 | B126: ='Output|Fee Based'!B124 -> NEW_001 | C126: ='Output|Fee Based'!C124 -> Search Fees | D126: ='Output|Fee Based'!D124 -> Business hours | E126: ='Output|Fee Based'!G124 -> No CT | F126: 86.60705426 | G126: =VLOOKUP(B126,'Output|Fee Based'!B124:H238,7,FALSE) -> 63.01589842
A127: 114 | B127: ='Output|Fee Based'!B125 -> NEW_002 | C127: ='Output|Fee Based'!C125 -> Search Fees - Urgent | D127: ='Output|Fee Based'!D125 -> Business hours | E127: ='Output|Fee Based'!G125 -> No CT | F127: 108.2588178 | G127: =VLOOKUP(B127,'Output|Fee Based'!B125:H239,7,FALSE) -> 78.76987303
A128: 115 | B128: ='Output|Fee Based'!B126 -> NEW_003 | C128: ='Output|Fee Based'!C126 -> Retailer requested de-energisation of the customer's premises where the de-energisation can be performed remotely | D128: ='Output|Fee Based'!D126 -> Business hours | E128: ='Output|Fee Based'!G126 -> No CT | F128: 113.8400388 | G128: =VLOOKUP(B128,'Output|Fee Based'!B126:H240,7,FALSE) -> 115.3199813
B133: Table 4 | C133: Non-exhaustive list of ancillary network services provided on a quotation basis
C135: Service Description
A136: 1 | C136: ='Output|Quoted'!B46 -> Connection Application - Small Customer Connections: Project Assessment fees to assess scope and prepare offer - small connections & real estate developers excluding subdivisions
A137: 2 | C137: ='Output|Quoted'!B47 -> Feasibility and concept scoping, including planning and design, for large customer connections
A138: 3 | C138: ='Output|Quoted'!B48 -> Negotiate Terms and Conditions of Network Connection Contract
A139: 4 | C139: ='Output|Quoted'!B49 -> Connection Application - Large Customer Connections
A140: 5 | C140: ='Output|Quoted'!B50 -> Design and construction of connection assets and any relevant augmentation - large customer connections
A141: 6 | C141: ='Output|Quoted'!B51 -> Switching and commissioning for major customer connections, and real estate developments, where construction activities are undertaken by a 3rd party
A142: 7 | C142: ='Output|Quoted'!B52 -> Design Construct Transfer Specifications and/or Design audits for large customer connections and real estate developments where undertaken by 3rd party
A143: 8 | C143: ='Output|Quoted'!B53 -> Embedded generation - Application and compliance review
A144: 9 | C144: ='Output|Quoted'!B54 -> Embedded generation - Site specific enquiry response
A145: 10 | C145: ='Output|Quoted'!B55 -> Embedded generation - services associated with new technology
A146: 11 | C146: ='Output|Quoted'!B56 -> LV CT Drawing Assessments
A147: 12 | C147: ='Output|Quoted'!B57 -> Design application fee – Subdivision and Rate 2 public lighting
A148: 13 | C148: ='Output|Quoted'!B58 -> Final audit fee - Subdivision and Rate 2 public lighting
A149: 14 | C149: ='Output|Quoted'!B59 -> Design lodgement fee – Rate 3 public lighting
A150: 15 | C150: ='Output|Quoted'!B60 -> Subdivision switching fees
A151: 16 | C151: ='Output|Quoted'!B61 -> Subdivision live line activities
A152: 17 | C152: ='Output|Quoted'!B62 -> Design and installation of public lighting glare shields
A153: 18 | C153: ='Output|Quoted'!B63 -> Installation of public lighting smart controllers
A154: 19 | C154: ='Output|Quoted'!B64 -> Supply enhancements - Large Customer Connections
A155: 20 | C155: ='Output|Quoted'!B65 -> Customer requested review (e.g. static or dynamic import/export limits)
A156: 21 | C156: ='Output|Quoted'!B66 -> Additional Connection enquiry advice - pre or post application
A157: 22 | C157: ='Output|Quoted'!B67 -> Supply enhancements - Small Customer Connections: Uneconomical connections above the minimum price technically acceptable
A158: 23 | C158: ='Output|Quoted'!B68 -> Enhanced Connection Services - Small Customer: Dedicated feeders / assets / N-1
A159: 24 | C159: ='Output|Quoted'!B69 -> Enhanced Connection Services - Large Customer: Dedicated feeders / assets / N-1
A160: 25 | C160: ='Output|Quoted'!B70 -> Public lighting Rate 1 where costs are above the standard building block allowances
A161: 26 | C161: ='Output|Quoted'!B71 -> Rate 2 public lighting design and construction
A162: 27 | C162: ='Output|Quoted'!B72 -> Network stability assessment, validation, and commissioning services
A163: 28 | C163: ='Output|Quoted'!B73 -> Costs associated with the accreditation of service providers
A164: 29 | C164: ='Output|Quoted'!B74 -> Costs associated with the assessment of non-standard materials
A165: 30 | C165: ='Output|Quoted'!B75 -> Investigations (e.g. voltage investigation)
A166: 31 | C166: ='Output|Quoted'!B76 -> Design, switching and audit costs for Make Ready Works associated with NBN works
A167: 32 | C167: ='Output|Quoted'!B77 -> Design assessment of 3rd party cathodic protection systems connected to EQL network
A168: 33 | C168: ='Output|Quoted'!B78 -> Design assessment costs associated with NBN works Aerial Reticulation Plans (Fibre)
A169: 34 | C169: ='Output|Quoted'!B79 -> Chapter 5 application services (e.g. detailed response to enquiry, application)
A170: 35 | C170: ='Output|Quoted'!B80 -> Provide technical and site-specific connection advice
A171: 36 | C171: ='Output|Quoted'!B81 -> Development of Customer requested and/or non-standard technical solutions (e.g. standards development, product deployment)
A172: 37 | C172: ='Output|Quoted'!B82 -> Feasibility and concept scoping, including planning and design, for small customer connections (Enquiry)
A173: 38 | C173: ='Output|Quoted'!B83 -> Installation of Smart Controllers or Network Devices for an existing Connection
A174: 39 | C174: ='Output|Quoted'!B84 -> Network Safety Services
A175: 40 | C175: ='Output|Quoted'!B85 -> Customer requested planned interruptions
A176: 41 | C176: ='Output|Quoted'!B86 -> Customer, retailer or third party requested appointments
A177: 42 | C177: ='Output|Quoted'!B87 -> Removal/rearrangement of network assets
A178: 43 | C178: ='Output|Quoted'!B88 -> Network related property services
A179: 44 | C179: ='Output|Quoted'!B89 -> Authorisation and approval of third-party service providers design and works
A180: 45 | C180: ='Output|Quoted'!B90 -> Inspection and auditing services
A181: 46 | C181: ='Output|Quoted'!B91 -> Sale of approved materials or equipment
A182: 47 | C182: ='Output|Quoted'!B92 -> Provision of training to third parties for network related access
A183: 48 | C183: ='Output|Quoted'!B93 -> Provision of services for approved unmetered supplies
A184: 49 | C184: ='Output|Quoted'!B94 -> Auxiliary Public Lighting Services
A185: 50 | C185: ='Output|Quoted'!B95 -> Search Fees - non-standard search
A187: End

Sheet Cover page
G2: Energex - ACS Ancillary Services Pricing Model
G3: 2025-30

Sheet Index
B1: AER ANS Forecast Model
B2: =IFERROR(MID(CELL("filename",A1),FIND("]",CELL("filename",A1))+1,255),"") -> Index | C2: Overall Check: | D2: ='Model Validation'!C4 -> 1
B5: Worksheet summary
B7: Worksheet name | C7: Check: | F7: Input required? | H7: Description
B8: ='Output|Fee Based'!C2 -> Output|Fee Based | C8: ='Model Validation'!C8 -> 1 | F8: N | H8: Contains caclulated price and X factors for fee based services.
B9: ='Output|Quoted'!B2 -> Output|Quoted | C9: ='Model Validation'!C9 -> 0 | F9: N | H9: Contains caclulated labour rates and X factors for quoted services.
B10: ='Input|Setup'!B2 -> Input|Setup | C10: ='Model Validation'!C10 -> 0 | F10: Y | H10: Sets up model with relevant years and output categories.
B11: ='Input|Escalations'!B2 -> Input|Escalations | C11: ='Model Validation'!C11 -> 0 | F11: Y | H11: Sets up the inflation and labour escalations.
B12: ='Input|Indirect Cost Rates'!B2 -> Input|Indirect Cost Rates | C12: ='Model Validation'!C12 -> NA | F12: Y | H12: Input for indirect cost rates.
B13: ='Input|Labour Rates'!B2 -> Input|Labour Rates | C13: ='Model Validation'!C13 -> 0 | F13: Y | H13: Input for labour cost components.
B14: ='Input|Fee Based|EGX'!B2 -> Input|Fee Based|EGX | C14: ='Model Validation'!C14 -> 0 | F14: Y | H14: Input for fee based costs and service information.
B15: ='Input|Fee Based Mapping'!B2 -> Input|Fee Based Mapping | C15: ='Model Validation'!C15 -> 1 | F15: Y | H15: Aligns historical and proposed fee based services information.
B16: ='Calc|Labour Rates'!B2 -> Calc|Labour Rates | C16: ='Model Validation'!C16 -> NA | F16: N | H16: Calculation tables for labour rates.
B17: ='Calc|Fee Based'!B2 -> Calc|Fee Based | C17: ='Model Validation'!C17 -> 0 | F17: N | H17: Calculation tables for fee based services prices.
B18: ='Model Validation'!B2 -> Model Validation | C18: ='Model Validation'!C18 -> NA | F18: N | H18: Checks and traces possible input errors.
B21: Table summary
B23: Name | C23: Tab | F23: Input required? | H23: Description
B24: ='Output|Fee Based'!B5 -> 1.1 X-factors for each year of 2025-26 to 2029-30 regulatory period, (per cent) | C24: =B8 -> Output|Fee Based | F24: N | H24: Contains X-factors to apply to fee-based services for years 2-5 of the forthcoming regulatory control period.
B25: ='Output|Fee Based'!B10 -> 1.2 Fee based services for 2025-26 | C25: =$C$24 -> Output|Fee Based | F25: N | H25: Contains the calculated price for each fee based servce, in nominal terms, for year 1 of the forthcoming regulatory control period.
B26: ='Output|Quoted'!B5 -> 2.1 X-factors for each year of 2025-26 to 2029-30 regulatory period, (per cent) | C26: =B9 -> Output|Quoted | F26: N | H26: Contains X-factors to apply to the labour rates used to provide quoted services for years 2-5 of the forthcoming regulatory control period.
B27: ='Output|Quoted'!B10 -> 2.2 Labour rates for 2025-26, ($2025-26) | C27: =$C$26 -> Output|Quoted | F27: N | H27: Contains the calculated labour rate for each labour type used to provide quoted servces, in nominal terms, for year 1 of the forthcoming regulatory control period.
B28: ='Output|Quoted'!B44 -> 2.3 List of quoted services for 2025-26 to 2029-30 regulatory period | C28: =$C$26 -> Output|Quoted | F28: N | H28: Lists the quoted services the distributor proposes to provide in the forthcoming regulatory control period.
B29: ='Input|Setup'!A5 & " " & 'Input|Setup'!B5 -> 3.1 Years setup | C29: ='Input|Setup'!B2 -> Input|Setup | F29: Y | H29: Please choose the first year of the forthcoming regulatory period and the base year for inputs.
B30: ='Input|Setup'!A10 & " " & 'Input|Setup'!B10 -> 3.2 Current regulatory period | C30: =$C$29 -> Input|Setup | F30: N | H30: Contains the regulatory years of the current regulatory control period.
B31: ='Input|Setup'!D10 & " " & 'Input|Setup'!E10 -> 3.3 Forecast regulatory period | C31: =$C$29 -> Input|Setup | F31: N | H31: Contains the regulatory years of the forthcoming regulatory control period.
B32: ='Input|Setup'!A18 & " " & 'Input|Setup'!B18 -> 3.4 Used for quoted service? | C32: =$C$29 -> Input|Setup | F32: N | H32: Contains reference to drop down lists for use in 'Input|Labour rates' to denote whether the labour category is to be used in the provision of quoted services.
B33: ='Input|Setup'!D18 & " " & 'Input|Setup'!E18 -> 3.5 Conversions | C33: =$C$29 -> Input|Setup | F33: Optional | H33: Lists figures used for conversions in formulas.
B34: ='Input|Setup'!A24 & " " & 'Input|Setup'!B24 -> 3.6 Hours | C34: Input|Setup | F34: Y | H34: Please enter time periods that would result in different rates applied for the same service or labour type (e.g. business hours, after hours).
B35: ='Input|Setup'!A30 & " " & 'Input|Setup'!B30 -> 3.7 Labour type | C35: Input|Setup | F35: Y | H35: Please enter the specific labour types used to provide fee based and quoted services.
B36: ='Input|Setup'!D30 & " " & 'Input|Setup'!E30 -> 3.8 Service Grouping | C36: Input|Setup | F36: Y | H36: Please enter the major service categories for fee based services (e.g. basic connection services, network safety services, auxiliary metering services).
B37: ='Input|Setup'!G30 & " " & 'Input|Setup'!H30 -> 3.9 Tariff class grouping | C37: Input|Setup | F37: Optional | H37: Please enter distributor-specific categories for fee-based services, if required.
B38: ='Input|Setup'!G40 & " " & 'Input|Setup'!H40 -> 3.10 Permutations | C38: Input|Setup | F38: Optional | H38: Please enter distributor-specific categories for fee-based services, if required.
B39: ='Input|Escalations'!A5 & " " & 'Input|Escalations'!B5 -> 4.1 Escalation setup | C39: ='Input|Escalations'!B2 -> Input|Escalations | F39: N | H39: Contains the first year of the forthcoming regulatory control period and the nominated base year. These are used in calculations in the 'Input|Escalation' sheet.
B40: ='Input|Escalations'!A13 & " " & 'Input|Escalations'!B13 -> 4.2 Inflation | C40: =$C$39 -> Input|Escalations | F40: Y | H40: Please enter ABS index, all groups CPI inflation series A2325846C, up to latest available December. Please enter forecast CPI, including source, for other years.
B41: ='Input|Escalations'!A24 & " " & 'Input|Escalations'!B24 -> 4.3 Real price escalation | C41: =$C$39 -> Input|Escalations | F41: Optional | H41: Calculates X factor (real wage price escalation). Other real escalators are set to equal X factor by default, but can be amended by distributors.
B42: ='Input|Escalations'!A34 & " " & 'Input|Escalations'!B34 -> 4.3.1 Real wage price escalation | C42: =$C$39 -> Input|Escalations | F42: Y | H42: Please enter sources and forecasts for real wage price escalation, including weightings for each source, in the green input cells. Grey cells will calculate the forecast real wage price escalation.
B43: ='Input|Escalations'!A55& " " & 'Input|Escalations'!B55 -> 4.3.2 Real price escalation (non-wage) | C43: =$C$39 -> Input|Escalations | F43: N | H43: Contains the calculated forecast real escalation for non-wage inputs.
B44: ='Input|Indirect Cost Rates'!A5 & " " & 'Input|Indirect Cost Rates'!B5 -> 5.1 On costs | C44: ='Input|Indirect Cost Rates'!B2 -> Input|Indirect Cost Rates | F44: Y | H44: Please enter relevant on-cost rates. Distributors may enter a total on-cost rate only. Alternatively, disaggregated on-cost rates may be provided with the total on-cost rate calculated in row 19, as required.
B45: ='Input|Indirect Cost Rates'!A22 & " " & 'Input|Indirect Cost Rates'!B22 -> 5.2 Overhead | C45: =$C$44 -> Input|Indirect Cost Rates | F45: Y | H45: Please enter rates for network overhead and corporate overhead. Where relevant, distributors may enter other overhead rates (e.g. a total overhead rate).
B46: ='Input|Indirect Cost Rates'!A34 & " " & 'Input|Indirect Cost Rates'!B34 -> 5.3 Margins | C46: =$C$44 -> Input|Indirect Cost Rates | F46: Y | H46: Please enter margin rates as required.
B47: ='Input|Indirect Cost Rates'!A43 & " " & 'Input|Indirect Cost Rates'!B43 -> 5.4 Tax recovery rate | C47: =$C$44 -> Input|Indirect Cost Rates | F47: Y | H47: Please enter tax recovery rates as required.
B48: ='Input|Labour Rates'!B7 -> 6.1 Labour rates | C48: ='Input|Labour Rates'!B2 -> Input|Labour Rates | F48: Y | H48: Please enter required information regarding labour rates (in base year dollar terms) used to provide ANS. For on-cost and overhead rates, please use formulas to reference tables 5.1 and 5.2, respectively.
B49: ='Input|Labour Rates'!K7 -> 6.2 Notes and sources for "Other costs" | C49: =$C$48 -> Input|Labour Rates | F49: Y | H49: Please describe "Other costs" used to derive total labour rates, where appropriate, and provide sources.
B50: ='Input|Labour Rates'!B54 -> 6.3 List of quoted services for 2025-26 to 2029-30 regulatory period | C50: =$C$48 -> Input|Labour Rates | F50: Y | H50: Please list the quoted services the distributor proposes to provide in the forthcoming regulatory control period.
B51: ='Input|Fee Based|EGX'!B7 -> 7.1 Fee based services | C51: ='Input|Fee Based|EGX'!B2 -> Input|Fee Based|EGX | F51: Y | H51: Please list the name and service code of the fee-based services, including hours provided and general service category.
B52: ='Input|Fee Based|EGX'!I7 -> 7.2 Service cost build up - DIRECT COSTS, $'s ($2023-24) | C52: =$C$51 -> Input|Fee Based|EGX | F52: Y | H52: Please input the direct costs in base year dollar terms incurred for providinng each fee based service, and other requested information such as the total time in minutes each labour type is required to provide the service.
B53: ='Input|Fee Based|EGX'!AV7 -> 7.3 Service cost build - INDIRECT COSTS (per cent) | C53: =$C$51 -> Input|Fee Based|EGX | F53: Y | H53: Please use formulas to reference in the 'Input|Indirect Cost Rates' sheet as appropriate.
B54: ='Input|Fee Based|EGX'!BD7 -> 7.4 Notes and sources for "Other costs" | C54: =$C$51 -> Input|Fee Based|EGX | F54: Y | H54: Please describe "Other costs" used to derive the year 1 price for fee based services, where appropriate, and provide sources.
B55: ='Input|Fee Based Mapping'!B9 -> 8.1 Current regulatory period - Fee based services | C55: ='Input|Fee Based Mapping'!B2 -> Input|Fee Based Mapping | F55: Y | H55: Please enter approved fee based services and prices (in nominal dollar terms) for the current regulatory control perod (including the final decision prices in column K). Please align with the fee based services for the forthcoming regulatoru control period in table 8.2.
B56: ='Input|Fee Based Mapping'!S9 -> 8.2 Forecast regulatory period - Fee based services | C56: =$C$55 -> Input|Fee Based Mapping | F56: N | H56: Includes the year 1 price for fee based services (from 'Calc|Fee Based' sheet), then calculates prices for years 2 to 5 of the forthcoming regulatory control period using forecast inflation and X factors.
B57: ='Calc|Labour Rates'!B7 -> 9.1 Year 1 labour rates | C57: ='Calc|Labour Rates'!B2 -> Calc|Labour Rates | F57: N | H57: Calculates labour rate for each labour type used to provide quoted servces, in nominal terms, for year 1 of the forthcoming regulatory control period.
B58: ='Calc|Labour Rates'!G7 -> 9.2 Year 1 labour rates build up, $'s ($2025-26) | C58: =$C$57 -> Calc|Labour Rates | F58: N | H58: Calculates labour rate for each labour type used to provide quoted servces for year 1 of the forthcoming regulatory control period.
B59: ='Calc|Fee Based'!B6 -> 10.1 Fee based services | C59: ='Calc|Fee Based'!$B$2 -> Calc|Fee Based | F59: N | H59: Calculates price for each fee based servce, in nominal terms, for year 1 of the forthcoming regulatory control period.
B60: ='Calc|Fee Based'!J6 -> 10.2 Year 1 service cost build up - DIRECT COSTS, $'s ($2025-26) | C60: =$C$59 -> Calc|Fee Based | F60: N | H60: Calculates the direct costs for each fee based service, in base year dollar terms, for year 1 of the forthcoming regulatory control period.
B61: ='Calc|Fee Based'!AX6 -> 10.3 Year 1 Service cost build up - INDIRECT COSTS, $'s ($2025-26) | C61: =$C$59 -> Calc|Fee Based | F61: N | H61: Calculates the indirect costs for each fee based service, in base year dollar terms, for year 1 of the forthcoming regulatory control period.

Sheet Output|Fee Based
C1: =Index!B1 -> AER ANS Forecast Model | D1: Key: | E1: Input | H1: Sheet Validation | I1: ='Model Validation'!C8 -> 1
C2: =MID(CELL("filename",A1),FIND("]",CELL("filename",A1))+1,255) -> Output|Fee Based | E2: Formula
D4: =IF(D7='Input|Escalations'!J27,0,1) -> 0 | E4: =IF(E7='Input|Escalations'!K27,0,1) -> 0 | F4: =IF(F7='Input|Escalations'!L27,0,1) -> 0 | G4: =IF(G7='Input|Escalations'!M27,0,1) -> 0
B5: =IFERROR("1.1 X-factors for each year of "&'Input|Setup'!$E$11&" to "&'Input|Setup'!$E$15&" regulatory period, (per cent)","") -> 1.1 X-factors for each year of 2025-26 to 2029-30 regulatory period, (per cent)
C6: ='Input|Setup'!$E$11 -> 2025-26 | D6: ='Input|Setup'!$E$12 -> 2026-27 | E6: ='Input|Setup'!$E$13 -> 2027-28 | F6: ='Input|Setup'!$E$14 -> 2028-29 | G6: ='Input|Setup'!$E$15 -> 2029-30
D7: ='Input|Escalations'!J27 -> -0.009861100793 | E7: ='Input|Escalations'!K27 -> -0.008443651806 | F7: ='Input|Escalations'!L27 -> -0.01051247269 | G7: ='Input|Escalations'!M27 -> -0.01236745202
B10: =IFERROR("1.2 Fee based services for "&'Input|Setup'!$E$11,"") -> 1.2 Fee based services for 2025-26
B11: ='Calc|Fee Based'!B9 -> Service code | C11: ='Calc|Fee Based'!C9 -> Service | D11: ='Input|Setup'!B24 -> Hours | E11: ='Input|Setup'!E30 -> Service Grouping | F11: ='Input|Setup'!H30 -> Tariff class grouping | G11: ='Input|Setup'!H40 -> Permutations | H11: ="Price ($" & 'Input|Setup'!$E$8 & ")" -> Price ($2025-26)
A12: 1 | B12: ='Calc|Fee Based'!B10 -> DNV1MBU | C12: ='Calc|Fee Based'!C10 -> Retailer requested de-energisation of the customer's premises where the de-energisation can be performed at the premises ie by a method other than main switch seal (eg pole, pillar, transformer or meter isolation link) | D12: ='Calc|Fee Based'!D10 -> Business hours | E12: ='Calc|Fee Based'!E10 -> De-energisation | F12: ='Calc|Fee Based'!F10 -> Connection application and management services | G12: ='Calc|Fee Based'!G10 -> No CT | H12: 129.261967 | I12: =IF(AND(B12='Calc|Fee Based'!B10,C12='Calc|Fee Based'!C10,D12='Calc|Fee Based'!D10,E12='Calc|Fee Based'!E10, F12='Calc|Fee Based'!F10,G12='Calc|Fee Based'!G10, H12='Calc|Fee Based'!H10),0,1) -> 0
A13: 2 | B13: ='Calc|Fee Based'!B11 -> DNV2MBU | C13: ='Calc|Fee Based'!C11 -> Retailer requested de-energisation of the customer's premises where the de-energisation can be performed at the premises ie by a method other than main switch seal (eg pole, pillar, transformer or meter isolation link) | D13: ='Calc|Fee Based'!D11 -> Business hours | E13: ='Calc|Fee Based'!E11 -> De-energisation | F13: ='Calc|Fee Based'!F11 -> Connection application and management services | G13: ='Calc|Fee Based'!G11 -> CT | H13: 493.2592575 | I13: =IF(AND(B13='Calc|Fee Based'!B11,C13='Calc|Fee Based'!C11,D13='Calc|Fee Based'!D11,E13='Calc|Fee Based'!E11, F13='Calc|Fee Based'!F11,G13='Calc|Fee Based'!G11, H13='Calc|Fee Based'!H11),0,1) -> 0
A14: 3 | B14: ='Calc|Fee Based'!B12 -> DN$1MBU | C14: ='Calc|Fee Based'!C12 -> Retailer requested de-energisation of the customer's premises where the de-energisation can be performed at the premises ie by a method other than main switch seal (eg pole, pillar, transformer or meter isolation link) | D14: ='Calc|Fee Based'!D12 -> Business hours | E14: ='Calc|Fee Based'!E12 -> De-energisation | F14: ='Calc|Fee Based'!F12 -> Connection application and management services | G14: ='Calc|Fee Based'!G12 -> No Payment No CT | H14: 181.1605313 | I14: =IF(AND(B14='Calc|Fee Based'!B12,C14='Calc|Fee Based'!C12,D14='Calc|Fee Based'!D12,E14='Calc|Fee Based'!E12, F14='Calc|Fee Based'!F12,G14='Calc|Fee Based'!G12, H14='Calc|Fee Based'!H12),0,1) -> 0
A15: 4 | B15: ='Calc|Fee Based'!B13 -> DN$2MBU | C15: ='Calc|Fee Based'!C13 -> Retailer requested de-energisation of the customer's premises where the de-energisation can be performed at the premises ie by a method other than main switch seal (eg pole, pillar, transformer or meter isolation link) | D15: ='Calc|Fee Based'!D13 -> Business hours | E15: ='Calc|Fee Based'!E13 -> De-energisation | F15: ='Calc|Fee Based'!F13 -> Connection application and management services | G15: ='Calc|Fee Based'!G13 -> No Payment CT | H15: 493.2592575 | I15: =IF(AND(B15='Calc|Fee Based'!B13,C15='Calc|Fee Based'!C13,D15='Calc|Fee Based'!D13,E15='Calc|Fee Based'!E13, F15='Calc|Fee Based'!F13,G15='Calc|Fee Based'!G13, H15='Calc|Fee Based'!H13),0,1) -> 0
A16: 5 | B16: ='Calc|Fee Based'!B14 -> DNMS1MBU | C16: ='Calc|Fee Based'!C14 -> Retailer requested de-energisation (MSS) | D16: ='Calc|Fee Based'!D14 -> Business hours | E16: ='Calc|Fee Based'!E14 -> De-energisation | F16: ='Calc|Fee Based'!F14 -> Connection application and management services | G16: ='Calc|Fee Based'!G14 -> No CT | H16: 134.7235996 | I16: =IF(AND(B16='Calc|Fee Based'!B14,C16='Calc|Fee Based'!C14,D16='Calc|Fee Based'!D14,E16='Calc|Fee Based'!E14, F16='Calc|Fee Based'!F14,G16='Calc|Fee Based'!G14, H16='Calc|Fee Based'!H14),0,1) -> 0
A17: 6 | B17: ='Calc|Fee Based'!B15 -> DNS$1MBU | C17: ='Calc|Fee Based'!C15 -> Retailer requested de-energisation (MSS) | D17: ='Calc|Fee Based'!D15 -> Business hours | E17: ='Calc|Fee Based'!E15 -> De-energisation | F17: ='Calc|Fee Based'!F15 -> Connection application and management services | G17: ='Calc|Fee Based'!G15 -> No Payment No CT | H17: 175.2437179 | I17: =IF(AND(B17='Calc|Fee Based'!B15,C17='Calc|Fee Based'!C15,D17='Calc|Fee Based'!D15,E17='Calc|Fee Based'!E15, F17='Calc|Fee Based'!F15,G17='Calc|Fee Based'!G15, H17='Calc|Fee Based'!H15),0,1) -> 0
A18: 7 | B18: ='Calc|Fee Based'!B16 -> RN$1MBU | C18: ='Calc|Fee Based'!C16 -> Retailer requests a re-energisation of the customer's premises where the customer has not paid their electricity account. No visual required | D18: ='Calc|Fee Based'!D16 -> Business hours | E18: ='Calc|Fee Based'!E16 -> Re-energisation | F18: ='Calc|Fee Based'!F16 -> Connection application and management services | G18: ='Calc|Fee Based'!G16 -> No Payment No CT | H18: 206.0900765 | I18: =IF(AND(B18='Calc|Fee Based'!B16,C18='Calc|Fee Based'!C16,D18='Calc|Fee Based'!D16,E18='Calc|Fee Based'!E16, F18='Calc|Fee Based'!F16,G18='Calc|Fee Based'!G16, H18='Calc|Fee Based'!H16),0,1) -> 0
A19: 8 | B19: ='Calc|Fee Based'!B17 -> RN$2MBU | C19: ='Calc|Fee Based'!C17 -> Retailer requests a re-energisation of the customer's premises where the customer has not paid their electricity account. No visual required | D19: ='Calc|Fee Based'!D17 -> Business hours | E19: ='Calc|Fee Based'!E17 -> Re-energisation | F19: ='Calc|Fee Based'!F17 -> Connection application and management services | G19: ='Calc|Fee Based'!G17 -> No Payment CT | H19: 217.9237033 | I19: =IF(AND(B19='Calc|Fee Based'!B17,C19='Calc|Fee Based'!C17,D19='Calc|Fee Based'!D17,E19='Calc|Fee Based'!E17, F19='Calc|Fee Based'!F17,G19='Calc|Fee Based'!G17, H19='Calc|Fee Based'!H17),0,1) -> 0
A20: 9 | B20: ='Calc|Fee Based'!B18 -> RN$1MAU | C20: ='Calc|Fee Based'!C18 -> Retailer requests a re-energisation of the customer's premises where the customer has not paid their electricity account. No visual required | D20: ='Calc|Fee Based'!D18 -> After hours | E20: ='Calc|Fee Based'!E18 -> Re-energisation | F20: ='Calc|Fee Based'!F18 -> Connection application and management services | G20: ='Calc|Fee Based'!G18 -> No Payment No CT | H20: 363.7957101 | I20: =IF(AND(B20='Calc|Fee Based'!B18,C20='Calc|Fee Based'!C18,D20='Calc|Fee Based'!D18,E20='Calc|Fee Based'!E18, F20='Calc|Fee Based'!F18,G20='Calc|Fee Based'!G18, H20='Calc|Fee Based'!H18),0,1) -> 0
A21: 10 | B21: ='Calc|Fee Based'!B19 -> RNS1MBU | C21: ='Calc|Fee Based'!C19 -> Retailer requests a re-energisation for the customer's premises following a main switch seal (no visual required) | D21: ='Calc|Fee Based'!D19 -> Business hours | E21: ='Calc|Fee Based'!E19 -> Re-energisation | F21: ='Calc|Fee Based'!F19 -> Connection application and management services | G21: ='Calc|Fee Based'!G19 -> No CT | H21: 123.1261608 | I21: =IF(AND(B21='Calc|Fee Based'!B19,C21='Calc|Fee Based'!C19,D21='Calc|Fee Based'!D19,E21='Calc|Fee Based'!E19, F21='Calc|Fee Based'!F19,G21='Calc|Fee Based'!G19, H21='Calc|Fee Based'!H19),0,1) -> 0
A22: 11 | B22: ='Calc|Fee Based'!B20 -> RNS1MAU | C22: ='Calc|Fee Based'!C20 -> Retailer requests a re-energisation for the customer's premises following a main switch seal (no visual required) | D22: ='Calc|Fee Based'!D20 -> After hours | E22: ='Calc|Fee Based'!E20 -> Re-energisation | F22: ='Calc|Fee Based'!F20 -> Connection application and management services | G22: ='Calc|Fee Based'!G20 -> No CT | H22: 181.897855 | I22: =IF(AND(B22='Calc|Fee Based'!B20,C22='Calc|Fee Based'!C20,D22='Calc|Fee Based'!D20,E22='Calc|Fee Based'!E20, F22='Calc|Fee Based'!F20,G22='Calc|Fee Based'!G20, H22='Calc|Fee Based'!H20),0,1) -> 0
A23: 12 | B23: ='Calc|Fee Based'!B21 -> RNS$1MBU | C23: ='Calc|Fee Based'!C21 -> Retailer requests a re-energisation for the customer's premises following a main switch seal (no visual required) | D23: ='Calc|Fee Based'!D21 -> Business hours | E23: ='Calc|Fee Based'!E21 -> Re-energisation | F23: ='Calc|Fee Based'!F21 -> Connection application and management services | G23: ='Calc|Fee Based'!G21 -> No Payment No CT | H23: 206.0900765 | I23: =IF(AND(B23='Calc|Fee Based'!B21,C23='Calc|Fee Based'!C21,D23='Calc|Fee Based'!D21,E23='Calc|Fee Based'!E21, F23='Calc|Fee Based'!F21,G23='Calc|Fee Based'!G21, H23='Calc|Fee Based'!H21),0,1) -> 0
A24: 13 | B24: ='Calc|Fee Based'!B22 -> RNV1MBU | C24: ='Calc|Fee Based'!C22 -> Retailer or metering coordinator/provider requests a visual examination upon re-energisation (physical or remote) of the customer’s premises. | D24: ='Calc|Fee Based'!D22 -> Business hours | E24: ='Calc|Fee Based'!E22 -> Re-energisation | F24: ='Calc|Fee Based'!F22 -> Connection application and management services | G24: ='Calc|Fee Based'!G22 -> No CT | H24: 183.8314505 | I24: =IF(AND(B24='Calc|Fee Based'!B22,C24='Calc|Fee Based'!C22,D24='Calc|Fee Based'!D22,E24='Calc|Fee Based'!E22, F24='Calc|Fee Based'!F22,G24='Calc|Fee Based'!G22, H24='Calc|Fee Based'!H22),0,1) -> 0
A25: 14 | B25: ='Calc|Fee Based'!B23 -> RNV2MBU | C25: ='Calc|Fee Based'!C23 -> Retailer or metering coordinator/provider requests a visual examination upon re-energisation (physical or remote) of the customer’s premises. | D25: ='Calc|Fee Based'!D23 -> Business hours | E25: ='Calc|Fee Based'!E23 -> Re-energisation | F25: ='Calc|Fee Based'!F23 -> Connection application and management services | G25: ='Calc|Fee Based'!G23 -> CT | H25: 332.2783747 | I25: =IF(AND(B25='Calc|Fee Based'!B23,C25='Calc|Fee Based'!C23,D25='Calc|Fee Based'!D23,E25='Calc|Fee Based'!E23, F25='Calc|Fee Based'!F23,G25='Calc|Fee Based'!G23, H25='Calc|Fee Based'!H23),0,1) -> 0
A26: 15 | B26: ='Calc|Fee Based'!B24 -> RNV1MAU | C26: ='Calc|Fee Based'!C24 -> Retailer or metering coordinator/provider requests a visual examination upon re-energisation (physical or remote) of the customer’s premises. | D26: ='Calc|Fee Based'!D24 -> After hours | E26: ='Calc|Fee Based'!E24 -> Re-energisation | F26: ='Calc|Fee Based'!F24 -> Connection application and management services | G26: ='Calc|Fee Based'!G24 -> No CT | H26: 240.5745825 | I26: =IF(AND(B26='Calc|Fee Based'!B24,C26='Calc|Fee Based'!C24,D26='Calc|Fee Based'!D24,E26='Calc|Fee Based'!E24, F26='Calc|Fee Based'!F24,G26='Calc|Fee Based'!G24, H26='Calc|Fee Based'!H24),0,1) -> 0
A27: 16 | B27: ='Calc|Fee Based'!B25 -> RNV2MAU | C27: ='Calc|Fee Based'!C25 -> Retailer or metering coordinator/provider requests a visual examination upon re-energisation (physical or remote) of the customer’s premises. | D27: ='Calc|Fee Based'!D25 -> After hours | E27: ='Calc|Fee Based'!E25 -> Re-energisation | F27: ='Calc|Fee Based'!F25 -> Connection application and management services | G27: ='Calc|Fee Based'!G25 -> CT | H27: 598.5026198 | I27: =IF(AND(B27='Calc|Fee Based'!B25,C27='Calc|Fee Based'!C25,D27='Calc|Fee Based'!D25,E27='Calc|Fee Based'!E25, F27='Calc|Fee Based'!F25,G27='Calc|Fee Based'!G25, H27='Calc|Fee Based'!H25),0,1) -> 0
A28: 17 | B28: ='Calc|Fee Based'!B26 -> RN$V1MBU | C28: ='Calc|Fee Based'!C26 -> Retailer or metering coordinator/provider requests a visual examination upon re-energisation (physical) of the customer’s premises where the customer has not paid their electricity account. NMI de-energised > 30 days. | D28: ='Calc|Fee Based'!D26 -> Business hours | E28: ='Calc|Fee Based'!E26 -> Re-energisation | F28: ='Calc|Fee Based'!F26 -> Connection application and management services | G28: ='Calc|Fee Based'!G26 -> No Payment No CT | H28: 188.82964 | I28: =IF(AND(B28='Calc|Fee Based'!B26,C28='Calc|Fee Based'!C26,D28='Calc|Fee Based'!D26,E28='Calc|Fee Based'!E26, F28='Calc|Fee Based'!F26,G28='Calc|Fee Based'!G26, H28='Calc|Fee Based'!H26),0,1) -> 0
A29: 18 | B29: ='Calc|Fee Based'!B27 -> RN$V1MAU | C29: ='Calc|Fee Based'!C27 -> Retailer or metering coordinator/provider requests a visual examination upon re-energisation (physical) of the customer’s premises where the customer has not paid their electricity account. NMI de-energised > 30 days. | D29: ='Calc|Fee Based'!D27 -> After hours | E29: ='Calc|Fee Based'!E27 -> Re-energisation | F29: ='Calc|Fee Based'!F27 -> Connection application and management services | G29: ='Calc|Fee Based'!G27 -> No Payment No CT | H29: 481.1491649 | I29: =IF(AND(B29='Calc|Fee Based'!B27,C29='Calc|Fee Based'!C27,D29='Calc|Fee Based'!D27,E29='Calc|Fee Based'!E27, F29='Calc|Fee Based'!F27,G29='Calc|Fee Based'!G27, H29='Calc|Fee Based'!H27),0,1) -> 0
A30: 19 | B30: ='Calc|Fee Based'!B28 -> RN$V2MBU | C30: ='Calc|Fee Based'!C28 -> Retailer or metering coordinator/provider requests a visual examination upon re-energisation (physical) of the customer’s premises where the customer has not paid their electricity account. NMI de-energised > 30 days. | D30: ='Calc|Fee Based'!D28 -> Business hours | E30: ='Calc|Fee Based'!E28 -> Re-energisation | F30: ='Calc|Fee Based'!F28 -> Connection application and management services | G30: ='Calc|Fee Based'!G28 -> No Payment CT | H30: 334.5412896 | I30: =IF(AND(B30='Calc|Fee Based'!B28,C30='Calc|Fee Based'!C28,D30='Calc|Fee Based'!D28,E30='Calc|Fee Based'!E28, F30='Calc|Fee Based'!F28,G30='Calc|Fee Based'!G28, H30='Calc|Fee Based'!H28),0,1) -> 0
A31: 20 | B31: ='Calc|Fee Based'!B29 -> TDNNDBU | C31: ='Calc|Fee Based'!C29 -> Temporary de-energisation and re-energisation of supply to allow customer or contractor to work close - the supply will be disconnected - No Dismantling | D31: ='Calc|Fee Based'!D29 -> Business hours | E31: ='Calc|Fee Based'!E29 -> Temporary disconnections and reconnections (which may involve a line drop) | F31: ='Calc|Fee Based'!F29 -> Connection application and management services | G31: ='Calc|Fee Based'!G29 -> No CT | H31: 493.2592575 | I31: =IF(AND(B31='Calc|Fee Based'!B29,C31='Calc|Fee Based'!C29,D31='Calc|Fee Based'!D29,E31='Calc|Fee Based'!E29, F31='Calc|Fee Based'!F29,G31='Calc|Fee Based'!G29, H31='Calc|Fee Based'!H29),0,1) -> 0
A32: 21 | B32: ='Calc|Fee Based'!B30 -> TDNNDAU | C32: ='Calc|Fee Based'!C30 -> Temporary de-energisation and re-energisation of supply to allow customer or contractor to work close - the supply will be disconnected - No Dismantling | D32: ='Calc|Fee Based'!D30 -> After hours | E32: ='Calc|Fee Based'!E30 -> Temporary disconnections and reconnections (which may involve a line drop) | F32: ='Calc|Fee Based'!F30 -> Connection application and management services | G32: ='Calc|Fee Based'!G30 -> No CT | H32: 560.9495142 | I32: =IF(AND(B32='Calc|Fee Based'!B30,C32='Calc|Fee Based'!C30,D32='Calc|Fee Based'!D30,E32='Calc|Fee Based'!E30, F32='Calc|Fee Based'!F30,G32='Calc|Fee Based'!G30, H32='Calc|Fee Based'!H30),0,1) -> 0
A33: 22 | B33: ='Calc|Fee Based'!B31 -> TDNSPBU | C33: ='Calc|Fee Based'!C31 -> Temporary de-energisation and re-energisation of supply to allow customer or contractor to work close - the service may be physically dismantled or disconnected (e.g. overhead service dropped). This services includes switching if required. - Dismantling Single Phase | D33: ='Calc|Fee Based'!D31 -> Business hours | E33: ='Calc|Fee Based'!E31 -> Temporary disconnections and reconnections (which may involve a line drop) | F33: ='Calc|Fee Based'!F31 -> Connection application and management services | G33: ='Calc|Fee Based'!G31 -> No CT | H33: 1042.242364 | I33: =IF(AND(B33='Calc|Fee Based'!B31,C33='Calc|Fee Based'!C31,D33='Calc|Fee Based'!D31,E33='Calc|Fee Based'!E31, F33='Calc|Fee Based'!F31,G33='Calc|Fee Based'!G31, H33='Calc|Fee Based'!H31),0,1) -> 0
A34: 23 | B34: ='Calc|Fee Based'!B32 -> TDNMPBU | C34: ='Calc|Fee Based'!C32 -> Temporary de-energisation and re-energisation of supply to allow customer or contractor to work close - the service may be physically dismantled or disconnected (e.g. overhead service dropped). This services includes switching if required. - Dismantling Multi Phase | D34: ='Calc|Fee Based'!D32 -> Business hours | E34: ='Calc|Fee Based'!E32 -> Temporary disconnections and reconnections (which may involve a line drop) | F34: ='Calc|Fee Based'!F32 -> Connection application and management services | G34: ='Calc|Fee Based'!G32 -> No CT | H34: 1248.626991 | I34: =IF(AND(B34='Calc|Fee Based'!B32,C34='Calc|Fee Based'!C32,D34='Calc|Fee Based'!D32,E34='Calc|Fee Based'!E32, F34='Calc|Fee Based'!F32,G34='Calc|Fee Based'!G32, H34='Calc|Fee Based'!H32),0,1) -> 0
A35: 24 | B35: ='Calc|Fee Based'!B33 -> TDNSPTCBU | C35: ='Calc|Fee Based'!C33 -> Temporary de-energisation and re-energisation of supply to allow customer or contractor to work close - the service may be physically dismantled or disconnected (e.g. overhead service dropped). This services includes switching if required. - Dismantling Single Phase | D35: ='Calc|Fee Based'!D33 -> Business hours | E35: ='Calc|Fee Based'!E33 -> Temporary disconnections and reconnections (which may involve a line drop) | F35: ='Calc|Fee Based'!F33 -> Connection application and management services | G35: ='Calc|Fee Based'!G33 -> Traffic Control | H35: 2134.788947 | I35: =IF(AND(B35='Calc|Fee Based'!B33,C35='Calc|Fee Based'!C33,D35='Calc|Fee Based'!D33,E35='Calc|Fee Based'!E33, F35='Calc|Fee Based'!F33,G35='Calc|Fee Based'!G33, H35='Calc|Fee Based'!H33),0,1) -> 0
A36: 25 | B36: ='Calc|Fee Based'!B34 -> TDNMPTCBU | C36: ='Calc|Fee Based'!C34 -> Temporary de-energisation and re-energisation of supply to allow customer or contractor to work close - the service may be physically dismantled or disconnected (e.g. overhead service dropped). This services includes switching if required. - Dismantling Multi Phase | D36: ='Calc|Fee Based'!D34 -> Business hours | E36: ='Calc|Fee Based'!E34 -> Temporary disconnections and reconnections (which may involve a line drop) | F36: ='Calc|Fee Based'!F34 -> Connection application and management services | G36: ='Calc|Fee Based'!G34 -> Traffic Control | H36: 2341.173574 | I36: =IF(AND(B36='Calc|Fee Based'!B34,C36='Calc|Fee Based'!C34,D36='Calc|Fee Based'!D34,E36='Calc|Fee Based'!E34, F36='Calc|Fee Based'!F34,G36='Calc|Fee Based'!G34, H36='Calc|Fee Based'!H34),0,1) -> 0
A37: 26 | B37: ='Calc|Fee Based'!B35 -> TDNSPAU | C37: ='Calc|Fee Based'!C35 -> Temporary de-energisation and re-energisation of supply to allow customer or contractor to work close - the service may be physically dismantled or disconnected (e.g. overhead service dropped). This services includes switching if required. - Dismantling Single Phase | D37: ='Calc|Fee Based'!D35 -> After hours | E37: ='Calc|Fee Based'!E35 -> Temporary disconnections and reconnections (which may involve a line drop) | F37: ='Calc|Fee Based'!F35 -> Connection application and management services | G37: ='Calc|Fee Based'!G35 -> No CT | H37: 1185.269894 | I37: =IF(AND(B37='Calc|Fee Based'!B35,C37='Calc|Fee Based'!C35,D37='Calc|Fee Based'!D35,E37='Calc|Fee Based'!E35, F37='Calc|Fee Based'!F35,G37='Calc|Fee Based'!G35, H37='Calc|Fee Based'!H35),0,1) -> 0
A38: 27 | B38: ='Calc|Fee Based'!B36 -> TDNMPAU | C38: ='Calc|Fee Based'!C36 -> Temporary de-energisation and re-energisation of supply to allow customer or contractor to work close - the service may be physically dismantled or disconnected (e.g. overhead service dropped). This services includes switching if required. - Dismantling Multi Phase | D38: ='Calc|Fee Based'!D36 -> After hours | E38: ='Calc|Fee Based'!E36 -> Temporary disconnections and reconnections (which may involve a line drop) | F38: ='Calc|Fee Based'!F36 -> Connection application and management services | G38: ='Calc|Fee Based'!G36 -> No CT | H38: 1419.976804 | I38: =IF(AND(B38='Calc|Fee Based'!B36,C38='Calc|Fee Based'!C36,D38='Calc|Fee Based'!D36,E38='Calc|Fee Based'!E36, F38='Calc|Fee Based'!F36,G38='Calc|Fee Based'!G36, H38='Calc|Fee Based'!H36),0,1) -> 0
A39: 28 | B39: ='Calc|Fee Based'!B37 -> TDNSPTCAU | C39: ='Calc|Fee Based'!C37 -> Temporary de-energisation and re-energisation of supply to allow customer or contractor to work close - the service may be physically dismantled or disconnected (e.g. overhead service dropped). This services includes switching if required. - Dismantling Single Phase | D39: ='Calc|Fee Based'!D37 -> After hours | E39: ='Calc|Fee Based'!E37 -> Temporary disconnections and reconnections (which may involve a line drop) | F39: ='Calc|Fee Based'!F37 -> Connection application and management services | G39: ='Calc|Fee Based'!G37 -> Traffic Control No CT | H39: 2277.816477 | I39: =IF(AND(B39='Calc|Fee Based'!B37,C39='Calc|Fee Based'!C37,D39='Calc|Fee Based'!D37,E39='Calc|Fee Based'!E37, F39='Calc|Fee Based'!F37,G39='Calc|Fee Based'!G37, H39='Calc|Fee Based'!H37),0,1) -> 0
A40: 29 | B40: ='Calc|Fee Based'!B38 -> TDNMPTCAU | C40: ='Calc|Fee Based'!C38 -> Temporary de-energisation and re-energisation of supply to allow customer or contractor to work close - the service may be physically dismantled or disconnected (e.g. overhead service dropped). This services includes switching if required. - Dismantling Multi Phase | D40: ='Calc|Fee Based'!D38 -> After hours | E40: ='Calc|Fee Based'!E38 -> Temporary disconnections and reconnections (which may involve a line drop) | F40: ='Calc|Fee Based'!F38 -> Connection application and management services | G40: ='Calc|Fee Based'!G38 -> Traffic Control | H40: 2512.523387 | I40: =IF(AND(B40='Calc|Fee Based'!B38,C40='Calc|Fee Based'!C38,D40='Calc|Fee Based'!D38,E40='Calc|Fee Based'!E38, F40='Calc|Fee Based'!F38,G40='Calc|Fee Based'!G38, H40='Calc|Fee Based'!H38),0,1) -> 0
A41: 30 | B41: ='Calc|Fee Based'!B39 -> NCT1MBU | C41: ='Calc|Fee Based'!C39 -> Customer requested temporary connection (short term) and the recovery of the temporary builders supply. Excludes work on metering equipment. | D41: ='Calc|Fee Based'!D39 -> Business hours | E41: ='Calc|Fee Based'!E39 -> Temporary connection | F41: ='Calc|Fee Based'!F39 -> Connection application and management services | G41: ='Calc|Fee Based'!G39 -> No CT | H41: 1248.626991 | I41: =IF(AND(B41='Calc|Fee Based'!B39,C41='Calc|Fee Based'!C39,D41='Calc|Fee Based'!D39,E41='Calc|Fee Based'!E39, F41='Calc|Fee Based'!F39,G41='Calc|Fee Based'!G39, H41='Calc|Fee Based'!H39),0,1) -> 0
A42: 31 | B42: ='Calc|Fee Based'!B40 -> NCT1MAU | C42: ='Calc|Fee Based'!C40 -> Customer requested temporary connection (short term) and the recovery of the temporary builders supply. Excludes work on metering equipment. | D42: ='Calc|Fee Based'!D40 -> After hours | E42: ='Calc|Fee Based'!E40 -> Temporary connection | F42: ='Calc|Fee Based'!F40 -> Connection application and management services | G42: ='Calc|Fee Based'!G40 -> No CT | H42: 1419.976804 | I42: =IF(AND(B42='Calc|Fee Based'!B40,C42='Calc|Fee Based'!C40,D42='Calc|Fee Based'!D40,E42='Calc|Fee Based'!E40, F42='Calc|Fee Based'!F40,G42='Calc|Fee Based'!G40, H42='Calc|Fee Based'!H40),0,1) -> 0
A43: 32 | B43: ='Calc|Fee Based'!B41 -> NCT2MBU | C43: ='Calc|Fee Based'!C41 -> Customer requested temporary connection (short term) and the recovery of the temporary builders supply. Excludes work on metering equipment. | D43: ='Calc|Fee Based'!D41 -> Business hours | E43: ='Calc|Fee Based'!E41 -> Temporary connection | F43: ='Calc|Fee Based'!F41 -> Connection application and management services | G43: ='Calc|Fee Based'!G41 -> CT | H43: 2074.165497 | I43: =IF(AND(B43='Calc|Fee Based'!B41,C43='Calc|Fee Based'!C41,D43='Calc|Fee Based'!D41,E43='Calc|Fee Based'!E41, F43='Calc|Fee Based'!F41,G43='Calc|Fee Based'!G41, H43='Calc|Fee Based'!H41),0,1) -> 0
A44: 33 | B44: ='Calc|Fee Based'!B42 -> NCT2MAU | C44: ='Calc|Fee Based'!C42 -> Customer requested temporary connection (short term) and the recovery of the temporary builders supply. Excludes work on metering equipment. | D44: ='Calc|Fee Based'!D42 -> After hours | E44: ='Calc|Fee Based'!E42 -> Temporary connection | F44: ='Calc|Fee Based'!F42 -> Connection application and management services | G44: ='Calc|Fee Based'!G42 -> CT | H44: 2358.804443 | I44: =IF(AND(B44='Calc|Fee Based'!B42,C44='Calc|Fee Based'!C42,D44='Calc|Fee Based'!D42,E44='Calc|Fee Based'!E42, F44='Calc|Fee Based'!F42,G44='Calc|Fee Based'!G42, H44='Calc|Fee Based'!H42),0,1) -> 0
A45: 34 | B45: ='Calc|Fee Based'!B43 -> SA2BU | C45: ='Calc|Fee Based'!C43 -> Retailer requests Enexgex to abolish supply at a connection point and decommission a NMI. May be used where a property is to be demolished; supply is no longer required; an alternative connection point is to be used; or a redundant supply is to be removed. Overhead or Underground - Service Only | D45: ='Calc|Fee Based'!D43 -> Business hours | E45: ='Calc|Fee Based'!E43 -> Supply Abolishment | F45: ='Calc|Fee Based'!F43 -> Connection application and management services | G45: ='Calc|Fee Based'!G43 -> CT | H45: 629.473111 | I45: =IF(AND(B45='Calc|Fee Based'!B43,C45='Calc|Fee Based'!C43,D45='Calc|Fee Based'!D43,E45='Calc|Fee Based'!E43, F45='Calc|Fee Based'!F43,G45='Calc|Fee Based'!G43, H45='Calc|Fee Based'!H43),0,1) -> 0
A46: 35 | B46: ='Calc|Fee Based'!B44 -> SA2TCBU | C46: ='Calc|Fee Based'!C44 -> Retailer requests Energex to abolish supply at a connection point and decommission a NMI. May be used where a property is to be demolished; supply is no longer required; an alternative connection point is to be used; or a redundant supply is to be removed. Overhead or Underground - Service Only | D46: ='Calc|Fee Based'!D44 -> Business hours | E46: ='Calc|Fee Based'!E44 -> Supply Abolishment | F46: ='Calc|Fee Based'!F44 -> Connection application and management services | G46: ='Calc|Fee Based'!G44 -> Traffic Control CT | H46: 1722.019694 | I46: =IF(AND(B46='Calc|Fee Based'!B44,C46='Calc|Fee Based'!C44,D46='Calc|Fee Based'!D44,E46='Calc|Fee Based'!E44, F46='Calc|Fee Based'!F44,G46='Calc|Fee Based'!G44, H46='Calc|Fee Based'!H44),0,1) -> 0
A47: 36 | B47: ='Calc|Fee Based'!B45 -> SA1BU | C47: ='Calc|Fee Based'!C45 -> Retailer requests Energex to abolish supply at a connection point and decommission a NMI. May be used where a property is to be demolished; supply is no longer required; an alternative connection point is to be used; or a redundant supply is to be removed. Overhead or Underground - Service Only | D47: ='Calc|Fee Based'!D45 -> Business hours | E47: ='Calc|Fee Based'!E45 -> Supply Abolishment | F47: ='Calc|Fee Based'!F45 -> Connection application and management services | G47: ='Calc|Fee Based'!G45 -> No CT | H47: 526.2807977 | I47: =IF(AND(B47='Calc|Fee Based'!B45,C47='Calc|Fee Based'!C45,D47='Calc|Fee Based'!D45,E47='Calc|Fee Based'!E45, F47='Calc|Fee Based'!F45,G47='Calc|Fee Based'!G45, H47='Calc|Fee Based'!H45),0,1) -> 0
A48: 37 | B48: ='Calc|Fee Based'!B46 -> SA1TCBU | C48: ='Calc|Fee Based'!C46 -> Retailer requests Energex to abolish supply at a connection point and decommission a NMI. May be used where a property is to be demolished; supply is no longer required; an alternative connection point is to be used; or a redundant supply is to be removed. Overhead or Underground - Service Only | D48: ='Calc|Fee Based'!D46 -> Business hours | E48: ='Calc|Fee Based'!E46 -> Supply Abolishment | F48: ='Calc|Fee Based'!F46 -> Connection application and management services | G48: ='Calc|Fee Based'!G46 -> Traffic Control | H48: 1618.827381 | I48: =IF(AND(B48='Calc|Fee Based'!B46,C48='Calc|Fee Based'!C46,D48='Calc|Fee Based'!D46,E48='Calc|Fee Based'!E46, F48='Calc|Fee Based'!F46,G48='Calc|Fee Based'!G46, H48='Calc|Fee Based'!H46),0,1) -> 0
A49: 38 | B49: ='Calc|Fee Based'!B47 -> SA2AU | C49: ='Calc|Fee Based'!C47 -> Retailer requests Energex to abolish supply at a connection point and decommission a NMI. May be used where a property is to be demolished; supply is no longer required; an alternative connection point is to be used; or a redundant supply is to be removed. Overhead or Underground - Service Only | D49: ='Calc|Fee Based'!D47 -> After hours | E49: ='Calc|Fee Based'!E47 -> Supply Abolishment | F49: ='Calc|Fee Based'!F47 -> Connection application and management services | G49: ='Calc|Fee Based'!G47 -> CT | H49: 715.8560746 | I49: =IF(AND(B49='Calc|Fee Based'!B47,C49='Calc|Fee Based'!C47,D49='Calc|Fee Based'!D47,E49='Calc|Fee Based'!E47, F49='Calc|Fee Based'!F47,G49='Calc|Fee Based'!G47, H49='Calc|Fee Based'!H47),0,1) -> 0
A50: 39 | B50: ='Calc|Fee Based'!B48 -> SA2TCAU | C50: ='Calc|Fee Based'!C48 -> Retailer requests Energex to abolish supply at a connection point and decommission a NMI. May be used where a property is to be demolished; supply is no longer required; an alternative connection point is to be used; or a redundant supply is to be removed. Overhead or Underground - Service Only | D50: ='Calc|Fee Based'!D48 -> After hours | E50: ='Calc|Fee Based'!E48 -> Supply Abolishment | F50: ='Calc|Fee Based'!F48 -> Connection application and management services | G50: ='Calc|Fee Based'!G48 -> Traffic Control CT | H50: 1808.402658 | I50: =IF(AND(B50='Calc|Fee Based'!B48,C50='Calc|Fee Based'!C48,D50='Calc|Fee Based'!D48,E50='Calc|Fee Based'!E48, F50='Calc|Fee Based'!F48,G50='Calc|Fee Based'!G48, H50='Calc|Fee Based'!H48),0,1) -> 0
A51: 40 | B51: ='Calc|Fee Based'!B49 -> SA1AU | C51: ='Calc|Fee Based'!C49 -> Retailer requests Energex to abolish supply at a connection point and decommission a NMI. May be used where a property is to be demolished; supply is no longer required; an alternative connection point is to be used; or a redundant supply is to be removed. Overhead or Underground - Service Only | D51: ='Calc|Fee Based'!D49 -> After hours | E51: ='Calc|Fee Based'!E49 -> Supply Abolishment | F51: ='Calc|Fee Based'!F49 -> Connection application and management services | G51: ='Calc|Fee Based'!G49 -> No CT | H51: 598.5026198 | I51: =IF(AND(B51='Calc|Fee Based'!B49,C51='Calc|Fee Based'!C49,D51='Calc|Fee Based'!D49,E51='Calc|Fee Based'!E49, F51='Calc|Fee Based'!F49,G51='Calc|Fee Based'!G49, H51='Calc|Fee Based'!H49),0,1) -> 0
A52: 41 | B52: ='Calc|Fee Based'!B50 -> SA1TCAU | C52: ='Calc|Fee Based'!C50 -> Retailer requests Energex to abolish supply at a connection point and decommission a NMI. May be used where a property is to be demolished; supply is no longer required; an alternative connection point is to be used; or a redundant supply is to be removed. Overhead or Underground - Service Only | D52: ='Calc|Fee Based'!D50 -> After hours | E52: ='Calc|Fee Based'!E50 -> Supply Abolishment | F52: ='Calc|Fee Based'!F50 -> Connection application and management services | G52: ='Calc|Fee Based'!G50 -> Traffic Control | H52: 1691.049203 | I52: =IF(AND(B52='Calc|Fee Based'!B50,C52='Calc|Fee Based'!C50,D52='Calc|Fee Based'!D50,E52='Calc|Fee Based'!E50, F52='Calc|Fee Based'!F50,G52='Calc|Fee Based'!G50, H52='Calc|Fee Based'!H50),0,1) -> 0
A53: 42 | B53: ='Calc|Fee Based'!B51 -> SA4BU | C53: ='Calc|Fee Based'!C51 -> Retailer requests Energex to abolish supply at a connection point and decommission a NMI. May be used where a property is to be demolished; supply is no longer required; an alternative connection point is to be used; or a redundant supply is to be removed. Overhead or Underground (No travel time) | D53: ='Calc|Fee Based'!D51 -> Business hours | E53: ='Calc|Fee Based'!E51 -> Supply Abolishment | F53: ='Calc|Fee Based'!F51 -> Connection application and management services | G53: ='Calc|Fee Based'!G51 -> CT | H53: 412.7692531 | I53: =IF(AND(B53='Calc|Fee Based'!B51,C53='Calc|Fee Based'!C51,D53='Calc|Fee Based'!D51,E53='Calc|Fee Based'!E51, F53='Calc|Fee Based'!F51,G53='Calc|Fee Based'!G51, H53='Calc|Fee Based'!H51),0,1) -> 0
A54: 43 | B54: ='Calc|Fee Based'!B52 -> SA3BU | C54: ='Calc|Fee Based'!C52 -> Retailer requests Energex to abolish supply at a connection point and decommission a NMI. May be used where a property is to be demolished; supply is no longer required; an alternative connection point is to be used; or a redundant supply is to be removed. Overhead or Underground (No travel time) - Meter Only | D54: ='Calc|Fee Based'!D52 -> Business hours | E54: ='Calc|Fee Based'!E52 -> Supply Abolishment | F54: ='Calc|Fee Based'!F52 -> Connection application and management services | G54: ='Calc|Fee Based'!G52 -> No CT | H54: 103.1923133 | I54: =IF(AND(B54='Calc|Fee Based'!B52,C54='Calc|Fee Based'!C52,D54='Calc|Fee Based'!D52,E54='Calc|Fee Based'!E52, F54='Calc|Fee Based'!F52,G54='Calc|Fee Based'!G52, H54='Calc|Fee Based'!H52),0,1) -> 0
A55: 44 | B55: ='Calc|Fee Based'!B53 -> SA4AU | C55: ='Calc|Fee Based'!C53 -> Retailer requests Energex to abolish supply at a connection point and decommission a NMI. May be used where a property is to be demolished; supply is no longer required; an alternative connection point is to be used; or a redundant supply is to be removed. Overhead or Underground (No travel time) - Meter Only | D55: ='Calc|Fee Based'!D53 -> After hours | E55: ='Calc|Fee Based'!E53 -> Supply Abolishment | F55: ='Calc|Fee Based'!F53 -> Connection application and management services | G55: ='Calc|Fee Based'!G53 -> CT | H55: 469.4138194 | I55: =IF(AND(B55='Calc|Fee Based'!B53,C55='Calc|Fee Based'!C53,D55='Calc|Fee Based'!D53,E55='Calc|Fee Based'!E53, F55='Calc|Fee Based'!F53,G55='Calc|Fee Based'!G53, H55='Calc|Fee Based'!H53),0,1) -> 0
A56: 45 | B56: ='Calc|Fee Based'!B54 -> SA3AU | C56: ='Calc|Fee Based'!C54 -> Retailer requests Energex to abolish supply at a connection point and decommission a NMI. May be used where a property is to be demolished; supply is no longer required; an alternative connection point is to be used; or a redundant supply is to be removed. Overhead or Underground (No travel time) - Meter Only | D56: ='Calc|Fee Based'!D54 -> After hours | E56: ='Calc|Fee Based'!E54 -> Supply Abolishment | F56: ='Calc|Fee Based'!F54 -> Connection application and management services | G56: ='Calc|Fee Based'!G54 -> No CT | H56: 117.3534549 | I56: =IF(AND(B56='Calc|Fee Based'!B54,C56='Calc|Fee Based'!C54,D56='Calc|Fee Based'!D54,E56='Calc|Fee Based'!E54, F56='Calc|Fee Based'!F54,G56='Calc|Fee Based'!G54, H56='Calc|Fee Based'!H54),0,1) -> 0
A57: 46 | B57: ='Calc|Fee Based'!B55 -> DNUMSBU | C57: ='Calc|Fee Based'!C55 -> Request to de-energise an unmetered supply point. | D57: ='Calc|Fee Based'!D55 -> Business hours | E57: ='Calc|Fee Based'!E55 -> Supply Abolishment | F57: ='Calc|Fee Based'!F55 -> Connection application and management services | G57: ='Calc|Fee Based'!G55 -> No CT | H57: 526.2807977 | I57: =IF(AND(B57='Calc|Fee Based'!B55,C57='Calc|Fee Based'!C55,D57='Calc|Fee Based'!D55,E57='Calc|Fee Based'!E55, F57='Calc|Fee Based'!F55,G57='Calc|Fee Based'!G55, H57='Calc|Fee Based'!H55),0,1) -> 0
A58: 47 | B58: ='Calc|Fee Based'!B56 -> DNUMSAU | C58: ='Calc|Fee Based'!C56 -> Request to de-energise an unmetered supply point. | D58: ='Calc|Fee Based'!D56 -> After hours | E58: ='Calc|Fee Based'!E56 -> Supply Abolishment | F58: ='Calc|Fee Based'!F56 -> Connection application and management services | G58: ='Calc|Fee Based'!G56 -> No CT | H58: 598.5026198 | I58: =IF(AND(B58='Calc|Fee Based'!B56,C58='Calc|Fee Based'!C56,D58='Calc|Fee Based'!D56,E58='Calc|Fee Based'!E56, F58='Calc|Fee Based'!F56,G58='Calc|Fee Based'!G56, H58='Calc|Fee Based'!H56),0,1) -> 0
A59: 48 | B59: ='Calc|Fee Based'!B57 -> DNUMSTCBU | C59: ='Calc|Fee Based'!C57 -> Request to de-energise an unmetered supply point. | D59: ='Calc|Fee Based'!D57 -> Business hours | E59: ='Calc|Fee Based'!E57 -> Supply Abolishment | F59: ='Calc|Fee Based'!F57 -> Connection application and management services | G59: ='Calc|Fee Based'!G57 -> Traffic Control | H59: 1618.827381 | I59: =IF(AND(B59='Calc|Fee Based'!B57,C59='Calc|Fee Based'!C57,D59='Calc|Fee Based'!D57,E59='Calc|Fee Based'!E57, F59='Calc|Fee Based'!F57,G59='Calc|Fee Based'!G57, H59='Calc|Fee Based'!H57),0,1) -> 0
A60: 49 | B60: ='Calc|Fee Based'!B58 -> DNUMSTCAU | C60: ='Calc|Fee Based'!C58 -> Request to de-energise an unmetered supply point. | D60: ='Calc|Fee Based'!D58 -> After hours | E60: ='Calc|Fee Based'!E58 -> Supply Abolishment | F60: ='Calc|Fee Based'!F58 -> Connection application and management services | G60: ='Calc|Fee Based'!G58 -> Traffic Control | H60: 1691.049203 | I60: =IF(AND(B60='Calc|Fee Based'!B58,C60='Calc|Fee Based'!C58,D60='Calc|Fee Based'!D58,E60='Calc|Fee Based'!E58, F60='Calc|Fee Based'!F58,G60='Calc|Fee Based'!G58, H60='Calc|Fee Based'!H58),0,1) -> 0
A61: 50 | B61: ='Calc|Fee Based'!B59 -> SEOMPBU | C61: ='Calc|Fee Based'!C59 -> Service upgrade. For example, an upgrade from single phase to multi phase and/or increase capacity. Excludes work on metering equipment (if required). Overhead - Single to Multi Phase | D61: ='Calc|Fee Based'!D59 -> Business hours | E61: ='Calc|Fee Based'!E59 -> Supply enhancement | F61: ='Calc|Fee Based'!F59 -> Connection application and management services | G61: ='Calc|Fee Based'!G59 -> No CT | H61: 1390.66708 | I61: =IF(AND(B61='Calc|Fee Based'!B59,C61='Calc|Fee Based'!C59,D61='Calc|Fee Based'!D59,E61='Calc|Fee Based'!E59, F61='Calc|Fee Based'!F59,G61='Calc|Fee Based'!G59, H61='Calc|Fee Based'!H59),0,1) -> 0
A62: 51 | B62: ='Calc|Fee Based'!B60 -> SEOMPTCBU | C62: ='Calc|Fee Based'!C60 -> Service upgrade. For example, an upgrade from single phase to multi phase and/or increase capacity. Excludes work on metering equipment (if required). Overhead - Single to Multi Phase | D62: ='Calc|Fee Based'!D60 -> Business hours | E62: ='Calc|Fee Based'!E60 -> Supply enhancement | F62: ='Calc|Fee Based'!F60 -> Connection application and management services | G62: ='Calc|Fee Based'!G60 -> Traffic Control | H62: 2483.213663 | I62: =IF(AND(B62='Calc|Fee Based'!B60,C62='Calc|Fee Based'!C60,D62='Calc|Fee Based'!D60,E62='Calc|Fee Based'!E60, F62='Calc|Fee Based'!F60,G62='Calc|Fee Based'!G60, H62='Calc|Fee Based'!H60),0,1) -> 0
A63: 52 | B63: ='Calc|Fee Based'!B61 -> SEOCAPBU | C63: ='Calc|Fee Based'!C61 -> Service upgrade. For example, an upgrade from single phase to multi phase and/or increase capacity. Excludes work on metering equipment (if required). Overhead - Multi Phase Increase Capacity | D63: ='Calc|Fee Based'!D61 -> Business hours | E63: ='Calc|Fee Based'!E61 -> Supply enhancement | F63: ='Calc|Fee Based'!F61 -> Connection application and management services | G63: ='Calc|Fee Based'!G61 -> No CT | H63: 1493.859393 | I63: =IF(AND(B63='Calc|Fee Based'!B61,C63='Calc|Fee Based'!C61,D63='Calc|Fee Based'!D61,E63='Calc|Fee Based'!E61, F63='Calc|Fee Based'!F61,G63='Calc|Fee Based'!G61, H63='Calc|Fee Based'!H61),0,1) -> 0
A64: 53 | B64: ='Calc|Fee Based'!B62 -> SEOCAPTCBU | C64: ='Calc|Fee Based'!C62 -> Service upgrade. For example, an upgrade from single phase to multi phase and/or increase capacity. Excludes work on metering equipment (if required). Overhead - Multi Phase Increase Capacity | D64: ='Calc|Fee Based'!D62 -> Business hours | E64: ='Calc|Fee Based'!E62 -> Supply enhancement | F64: ='Calc|Fee Based'!F62 -> Connection application and management services | G64: ='Calc|Fee Based'!G62 -> Traffic Control | H64: 2586.405976 | I64: =IF(AND(B64='Calc|Fee Based'!B62,C64='Calc|Fee Based'!C62,D64='Calc|Fee Based'!D62,E64='Calc|Fee Based'!E62, F64='Calc|Fee Based'!F62,G64='Calc|Fee Based'!G62, H64='Calc|Fee Based'!H62),0,1) -> 0
A65: 54 | B65: ='Calc|Fee Based'!B63 -> SEOMPAU | C65: ='Calc|Fee Based'!C63 -> Service upgrade. For example, an upgrade from single phase to multi phase and/or increase capacity. Excludes work on metering equipment (if required). Overhead - Single to Multi Phase | D65: ='Calc|Fee Based'!D63 -> After hours | E65: ='Calc|Fee Based'!E63 -> Supply enhancement | F65: ='Calc|Fee Based'!F63 -> Connection application and management services | G65: ='Calc|Fee Based'!G63 -> No CT | H65: 1533.69461 | I65: =IF(AND(B65='Calc|Fee Based'!B63,C65='Calc|Fee Based'!C63,D65='Calc|Fee Based'!D63,E65='Calc|Fee Based'!E63, F65='Calc|Fee Based'!F63,G65='Calc|Fee Based'!G63, H65='Calc|Fee Based'!H63),0,1) -> 0
A66: 55 | B66: ='Calc|Fee Based'!B64 -> SEOMPTCAU | C66: ='Calc|Fee Based'!C64 -> Service upgrade. For example, an upgrade from single phase to multi phase and/or increase capacity. Excludes work on metering equipment (if required). Overhead - Single to Multi Phase | D66: ='Calc|Fee Based'!D64 -> After hours | E66: ='Calc|Fee Based'!E64 -> Supply enhancement | F66: ='Calc|Fee Based'!F64 -> Connection application and management services | G66: ='Calc|Fee Based'!G64 -> Traffic Control | H66: 2567.236436 | I66: =IF(AND(B66='Calc|Fee Based'!B64,C66='Calc|Fee Based'!C64,D66='Calc|Fee Based'!D64,E66='Calc|Fee Based'!E64, F66='Calc|Fee Based'!F64,G66='Calc|Fee Based'!G64, H66='Calc|Fee Based'!H64),0,1) -> 0
A67: 56 | B67: ='Calc|Fee Based'!B65 -> SEOCAPAU | C67: ='Calc|Fee Based'!C65 -> Service upgrade. For example, an upgrade from single phase to multi phase and/or increase capacity. Excludes work on metering equipment (if required). Overhead - Multi Phase Increase Capacity | D67: ='Calc|Fee Based'!D65 -> After hours | E67: ='Calc|Fee Based'!E65 -> Supply enhancement | F67: ='Calc|Fee Based'!F65 -> Connection application and management services | G67: ='Calc|Fee Based'!G65 -> No CT | H67: 1651.048065 | I67: =IF(AND(B67='Calc|Fee Based'!B65,C67='Calc|Fee Based'!C65,D67='Calc|Fee Based'!D65,E67='Calc|Fee Based'!E65, F67='Calc|Fee Based'!F65,G67='Calc|Fee Based'!G65, H67='Calc|Fee Based'!H65),0,1) -> 0
A68: 57 | B68: ='Calc|Fee Based'!B66 -> SEOCAPTCAU | C68: ='Calc|Fee Based'!C66 -> Service upgrade. For example, an upgrade from single phase to multi phase and/or increase capacity. Excludes work on metering equipment (if required). Overhead - Multi Phase Increase Capacity | D68: ='Calc|Fee Based'!D66 -> After hours | E68: ='Calc|Fee Based'!E66 -> Supply enhancement | F68: ='Calc|Fee Based'!F66 -> Connection application and management services | G68: ='Calc|Fee Based'!G66 -> Traffic Control | H68: 2743.594647 | I68: =IF(AND(B68='Calc|Fee Based'!B66,C68='Calc|Fee Based'!C66,D68='Calc|Fee Based'!D66,E68='Calc|Fee Based'!E66, F68='Calc|Fee Based'!F66,G68='Calc|Fee Based'!G66, H68='Calc|Fee Based'!H66),0,1) -> 0
A69: 58 | B69: ='Calc|Fee Based'!B67 -> SEUMPBU | C69: ='Calc|Fee Based'!C67 -> Service upgrade. For example, an upgrade from single phase to multi phase and/or increase capacity. Excludes work on metering equipment (if required). Underground - Single to Multi Phase | D69: ='Calc|Fee Based'!D67 -> Business hours | E69: ='Calc|Fee Based'!E67 -> Supply enhancement | F69: ='Calc|Fee Based'!F67 -> Connection application and management services | G69: ='Calc|Fee Based'!G67 -> No CT | H69: 314.7365555 | I69: =IF(AND(B69='Calc|Fee Based'!B67,C69='Calc|Fee Based'!C67,D69='Calc|Fee Based'!D67,E69='Calc|Fee Based'!E67, F69='Calc|Fee Based'!F67,G69='Calc|Fee Based'!G67, H69='Calc|Fee Based'!H67),0,1) -> 0
A70: 59 | B70: ='Calc|Fee Based'!B68 -> SEUMPTCBU | C70: ='Calc|Fee Based'!C68 -> Service upgrade. For example, an upgrade from single phase to multi phase and/or increase capacity. Excludes work on metering equipment (if required). Underground - Single to Multi Phase | D70: ='Calc|Fee Based'!D68 -> Business hours | E70: ='Calc|Fee Based'!E68 -> Supply enhancement | F70: ='Calc|Fee Based'!F68 -> Connection application and management services | G70: ='Calc|Fee Based'!G68 -> Traffic Control | H70: 1407.283138 | I70: =IF(AND(B70='Calc|Fee Based'!B68,C70='Calc|Fee Based'!C68,D70='Calc|Fee Based'!D68,E70='Calc|Fee Based'!E68, F70='Calc|Fee Based'!F68,G70='Calc|Fee Based'!G68, H70='Calc|Fee Based'!H68),0,1) -> 0
A71: 60 | B71: ='Calc|Fee Based'!B69 -> SEUCAPBU | C71: ='Calc|Fee Based'!C69 -> Service upgrade. For example, an upgrade from single phase to multi phase and/or increase capacity. Excludes work on metering equipment (if required). Underground - Multi Phase Increase Capacity | D71: ='Calc|Fee Based'!D69 -> Business hours | E71: ='Calc|Fee Based'!E69 -> Supply enhancement | F71: ='Calc|Fee Based'!F69 -> Connection application and management services | G71: ='Calc|Fee Based'!G69 -> No CT | H71: 314.7365555 | I71: =IF(AND(B71='Calc|Fee Based'!B69,C71='Calc|Fee Based'!C69,D71='Calc|Fee Based'!D69,E71='Calc|Fee Based'!E69, F71='Calc|Fee Based'!F69,G71='Calc|Fee Based'!G69, H71='Calc|Fee Based'!H69),0,1) -> 0
A72: 61 | B72: ='Calc|Fee Based'!B70 -> SEUCAPTCBU | C72: ='Calc|Fee Based'!C70 -> Service upgrade. For example, an upgrade from single phase to multi phase and/or increase capacity. Excludes work on metering equipment (if required). Underground - Multi Phase Increase Capacity | D72: ='Calc|Fee Based'!D70 -> Business hours | E72: ='Calc|Fee Based'!E70 -> Supply enhancement | F72: ='Calc|Fee Based'!F70 -> Connection application and management services | G72: ='Calc|Fee Based'!G70 -> Traffic Control | H72: 1407.283138 | I72: =IF(AND(B72='Calc|Fee Based'!B70,C72='Calc|Fee Based'!C70,D72='Calc|Fee Based'!D70,E72='Calc|Fee Based'!E70, F72='Calc|Fee Based'!F70,G72='Calc|Fee Based'!G70, H72='Calc|Fee Based'!H70),0,1) -> 0
A73: 62 | B73: ='Calc|Fee Based'!B71 -> SEUMPAU | C73: ='Calc|Fee Based'!C71 -> Service upgrade. For example, an upgrade from single phase to multi phase and/or increase capacity. Excludes work on metering equipment (if required). Underground - Single to Multi Phase | D73: ='Calc|Fee Based'!D71 -> After hours | E73: ='Calc|Fee Based'!E71 -> Supply enhancement | F73: ='Calc|Fee Based'!F71 -> Connection application and management services | G73: ='Calc|Fee Based'!G71 -> No CT | H73: 357.9280373 | I73: =IF(AND(B73='Calc|Fee Based'!B71,C73='Calc|Fee Based'!C71,D73='Calc|Fee Based'!D71,E73='Calc|Fee Based'!E71, F73='Calc|Fee Based'!F71,G73='Calc|Fee Based'!G71, H73='Calc|Fee Based'!H71),0,1) -> 0
A74: 63 | B74: ='Calc|Fee Based'!B72 -> SEUMPTCAU | C74: ='Calc|Fee Based'!C72 -> Service upgrade. For example, an upgrade from single phase to multi phase and/or increase capacity. Excludes work on metering equipment (if required). Underground - Single to Multi Phase | D74: ='Calc|Fee Based'!D72 -> After hours | E74: ='Calc|Fee Based'!E72 -> Supply enhancement | F74: ='Calc|Fee Based'!F72 -> Connection application and management services | G74: ='Calc|Fee Based'!G72 -> Traffic Control | H74: 1450.47462 | I74: =IF(AND(B74='Calc|Fee Based'!B72,C74='Calc|Fee Based'!C72,D74='Calc|Fee Based'!D72,E74='Calc|Fee Based'!E72, F74='Calc|Fee Based'!F72,G74='Calc|Fee Based'!G72, H74='Calc|Fee Based'!H72),0,1) -> 0
A75: 64 | B75: ='Calc|Fee Based'!B73 -> SEUCAPAU | C75: ='Calc|Fee Based'!C73 -> Service upgrade. For example, an upgrade from single phase to multi phase and/or increase capacity. Excludes work on metering equipment (if required). Underground - Multi Phase Increase Capacity | D75: ='Calc|Fee Based'!D73 -> After hours | E75: ='Calc|Fee Based'!E73 -> Supply enhancement | F75: ='Calc|Fee Based'!F73 -> Connection application and management services | G75: ='Calc|Fee Based'!G73 -> No CT | H75: 357.9280373 | I75: =IF(AND(B75='Calc|Fee Based'!B73,C75='Calc|Fee Based'!C73,D75='Calc|Fee Based'!D73,E75='Calc|Fee Based'!E73, F75='Calc|Fee Based'!F73,G75='Calc|Fee Based'!G73, H75='Calc|Fee Based'!H73),0,1) -> 0
A76: 65 | B76: ='Calc|Fee Based'!B74 -> SEUCAPTCAU | C76: ='Calc|Fee Based'!C74 -> Service upgrade. For example, an upgrade from single phase to multi phase and/or increase capacity. Excludes work on metering equipment (if required). Underground - Multi Phase Increase Capacity | D76: ='Calc|Fee Based'!D74 -> After hours | E76: ='Calc|Fee Based'!E74 -> Supply enhancement | F76: ='Calc|Fee Based'!F74 -> Connection application and management services | G76: ='Calc|Fee Based'!G74 -> Traffic Control | H76: 1450.47462 | I76: =IF(AND(B76='Calc|Fee Based'!B74,C76='Calc|Fee Based'!C74,D76='Calc|Fee Based'!D74,E76='Calc|Fee Based'!E74, F76='Calc|Fee Based'!F74,G76='Calc|Fee Based'!G74, H76='Calc|Fee Based'!H74),0,1) -> 0
A77: 66 | B77: ='Calc|Fee Based'!B75 -> POASPBU | C77: ='Calc|Fee Based'!C75 -> Customer requests their existing overhead service to be replaced or relocated, e.g.as a result of point of attachment relocation. No material change to load. This includes De-energisation, followed by physical dismantling then reattachment of service and re-energisation. Excludes work on metering equipment (if required) - Single Phase | D77: ='Calc|Fee Based'!D75 -> Business hours | E77: ='Calc|Fee Based'!E75 -> Point of attachment relocation | F77: ='Calc|Fee Based'!F75 -> Connection application and management services | G77: ='Calc|Fee Based'!G75 -> No CT | H77: 1039.813215 | I77: =IF(AND(B77='Calc|Fee Based'!B75,C77='Calc|Fee Based'!C75,D77='Calc|Fee Based'!D75,E77='Calc|Fee Based'!E75, F77='Calc|Fee Based'!F75,G77='Calc|Fee Based'!G75, H77='Calc|Fee Based'!H75),0,1) -> 0
A78: 67 | B78: ='Calc|Fee Based'!B76 -> POASPTCBU | C78: ='Calc|Fee Based'!C76 -> Customer requests their existing overhead service to be replaced or relocated, e.g.as a result of point of attachment relocation. No material change to load. This includes De-energisation, followed by physical dismantling then reattachment of service and re-energisation. Excludes work on metering equipment (if required) - Single Phase | D78: ='Calc|Fee Based'!D76 -> Business hours | E78: ='Calc|Fee Based'!E76 -> Point of attachment relocation | F78: ='Calc|Fee Based'!F76 -> Connection application and management services | G78: ='Calc|Fee Based'!G76 -> Traffic Control | H78: 2132.359798 | I78: =IF(AND(B78='Calc|Fee Based'!B76,C78='Calc|Fee Based'!C76,D78='Calc|Fee Based'!D76,E78='Calc|Fee Based'!E76, F78='Calc|Fee Based'!F76,G78='Calc|Fee Based'!G76, H78='Calc|Fee Based'!H76),0,1) -> 0
A79: 68 | B79: ='Calc|Fee Based'!B77 -> POASPAU | C79: ='Calc|Fee Based'!C77 -> Customer requests their existing overhead service to be replaced or relocated, e.g.as a result of point of attachment relocation. No material change to load. This includes De-energisation, followed by physical dismantling then reattachment of service and re-energisation. Excludes work on metering equipment (if required) - Single Phase | D79: ='Calc|Fee Based'!D77 -> After hours | E79: ='Calc|Fee Based'!E77 -> Point of attachment relocation | F79: ='Calc|Fee Based'!F77 -> Connection application and management services | G79: ='Calc|Fee Based'!G77 -> No CT | H79: 1134.692863 | I79: =IF(AND(B79='Calc|Fee Based'!B77,C79='Calc|Fee Based'!C77,D79='Calc|Fee Based'!D77,E79='Calc|Fee Based'!E77, F79='Calc|Fee Based'!F77,G79='Calc|Fee Based'!G77, H79='Calc|Fee Based'!H77),0,1) -> 0
A80: 69 | B80: ='Calc|Fee Based'!B78 -> POASPTCAU | C80: ='Calc|Fee Based'!C78 -> Customer requests their existing overhead service to be replaced or relocated, e.g.as a result of point of attachment relocation. No material change to load. This includes De-energisation, followed by physical dismantling then reattachment of service and re-energisation. Excludes work on metering equipment (if required) - Single Phase | D80: ='Calc|Fee Based'!D78 -> After hours | E80: ='Calc|Fee Based'!E78 -> Point of attachment relocation | F80: ='Calc|Fee Based'!F78 -> Connection application and management services | G80: ='Calc|Fee Based'!G78 -> Traffic Control | H80: 2227.239446 | I80: =IF(AND(B80='Calc|Fee Based'!B78,C80='Calc|Fee Based'!C78,D80='Calc|Fee Based'!D78,E80='Calc|Fee Based'!E78, F80='Calc|Fee Based'!F78,G80='Calc|Fee Based'!G78, H80='Calc|Fee Based'!H78),0,1) -> 0
A81: 70 | B81: ='Calc|Fee Based'!B79 -> POAMPBU | C81: ='Calc|Fee Based'!C79 -> Customer requests their existing overhead service to be replaced or relocated, e.g.as a result of point of attachment relocation. No material change to load. This includes De-energisation, followed by physical dismantling then reattachment of service and re-energisation. Excludes work on metering equipment (if required) - Multi Phase | D81: ='Calc|Fee Based'!D79 -> Business hours | E81: ='Calc|Fee Based'!E79 -> Point of attachment relocation | F81: ='Calc|Fee Based'!F79 -> Connection application and management services | G81: ='Calc|Fee Based'!G79 -> No CT | H81: 1200.793223 | I81: =IF(AND(B81='Calc|Fee Based'!B79,C81='Calc|Fee Based'!C79,D81='Calc|Fee Based'!D79,E81='Calc|Fee Based'!E79, F81='Calc|Fee Based'!F79,G81='Calc|Fee Based'!G79, H81='Calc|Fee Based'!H79),0,1) -> 0
A82: 71 | B82: ='Calc|Fee Based'!B80 -> POAMPTCBU | C82: ='Calc|Fee Based'!C80 -> Customer requests their existing overhead service to be replaced or relocated, e.g.as a result of point of attachment relocation. No material change to load. This includes De-energisation, followed by physical dismantling then reattachment of service and re-energisation. Excludes work on metering equipment (if required) - Multi Phase | D82: ='Calc|Fee Based'!D80 -> Business hours | E82: ='Calc|Fee Based'!E80 -> Point of attachment relocation | F82: ='Calc|Fee Based'!F80 -> Connection application and management services | G82: ='Calc|Fee Based'!G80 -> Traffic Control | H82: 2293.339806 | I82: =IF(AND(B82='Calc|Fee Based'!B80,C82='Calc|Fee Based'!C80,D82='Calc|Fee Based'!D80,E82='Calc|Fee Based'!E80, F82='Calc|Fee Based'!F80,G82='Calc|Fee Based'!G80, H82='Calc|Fee Based'!H80),0,1) -> 0
A83: 72 | B83: ='Calc|Fee Based'!B81 -> POAMPAU | C83: ='Calc|Fee Based'!C81 -> Customer requests their existing overhead service to be replaced or relocated, e.g.as a result of point of attachment relocation. No material change to load. This includes De-energisation, followed by physical dismantling then reattachment of service and re-energisation. Excludes work on metering equipment (if required) - Multi Phase | D83: ='Calc|Fee Based'!D81 -> After hours | E83: ='Calc|Fee Based'!E81 -> Point of attachment relocation | F83: ='Calc|Fee Based'!F81 -> Connection application and management services | G83: ='Calc|Fee Based'!G81 -> No CT | H83: 1317.764253 | I83: =IF(AND(B83='Calc|Fee Based'!B81,C83='Calc|Fee Based'!C81,D83='Calc|Fee Based'!D81,E83='Calc|Fee Based'!E81, F83='Calc|Fee Based'!F81,G83='Calc|Fee Based'!G81, H83='Calc|Fee Based'!H81),0,1) -> 0
A84: 73 | B84: ='Calc|Fee Based'!B82 -> POAMPTCAU | C84: ='Calc|Fee Based'!C82 -> Customer requests their existing overhead service to be replaced or relocated, e.g.as a result of point of attachment relocation. No material change to load. This includes De-energisation, followed by physical dismantling then reattachment of service and re-energisation. Excludes work on metering equipment (if required) - Multi Phase | D84: ='Calc|Fee Based'!D82 -> After hours | E84: ='Calc|Fee Based'!E82 -> Point of attachment relocation | F84: ='Calc|Fee Based'!F82 -> Connection application and management services | G84: ='Calc|Fee Based'!G82 -> Traffic Control | H84: 2410.310836 | I84: =IF(AND(B84='Calc|Fee Based'!B82,C84='Calc|Fee Based'!C82,D84='Calc|Fee Based'!D82,E84='Calc|Fee Based'!E82, F84='Calc|Fee Based'!F82,G84='Calc|Fee Based'!G82, H84='Calc|Fee Based'!H82),0,1) -> 0
A85: 74 | B85: ='Calc|Fee Based'!B83 -> OH2UGSPBU | C85: ='Calc|Fee Based'!C83 -> Rearrange connection assets at customer's request - simple (upgrade from overhead to underground where main connection point is in existence). Recovery of the overhead service and connection of the consumer mains to the pre-existing pillar for a customer requested conversion of existing overhead service to underground service - Single Phase | D85: ='Calc|Fee Based'!D83 -> Business hours | E85: ='Calc|Fee Based'!E83 -> Re-arrange connection assets at customer's request | F85: ='Calc|Fee Based'!F83 -> Network Ancillary services | G85: ='Calc|Fee Based'!G83 -> No CT | H85: 789.4211966 | I85: =IF(AND(B85='Calc|Fee Based'!B83,C85='Calc|Fee Based'!C83,D85='Calc|Fee Based'!D83,E85='Calc|Fee Based'!E83, F85='Calc|Fee Based'!F83,G85='Calc|Fee Based'!G83, H85='Calc|Fee Based'!H83),0,1) -> 0
A86: 75 | B86: ='Calc|Fee Based'!B84 -> OH2UGSPTBU | C86: ='Calc|Fee Based'!C84 -> Rearrange connection assets at customer's request - simple (upgrade from overhead to underground where main connection point is in existence). Recovery of the overhead service and connection of the consumer mains to the pre-existing pillar for a customer requested conversion of existing overhead service to underground service - Single Phase | D86: ='Calc|Fee Based'!D84 -> Business hours | E86: ='Calc|Fee Based'!E84 -> Re-arrange connection assets at customer's request | F86: ='Calc|Fee Based'!F84 -> Network Ancillary services | G86: ='Calc|Fee Based'!G84 -> Traffic Control | H86: 1881.96778 | I86: =IF(AND(B86='Calc|Fee Based'!B84,C86='Calc|Fee Based'!C84,D86='Calc|Fee Based'!D84,E86='Calc|Fee Based'!E84, F86='Calc|Fee Based'!F84,G86='Calc|Fee Based'!G84, H86='Calc|Fee Based'!H84),0,1) -> 0
A87: 76 | B87: ='Calc|Fee Based'!B85 -> OH2UGSPAU | C87: ='Calc|Fee Based'!C85 -> Rearrange connection assets at customer's request - simple (upgrade from overhead to underground where main connection point is in existence). Recovery of the overhead service and connection of the consumer mains to the pre-existing pillar for a customer requested conversion of existing overhead service to underground service - Single Phase | D87: ='Calc|Fee Based'!D85 -> After hours | E87: ='Calc|Fee Based'!E85 -> Re-arrange connection assets at customer's request | F87: ='Calc|Fee Based'!F85 -> Network Ancillary services | G87: ='Calc|Fee Based'!G85 -> No CT | H87: 867.9594486 | I87: =IF(AND(B87='Calc|Fee Based'!B85,C87='Calc|Fee Based'!C85,D87='Calc|Fee Based'!D85,E87='Calc|Fee Based'!E85, F87='Calc|Fee Based'!F85,G87='Calc|Fee Based'!G85, H87='Calc|Fee Based'!H85),0,1) -> 0
A88: 77 | B88: ='Calc|Fee Based'!B86 -> OH2UGSPTAU | C88: ='Calc|Fee Based'!C86 -> Rearrange connection assets at customer's request - simple (upgrade from overhead to underground where main connection point is in existence). Recovery of the overhead service and connection of the consumer mains to the pre-existing pillar for a customer requested conversion of existing overhead service to underground service - Single Phase | D88: ='Calc|Fee Based'!D86 -> After hours | E88: ='Calc|Fee Based'!E86 -> Re-arrange connection assets at customer's request | F88: ='Calc|Fee Based'!F86 -> Network Ancillary services | G88: ='Calc|Fee Based'!G86 -> Traffic Control | H88: 1990.300513 | I88: =IF(AND(B88='Calc|Fee Based'!B86,C88='Calc|Fee Based'!C86,D88='Calc|Fee Based'!D86,E88='Calc|Fee Based'!E86, F88='Calc|Fee Based'!F86,G88='Calc|Fee Based'!G86, H88='Calc|Fee Based'!H86),0,1) -> 0
A89: 78 | B89: ='Calc|Fee Based'!B87 -> OH2UGMPBU | C89: ='Calc|Fee Based'!C87 -> Rearrange connection assets at customer's request - simple (upgrade from overhead to underground where main connection point is in existence). Recovery of the overhead service and connection of the consumer mains to the pre-existing pillar for a customer requested conversion of existing overhead service to underground service - Multi Phase | D89: ='Calc|Fee Based'!D87 -> Business hours | E89: ='Calc|Fee Based'!E87 -> Re-arrange connection assets at customer's request | F89: ='Calc|Fee Based'!F87 -> Network Ancillary services | G89: ='Calc|Fee Based'!G87 -> No CT | H89: 944.2096665 | I89: =IF(AND(B89='Calc|Fee Based'!B87,C89='Calc|Fee Based'!C87,D89='Calc|Fee Based'!D87,E89='Calc|Fee Based'!E87, F89='Calc|Fee Based'!F87,G89='Calc|Fee Based'!G87, H89='Calc|Fee Based'!H87),0,1) -> 0
A90: 79 | B90: ='Calc|Fee Based'!B88 -> OH2UGMPTBU | C90: ='Calc|Fee Based'!C88 -> Rearrange connection assets at customer's request - simple (upgrade from overhead to underground where main connection point is in existence). Recovery of the overhead service and connection of the consumer mains to the pre-existing pillar for a customer requested conversion of existing overhead service to underground service - Multi Phase | D90: ='Calc|Fee Based'!D88 -> Business hours | E90: ='Calc|Fee Based'!E88 -> Re-arrange connection assets at customer's request | F90: ='Calc|Fee Based'!F88 -> Network Ancillary services | G90: ='Calc|Fee Based'!G88 -> Traffic Control | H90: 2036.756249 | I90: =IF(AND(B90='Calc|Fee Based'!B88,C90='Calc|Fee Based'!C88,D90='Calc|Fee Based'!D88,E90='Calc|Fee Based'!E88, F90='Calc|Fee Based'!F88,G90='Calc|Fee Based'!G88, H90='Calc|Fee Based'!H88),0,1) -> 0
A91: 80 | B91: ='Calc|Fee Based'!B89 -> OH2UGMPAU | C91: ='Calc|Fee Based'!C89 -> Rearrange connection assets at customer's request - simple (upgrade from overhead to underground where main connection point is in existence). Recovery of the overhead service and connection of the consumer mains to the pre-existing pillar for a customer requested conversion of existing overhead service to underground service - Multi Phase | D91: ='Calc|Fee Based'!D89 -> After hours | E91: ='Calc|Fee Based'!E89 -> Re-arrange connection assets at customer's request | F91: ='Calc|Fee Based'!F89 -> Network Ancillary services | G91: ='Calc|Fee Based'!G89 -> No CT | H91: 1073.784112 | I91: =IF(AND(B91='Calc|Fee Based'!B89,C91='Calc|Fee Based'!C89,D91='Calc|Fee Based'!D89,E91='Calc|Fee Based'!E89, F91='Calc|Fee Based'!F89,G91='Calc|Fee Based'!G89, H91='Calc|Fee Based'!H89),0,1) -> 0
A92: 81 | B92: ='Calc|Fee Based'!B90 -> OH2UGMPTAU | C92: ='Calc|Fee Based'!C90 -> Rearrange connection assets at customer's request - simple (upgrade from overhead to underground where main connection point is in existence). Recovery of the overhead service and connection of the consumer mains to the pre-existing pillar for a customer requested conversion of existing overhead service to underground service - Multi Phase | D92: ='Calc|Fee Based'!D90 -> After hours | E92: ='Calc|Fee Based'!E90 -> Re-arrange connection assets at customer's request | F92: ='Calc|Fee Based'!F90 -> Network Ancillary services | G92: ='Calc|Fee Based'!G90 -> Traffic Control | H92: 2166.330695 | I92: =IF(AND(B92='Calc|Fee Based'!B90,C92='Calc|Fee Based'!C90,D92='Calc|Fee Based'!D90,E92='Calc|Fee Based'!E90, F92='Calc|Fee Based'!F90,G92='Calc|Fee Based'!G90, H92='Calc|Fee Based'!H90),0,1) -> 0
A93: 82 | B93: ='Calc|Fee Based'!B91 -> RM1MBU | C93: ='Calc|Fee Based'!C91 -> Removal of Meter | D93: ='Calc|Fee Based'!D91 -> Business hours | E93: ='Calc|Fee Based'!E91 -> Removal of a meter (Type 5 & 6) | F93: ='Calc|Fee Based'!F91 -> Auxiliary metering services | G93: ='Calc|Fee Based'!G91 -> No CT | H93: 199.5444365 | I93: =IF(AND(B93='Calc|Fee Based'!B91,C93='Calc|Fee Based'!C91,D93='Calc|Fee Based'!D91,E93='Calc|Fee Based'!E91, F93='Calc|Fee Based'!F91,G93='Calc|Fee Based'!G91, H93='Calc|Fee Based'!H91),0,1) -> 0
A94: 83 | B94: ='Calc|Fee Based'!B92 -> RM2MBU | C94: ='Calc|Fee Based'!C92 -> Removal of Meter | D94: ='Calc|Fee Based'!D92 -> Business hours | E94: ='Calc|Fee Based'!E92 -> Removal of a meter (Type 5 & 6) | F94: ='Calc|Fee Based'!F92 -> Auxiliary metering services | G94: ='Calc|Fee Based'!G92 -> CT | H94: 199.5444365 | I94: =IF(AND(B94='Calc|Fee Based'!B92,C94='Calc|Fee Based'!C92,D94='Calc|Fee Based'!D92,E94='Calc|Fee Based'!E92, F94='Calc|Fee Based'!F92,G94='Calc|Fee Based'!G92, H94='Calc|Fee Based'!H92),0,1) -> 0
A95: 84 | B95: ='Calc|Fee Based'!B93 -> RM1MAU | C95: ='Calc|Fee Based'!C93 -> Removal of Meter | D95: ='Calc|Fee Based'!D93 -> After hours | E95: ='Calc|Fee Based'!E93 -> Removal of a meter (Type 5 & 6) | F95: ='Calc|Fee Based'!F93 -> Auxiliary metering services | G95: ='Calc|Fee Based'!G93 -> No CT | H95: 229.2593728 | I95: =IF(AND(B95='Calc|Fee Based'!B93,C95='Calc|Fee Based'!C93,D95='Calc|Fee Based'!D93,E95='Calc|Fee Based'!E93, F95='Calc|Fee Based'!F93,G95='Calc|Fee Based'!G93, H95='Calc|Fee Based'!H93),0,1) -> 0
A96: 85 | B96: ='Calc|Fee Based'!B94 -> MIMT1MBU | C96: ='Calc|Fee Based'!C94 -> Customer requested Meter Accuracy Testing of type 5-6 meter (physically test meter) | D96: ='Calc|Fee Based'!D94 -> Business hours | E96: ='Calc|Fee Based'!E94 -> Meter test | F96: ='Calc|Fee Based'!F94 -> Auxiliary metering services | G96: ='Calc|Fee Based'!G94 -> No CT | H96: 543.5958947 | I96: =IF(AND(B96='Calc|Fee Based'!B94,C96='Calc|Fee Based'!C94,D96='Calc|Fee Based'!D94,E96='Calc|Fee Based'!E94, F96='Calc|Fee Based'!F94,G96='Calc|Fee Based'!G94, H96='Calc|Fee Based'!H94),0,1) -> 0
A97: 86 | B97: ='Calc|Fee Based'!B95 -> MIMT2MBU | C97: ='Calc|Fee Based'!C95 -> Customer requested Meter Accuracy Testing of type 5-6 meter (physically test meter) | D97: ='Calc|Fee Based'!D95 -> Business hours | E97: ='Calc|Fee Based'!E95 -> Meter test | F97: ='Calc|Fee Based'!F95 -> Auxiliary metering services | G97: ='Calc|Fee Based'!G95 -> CT | H97: 1123.192721 | I97: =IF(AND(B97='Calc|Fee Based'!B95,C97='Calc|Fee Based'!C95,D97='Calc|Fee Based'!D95,E97='Calc|Fee Based'!E95, F97='Calc|Fee Based'!F95,G97='Calc|Fee Based'!G95, H97='Calc|Fee Based'!H95),0,1) -> 0
A98: 87 | B98: ='Calc|Fee Based'!B96 -> MIMT1MAU | C98: ='Calc|Fee Based'!C96 -> Customer requested Meter Accuracy Testing of type 5-6 meter (physically test meter) | D98: ='Calc|Fee Based'!D96 -> After hours | E98: ='Calc|Fee Based'!E96 -> Meter test | F98: ='Calc|Fee Based'!F96 -> Auxiliary metering services | G98: ='Calc|Fee Based'!G96 -> No CT | H98: 616.5257738 | I98: =IF(AND(B98='Calc|Fee Based'!B96,C98='Calc|Fee Based'!C96,D98='Calc|Fee Based'!D96,E98='Calc|Fee Based'!E96, F98='Calc|Fee Based'!F96,G98='Calc|Fee Based'!G96, H98='Calc|Fee Based'!H96),0,1) -> 0
A99: 88 | B99: ='Calc|Fee Based'!B97 -> MIMT2MAU | C99: ='Calc|Fee Based'!C97 -> Customer requested Meter Accuracy Testing of type 5-6 meter (physically test meter) | D99: ='Calc|Fee Based'!D97 -> After hours | E99: ='Calc|Fee Based'!E97 -> Meter test | F99: ='Calc|Fee Based'!F97 -> Auxiliary metering services | G99: ='Calc|Fee Based'!G97 -> CT | H99: 1275.661012 | I99: =IF(AND(B99='Calc|Fee Based'!B97,C99='Calc|Fee Based'!C97,D99='Calc|Fee Based'!D97,E99='Calc|Fee Based'!E97, F99='Calc|Fee Based'!F97,G99='Calc|Fee Based'!G97, H99='Calc|Fee Based'!H97),0,1) -> 0
A100: 89 | B100: ='Calc|Fee Based'!B98 -> MINS1MBU | C100: ='Calc|Fee Based'!C98 -> Inspection required to check reported or suspected fault and no fault in meter is found. (no physical meter test) | D100: ='Calc|Fee Based'!D98 -> Business hours | E100: ='Calc|Fee Based'!E98 -> Meter inspection and investigation on request | F100: ='Calc|Fee Based'!F98 -> Auxiliary metering services | G100: ='Calc|Fee Based'!G98 -> No CT | H100: 167.7051633 | I100: =IF(AND(B100='Calc|Fee Based'!B98,C100='Calc|Fee Based'!C98,D100='Calc|Fee Based'!D98,E100='Calc|Fee Based'!E98, F100='Calc|Fee Based'!F98,G100='Calc|Fee Based'!G98, H100='Calc|Fee Based'!H98),0,1) -> 0
A101: 90 | B101: ='Calc|Fee Based'!B99 -> MINS2MBU | C101: ='Calc|Fee Based'!C99 -> Inspection required to check reported or suspected fault and no fault in meter is found. (no physical meter test) | D101: ='Calc|Fee Based'!D99 -> Business hours | E101: ='Calc|Fee Based'!E99 -> Meter inspection and investigation on request | F101: ='Calc|Fee Based'!F99 -> Auxiliary metering services | G101: ='Calc|Fee Based'!G99 -> CT | H101: 517.7978164 | I101: =IF(AND(B101='Calc|Fee Based'!B99,C101='Calc|Fee Based'!C99,D101='Calc|Fee Based'!D99,E101='Calc|Fee Based'!E99, F101='Calc|Fee Based'!F99,G101='Calc|Fee Based'!G99, H101='Calc|Fee Based'!H99),0,1) -> 0
A102: 91 | B102: ='Calc|Fee Based'!B100 -> MINSSUBU | C102: ='Calc|Fee Based'!C100 -> A request to conduct a site review of the state of the customer’s metering installation(s) (no physical meter test), i.e. multiple premises. Includes provision of meter data above the minimum requirements and meter inspection to check a reported or suspected fault. Does not include provision of any hardware - First Unit | D102: ='Calc|Fee Based'!D100 -> Business hours | E102: ='Calc|Fee Based'!E100 -> Meter inspection and investigation on request | F102: ='Calc|Fee Based'!F100 -> Auxiliary metering services | G102: ='Calc|Fee Based'!G100 -> No CT | H102: 209.9407484 | I102: =IF(AND(B102='Calc|Fee Based'!B100,C102='Calc|Fee Based'!C100,D102='Calc|Fee Based'!D100,E102='Calc|Fee Based'!E100, F102='Calc|Fee Based'!F100,G102='Calc|Fee Based'!G100, H102='Calc|Fee Based'!H100),0,1) -> 0
A103: 92 | B103: ='Calc|Fee Based'!B101 -> MINSMUBU | C103: ='Calc|Fee Based'!C101 -> A request to conduct a site review of the state of the customer’s metering installation(s) (no physical meter test), i.e. multiple premises. Includes provision of meter data above the minimum requirements and meter inspection to check a reported or suspected fault. Does not include provision of any hardware - Additional Units | D103: ='Calc|Fee Based'!D101 -> Business hours | E103: ='Calc|Fee Based'!E101 -> Meter inspection and investigation on request | F103: ='Calc|Fee Based'!F101 -> Auxiliary metering services | G103: ='Calc|Fee Based'!G101 -> No CT | H103: 101.5888195 | I103: =IF(AND(B103='Calc|Fee Based'!B101,C103='Calc|Fee Based'!C101,D103='Calc|Fee Based'!D101,E103='Calc|Fee Based'!E101, F103='Calc|Fee Based'!F101,G103='Calc|Fee Based'!G101, H103='Calc|Fee Based'!H101),0,1) -> 0
A104: 93 | B104: ='Calc|Fee Based'!B102 -> MRCLT1MBU | C104: ='Calc|Fee Based'!C102 -> A request to make a change from one tariff to another tariff (Controlled Load) | D104: ='Calc|Fee Based'!D102 -> Business hours | E104: ='Calc|Fee Based'!E102 -> Meter reconfiguration | F104: ='Calc|Fee Based'!F102 -> Auxiliary metering services | G104: ='Calc|Fee Based'!G102 -> No CT | H104: 167.113482 | I104: =IF(AND(B104='Calc|Fee Based'!B102,C104='Calc|Fee Based'!C102,D104='Calc|Fee Based'!D102,E104='Calc|Fee Based'!E102, F104='Calc|Fee Based'!F102,G104='Calc|Fee Based'!G102, H104='Calc|Fee Based'!H102),0,1) -> 0
A105: 94 | B105: ='Calc|Fee Based'!B103 -> MRCLT2MBU | C105: ='Calc|Fee Based'!C103 -> A request to make a change from one tariff to another tariff (Controlled Load) | D105: ='Calc|Fee Based'!D103 -> Business hours | E105: ='Calc|Fee Based'!E103 -> Meter reconfiguration | F105: ='Calc|Fee Based'!F103 -> Auxiliary metering services | G105: ='Calc|Fee Based'!G103 -> CT | H105: 435.2439657 | I105: =IF(AND(B105='Calc|Fee Based'!B103,C105='Calc|Fee Based'!C103,D105='Calc|Fee Based'!D103,E105='Calc|Fee Based'!E103, F105='Calc|Fee Based'!F103,G105='Calc|Fee Based'!G103, H105='Calc|Fee Based'!H103),0,1) -> 0
A106: 95 | B106: ='Calc|Fee Based'!B104 -> MRCT1MBU | C106: ='Calc|Fee Based'!C104 -> A request to make a change from one tariff to another tariff | D106: ='Calc|Fee Based'!D104 -> Business hours | E106: ='Calc|Fee Based'!E104 -> Meter reconfiguration | F106: ='Calc|Fee Based'!F104 -> Auxiliary metering services | G106: ='Calc|Fee Based'!G104 -> No CT | H106: 179.1839447 | I106: =IF(AND(B106='Calc|Fee Based'!B104,C106='Calc|Fee Based'!C104,D106='Calc|Fee Based'!D104,E106='Calc|Fee Based'!E104, F106='Calc|Fee Based'!F104,G106='Calc|Fee Based'!G104, H106='Calc|Fee Based'!H104),0,1) -> 0
A107: 96 | B107: ='Calc|Fee Based'!B105 -> MRCT1MAU | C107: ='Calc|Fee Based'!C105 -> A request to make a change from one tariff to another tariff | D107: ='Calc|Fee Based'!D105 -> After hours | E107: ='Calc|Fee Based'!E105 -> Meter reconfiguration | F107: ='Calc|Fee Based'!F105 -> Auxiliary metering services | G107: ='Calc|Fee Based'!G105 -> No CT | H107: 240.9947183 | I107: =IF(AND(B107='Calc|Fee Based'!B105,C107='Calc|Fee Based'!C105,D107='Calc|Fee Based'!D105,E107='Calc|Fee Based'!E105, F107='Calc|Fee Based'!F105,G107='Calc|Fee Based'!G105, H107='Calc|Fee Based'!H105),0,1) -> 0
A108: 97 | B108: ='Calc|Fee Based'!B106 -> MRCT2MBU | C108: ='Calc|Fee Based'!C106 -> A request to make a change from one tariff to another tariff | D108: ='Calc|Fee Based'!D106 -> Business hours | E108: ='Calc|Fee Based'!E106 -> Meter reconfiguration | F108: ='Calc|Fee Based'!F106 -> Auxiliary metering services | G108: ='Calc|Fee Based'!G106 -> CT | H108: 641.6285923 | I108: =IF(AND(B108='Calc|Fee Based'!B106,C108='Calc|Fee Based'!C106,D108='Calc|Fee Based'!D106,E108='Calc|Fee Based'!E106, F108='Calc|Fee Based'!F106,G108='Calc|Fee Based'!G106, H108='Calc|Fee Based'!H106),0,1) -> 0
A109: 98 | B109: ='Calc|Fee Based'!B107 -> MRCL1MBU | C109: ='Calc|Fee Based'!C107 -> Change load control equipment (inc. time switch and relay install, modify and removal) | D109: ='Calc|Fee Based'!D107 -> Business hours | E109: ='Calc|Fee Based'!E107 -> Load control time switch | F109: ='Calc|Fee Based'!F107 -> Auxiliary metering services | G109: ='Calc|Fee Based'!G107 -> No CT | H109: 106.9340892 | I109: =IF(AND(B109='Calc|Fee Based'!B107,C109='Calc|Fee Based'!C107,D109='Calc|Fee Based'!D107,E109='Calc|Fee Based'!E107, F109='Calc|Fee Based'!F107,G109='Calc|Fee Based'!G107, H109='Calc|Fee Based'!H107),0,1) -> 0
A110: 99 | B110: ='Calc|Fee Based'!B108 -> MRCL2MBU | C110: ='Calc|Fee Based'!C108 -> Change load control equipment (inc. time switch and relay install, modify and removal) | D110: ='Calc|Fee Based'!D108 -> Business hours | E110: ='Calc|Fee Based'!E108 -> Load control time switch | F110: ='Calc|Fee Based'!F108 -> Auxiliary metering services | G110: ='Calc|Fee Based'!G108 -> CT | H110: 435.2439657 | I110: =IF(AND(B110='Calc|Fee Based'!B108,C110='Calc|Fee Based'!C108,D110='Calc|Fee Based'!D108,E110='Calc|Fee Based'!E108, F110='Calc|Fee Based'!F108,G110='Calc|Fee Based'!G108, H110='Calc|Fee Based'!H108),0,1) -> 0
A111: 100 | B111: ='Calc|Fee Based'!B109 -> MM1MBU | C111: ='Calc|Fee Based'!C109 -> Meter alteration – meter is being relocated or meter wiring altered and requires DNSP to visit site to verify the integrity of the metering equipment | D111: ='Calc|Fee Based'!D109 -> Business hours | E111: ='Calc|Fee Based'!E109 -> Metering alteration | F111: ='Calc|Fee Based'!F109 -> Auxiliary metering services | G111: ='Calc|Fee Based'!G109 -> No CT | H111: 229.3640635 | I111: =IF(AND(B111='Calc|Fee Based'!B109,C111='Calc|Fee Based'!C109,D111='Calc|Fee Based'!D109,E111='Calc|Fee Based'!E109, F111='Calc|Fee Based'!F109,G111='Calc|Fee Based'!G109, H111='Calc|Fee Based'!H109),0,1) -> 0
A112: 101 | B112: ='Calc|Fee Based'!B110 -> MM2MBU | C112: ='Calc|Fee Based'!C110 -> Meter alteration – meter is being relocated or meter wiring altered and requires DNSP to visit site to verify the integrity of the metering equipment | D112: ='Calc|Fee Based'!D110 -> Business hours | E112: ='Calc|Fee Based'!E110 -> Metering alteration | F112: ='Calc|Fee Based'!F110 -> Auxiliary metering services | G112: ='Calc|Fee Based'!G110 -> CT | H112: 1164.469646 | I112: =IF(AND(B112='Calc|Fee Based'!B110,C112='Calc|Fee Based'!C110,D112='Calc|Fee Based'!D110,E112='Calc|Fee Based'!E110, F112='Calc|Fee Based'!F110,G112='Calc|Fee Based'!G110, H112='Calc|Fee Based'!H110),0,1) -> 0
A113: 102 | B113: ='Calc|Fee Based'!B111 -> SRCRBU | C113: ='Calc|Fee Based'!C111 -> Customer requests a check read, transfer read or validation of an estimated read on the meter, may be due to reported error in the meter reading. This is only used to check the accuracy of the meter reading | D113: ='Calc|Fee Based'!D111 -> Business hours | E113: ='Calc|Fee Based'!E111 -> Meter reading | F113: ='Calc|Fee Based'!F111 -> Auxiliary metering services | G113: ='Calc|Fee Based'!G111 -> No CT | H113: 20.18944377 | I113: =IF(AND(B113='Calc|Fee Based'!B111,C113='Calc|Fee Based'!C111,D113='Calc|Fee Based'!D111,E113='Calc|Fee Based'!E111, F113='Calc|Fee Based'!F111,G113='Calc|Fee Based'!G111, H113='Calc|Fee Based'!H111),0,1) -> 0
A114: 103 | B114: ='Calc|Fee Based'!B112 -> RNRRBU | C114: ='Calc|Fee Based'!C112 -> Site remains active and reading undertaken upon customer move in. Retail requested | D114: ='Calc|Fee Based'!D112 -> Business hours | E114: ='Calc|Fee Based'!E112 -> Meter reading | F114: ='Calc|Fee Based'!F112 -> Auxiliary metering services | G114: ='Calc|Fee Based'!G112 -> No CT | H114: 20.18944377 | I114: =IF(AND(B114='Calc|Fee Based'!B112,C114='Calc|Fee Based'!C112,D114='Calc|Fee Based'!D112,E114='Calc|Fee Based'!E112, F114='Calc|Fee Based'!F112,G114='Calc|Fee Based'!G112, H114='Calc|Fee Based'!H112),0,1) -> 0
A115: 104 | B115: ='Calc|Fee Based'!B113 -> SRTRBU | C115: ='Calc|Fee Based'!C113 -> Special meter reading excluding final read. Retailer or customer requested | D115: ='Calc|Fee Based'!D113 -> Business hours | E115: ='Calc|Fee Based'!E113 -> Meter reading | F115: ='Calc|Fee Based'!F113 -> Auxiliary metering services | G115: ='Calc|Fee Based'!G113 -> No CT | H115: 20.18944377 | I115: =IF(AND(B115='Calc|Fee Based'!B113,C115='Calc|Fee Based'!C113,D115='Calc|Fee Based'!D113,E115='Calc|Fee Based'!E113, F115='Calc|Fee Based'!F113,G115='Calc|Fee Based'!G113, H115='Calc|Fee Based'!H113),0,1) -> 0
A116: 105 | B116: ='Calc|Fee Based'!B114 -> LPDBU | C116: ='Calc|Fee Based'!C114 -> Provision of load profile data where available – Retailer requested | D116: ='Calc|Fee Based'!D114 -> Business hours | E116: ='Calc|Fee Based'!E114 -> Type 6 non standard metering data services | F116: ='Calc|Fee Based'!F114 -> Auxiliary metering services | G116: ='Calc|Fee Based'!G114 -> No CT | H116: 223.6997235 | I116: =IF(AND(B116='Calc|Fee Based'!B114,C116='Calc|Fee Based'!C114,D116='Calc|Fee Based'!D114,E116='Calc|Fee Based'!E114, F116='Calc|Fee Based'!F114,G116='Calc|Fee Based'!G114, H116='Calc|Fee Based'!H114),0,1) -> 0
A117: 106 | B117: ='Calc|Fee Based'!B115 -> AAMRBU | C117: ='Calc|Fee Based'!C115 -> Reseal and inspection of meter after customer initiated work | D117: ='Calc|Fee Based'!D115 -> Business hours | E117: ='Calc|Fee Based'!E115 -> Reseal | F117: ='Calc|Fee Based'!F115 -> Auxiliary metering services | G117: ='Calc|Fee Based'!G115 -> No CT | H117: 147.8578247 | I117: =IF(AND(B117='Calc|Fee Based'!B115,C117='Calc|Fee Based'!C115,D117='Calc|Fee Based'!D115,E117='Calc|Fee Based'!E115, F117='Calc|Fee Based'!F115,G117='Calc|Fee Based'!G115, H117='Calc|Fee Based'!H115),0,1) -> 0
A118: 107 | B118: ='Calc|Fee Based'!B116 -> USV1MBU | C118: ='Calc|Fee Based'!C116 -> Crews attend site at the customers request and is unable to perform job due to customers fault/fault of a third party. TECHNICAL. Wasted travel time and wasted time at customer's premises - 1 crew | D118: ='Calc|Fee Based'!D116 -> Business hours | E118: ='Calc|Fee Based'!E116 -> Unfulfilled site visit | F118: ='Calc|Fee Based'!F116 -> Network Ancillary services | G118: ='Calc|Fee Based'!G116 -> Technical | H118: 143.4373155 | I118: =IF(AND(B118='Calc|Fee Based'!B116,C118='Calc|Fee Based'!C116,D118='Calc|Fee Based'!D116,E118='Calc|Fee Based'!E116, F118='Calc|Fee Based'!F116,G118='Calc|Fee Based'!G116, H118='Calc|Fee Based'!H116),0,1) -> 0
A119: 108 | B119: ='Calc|Fee Based'!B117 -> USV2MBU | C119: ='Calc|Fee Based'!C117 -> Crews attend site at the customers request and is unable to perform job due to customers fault/fault of a third party. TECHNICAL. Wasted travel time and wasted time at customer's premises - 2 crews | D119: ='Calc|Fee Based'!D117 -> Business hours | E119: ='Calc|Fee Based'!E117 -> Unfulfilled site visit | F119: ='Calc|Fee Based'!F117 -> Network Ancillary services | G119: ='Calc|Fee Based'!G117 -> Technical | H119: 286.8746309 | I119: =IF(AND(B119='Calc|Fee Based'!B117,C119='Calc|Fee Based'!C117,D119='Calc|Fee Based'!D117,E119='Calc|Fee Based'!E117, F119='Calc|Fee Based'!F117,G119='Calc|Fee Based'!G117, H119='Calc|Fee Based'!H117),0,1) -> 0
A120: 109 | B120: ='Calc|Fee Based'!B118 -> USV1MAU | C120: ='Calc|Fee Based'!C118 -> Crews attend site at the customers request and is unable to perform job due to customers fault/fault of a third party. TECHNICAL. Wasted travel time and wasted time at customer's premises - 1 crew | D120: ='Calc|Fee Based'!D118 -> After hours | E120: ='Calc|Fee Based'!E118 -> Unfulfilled site visit | F120: ='Calc|Fee Based'!F118 -> Network Ancillary services | G120: ='Calc|Fee Based'!G118 -> Technical | H120: 163.1213022 | I120: =IF(AND(B120='Calc|Fee Based'!B118,C120='Calc|Fee Based'!C118,D120='Calc|Fee Based'!D118,E120='Calc|Fee Based'!E118, F120='Calc|Fee Based'!F118,G120='Calc|Fee Based'!G118, H120='Calc|Fee Based'!H118),0,1) -> 0
A121: 110 | B121: ='Calc|Fee Based'!B119 -> USV2MAU | C121: ='Calc|Fee Based'!C119 -> Crews attend site at the customers request and is unable to perform job due to customers fault/fault of a third party. TECHNICAL. Wasted travel time and wasted time at customer's premises - 2 crews | D121: ='Calc|Fee Based'!D119 -> After hours | E121: ='Calc|Fee Based'!E119 -> Unfulfilled site visit | F121: ='Calc|Fee Based'!F119 -> Network Ancillary services | G121: ='Calc|Fee Based'!G119 -> Technical | H121: 326.2426045 | I121: =IF(AND(B121='Calc|Fee Based'!B119,C121='Calc|Fee Based'!C119,D121='Calc|Fee Based'!D119,E121='Calc|Fee Based'!E119, F121='Calc|Fee Based'!F119,G121='Calc|Fee Based'!G119, H121='Calc|Fee Based'!H119),0,1) -> 0
A122: 111 | B122: ='Calc|Fee Based'!B120 -> USVNTBU | C122: ='Calc|Fee Based'!C120 -> Crews attend site at the customers request and is unable to perform job due to customers fault/fault of a third party. Wasted travel time. | D122: ='Calc|Fee Based'!D120 -> Business hours | E122: ='Calc|Fee Based'!E120 -> Unfulfilled site visit | F122: ='Calc|Fee Based'!F120 -> Network Ancillary services | G122: ='Calc|Fee Based'!G120 -> Non-technical | H122: 103.422282 | I122: =IF(AND(B122='Calc|Fee Based'!B120,C122='Calc|Fee Based'!C120,D122='Calc|Fee Based'!D120,E122='Calc|Fee Based'!E120, F122='Calc|Fee Based'!F120,G122='Calc|Fee Based'!G120, H122='Calc|Fee Based'!H120),0,1) -> 0
A123: 112 | B123: ='Calc|Fee Based'!B121 -> USVNTAU | C123: ='Calc|Fee Based'!C121 -> Crews attend site at the customers request and is unable to perform job due to customers fault/fault of a third party. Wasted travel time. | D123: ='Calc|Fee Based'!D121 -> After hours | E123: ='Calc|Fee Based'!E121 -> Unfulfilled site visit | F123: ='Calc|Fee Based'!F121 -> Network Ancillary services | G123: ='Calc|Fee Based'!G121 -> Non-technical | H123: 103.422282 | I123: =IF(AND(B123='Calc|Fee Based'!B121,C123='Calc|Fee Based'!C121,D123='Calc|Fee Based'!D121,E123='Calc|Fee Based'!E121, F123='Calc|Fee Based'!F121,G123='Calc|Fee Based'!G121, H123='Calc|Fee Based'!H121),0,1) -> 0
A124: 113 | B124: ='Calc|Fee Based'!B122 -> NEW_001 | C124: ='Calc|Fee Based'!C122 -> Search Fees | D124: ='Calc|Fee Based'!D122 -> Business hours | E124: ='Calc|Fee Based'!E122 -> Other | F124: ='Calc|Fee Based'!F122 -> Network Ancillary services | G124: ='Calc|Fee Based'!G122 -> No CT | H124: ='[6]Calc|Fee Based'!H122 -> 63.01589842 | I124: =IF(AND(B124='Calc|Fee Based'!B122,C124='Calc|Fee Based'!C122,D124='Calc|Fee Based'!D122,E124='Calc|Fee Based'!E122, F124='Calc|Fee Based'!F122,G124='Calc|Fee Based'!G122, H124='Calc|Fee Based'!H122),0,1) -> 1
A125: 114 | B125: ='Calc|Fee Based'!B123 -> NEW_002 | C125: ='Calc|Fee Based'!C123 -> Search Fees - Urgent | D125: ='Calc|Fee Based'!D123 -> Business hours | E125: ='Calc|Fee Based'!E123 -> Other | F125: ='Calc|Fee Based'!F123 -> Network Ancillary services | G125: ='Calc|Fee Based'!G123 -> No CT | H125: ='[6]Calc|Fee Based'!H123 -> 78.76987303 | I125: =IF(AND(B125='Calc|Fee Based'!B123,C125='Calc|Fee Based'!C123,D125='Calc|Fee Based'!D123,E125='Calc|Fee Based'!E123, F125='Calc|Fee Based'!F123,G125='Calc|Fee Based'!G123, H125='Calc|Fee Based'!H123),0,1) -> 1
A126: 115 | B126: ='Calc|Fee Based'!B124 -> NEW_003 | C126: ='Calc|Fee Based'!C124 -> Retailer requested de-energisation of the customer's premises where the de-energisation can be performed remotely | D126: ='Calc|Fee Based'!D124 -> Business hours | E126: ='Calc|Fee Based'!E124 -> De-energisation | F126: ='Calc|Fee Based'!F124 -> Connection application and management services | G126: ='Calc|Fee Based'!G124 -> No CT | H126: 115.3199813 | I126: =IF(AND(B126='Calc|Fee Based'!B124,C126='Calc|Fee Based'!C124,D126='Calc|Fee Based'!D124,E126='Calc|Fee Based'!E124, F126='Calc|Fee Based'!F124,G126='Calc|Fee Based'!G124, H126='Calc|Fee Based'!H124),0,1) -> 0
A127: 116 | B127: ='Calc|Fee Based'!B125 ->  | C127: ='Calc|Fee Based'!C125 ->  | D127: ='Calc|Fee Based'!D125 ->  | E127: ='Calc|Fee Based'!E125 ->  | F127: ='Calc|Fee Based'!F125 ->  | G127: ='Calc|Fee Based'!G125 ->  | H127: 0 | I127: =IF(AND(B127='Calc|Fee Based'!B125,C127='Calc|Fee Based'!C125,D127='Calc|Fee Based'!D125,E127='Calc|Fee Based'!E125, F127='Calc|Fee Based'!F125,G127='Calc|Fee Based'!G125, H127='Calc|Fee Based'!H125),0,1) -> 0
A128: 117 | B128: ='Calc|Fee Based'!B126 ->  | C128: ='Calc|Fee Based'!C126 ->  | D128: ='Calc|Fee Based'!D126 ->  | E128: ='Calc|Fee Based'!E126 ->  | F128: ='Calc|Fee Based'!F126 ->  | G128: ='Calc|Fee Based'!G126 ->  | H128: 0 | I128: =IF(AND(B128='Calc|Fee Based'!B126,C128='Calc|Fee Based'!C126,D128='Calc|Fee Based'!D126,E128='Calc|Fee Based'!E126, F128='Calc|Fee Based'!F126,G128='Calc|Fee Based'!G126, H128='Calc|Fee Based'!H126),0,1) -> 0
A129: 118 | B129: ='Calc|Fee Based'!B127 ->  | C129: ='Calc|Fee Based'!C127 ->  | D129: ='Calc|Fee Based'!D127 ->  | E129: ='Calc|Fee Based'!E127 ->  | F129: ='Calc|Fee Based'!F127 ->  | G129: ='Calc|Fee Based'!G127 ->  | H129: 0 | I129: =IF(AND(B129='Calc|Fee Based'!B127,C129='Calc|Fee Based'!C127,D129='Calc|Fee Based'!D127,E129='Calc|Fee Based'!E127, F129='Calc|Fee Based'!F127,G129='Calc|Fee Based'!G127, H129='Calc|Fee Based'!H127),0,1) -> 0
A130: 119 | B130: ='Calc|Fee Based'!B128 ->  | C130: ='Calc|Fee Based'!C128 ->  | D130: ='Calc|Fee Based'!D128 ->  | E130: ='Calc|Fee Based'!E128 ->  | F130: ='Calc|Fee Based'!F128 ->  | G130: ='Calc|Fee Based'!G128 ->  | H130: 0 | I130: =IF(AND(B130='Calc|Fee Based'!B128,C130='Calc|Fee Based'!C128,D130='Calc|Fee Based'!D128,E130='Calc|Fee Based'!E128, F130='Calc|Fee Based'!F128,G130='Calc|Fee Based'!G128, H130='Calc|Fee Based'!H128),0,1) -> 0
A131: 120 | B131: ='Calc|Fee Based'!B129 ->  | C131: ='Calc|Fee Based'!C129 ->  | D131: ='Calc|Fee Based'!D129 ->  | E131: ='Calc|Fee Based'!E129 ->  | F131: ='Calc|Fee Based'!F129 ->  | G131: ='Calc|Fee Based'!G129 ->  | H131: 0 | I131: =IF(AND(B131='Calc|Fee Based'!B129,C131='Calc|Fee Based'!C129,D131='Calc|Fee Based'!D129,E131='Calc|Fee Based'!E129, F131='Calc|Fee Based'!F129,G131='Calc|Fee Based'!G129, H131='Calc|Fee Based'!H129),0,1) -> 0
A132: 121 | B132: ='Calc|Fee Based'!B130 ->  | C132: ='Calc|Fee Based'!C130 ->  | D132: ='Calc|Fee Based'!D130 ->  | E132: ='Calc|Fee Based'!E130 ->  | F132: ='Calc|Fee Based'!F130 ->  | G132: ='Calc|Fee Based'!G130 ->  | H132: 0 | I132: =IF(AND(B132='Calc|Fee Based'!B130,C132='Calc|Fee Based'!C130,D132='Calc|Fee Based'!D130,E132='Calc|Fee Based'!E130, F132='Calc|Fee Based'!F130,G132='Calc|Fee Based'!G130, H132='Calc|Fee Based'!H130),0,1) -> 0
A133: 122 | B133: ='Calc|Fee Based'!B131 ->  | C133: ='Calc|Fee Based'!C131 ->  | D133: ='Calc|Fee Based'!D131 ->  | E133: ='Calc|Fee Based'!E131 ->  | F133: ='Calc|Fee Based'!F131 ->  | G133: ='Calc|Fee Based'!G131 ->  | H133: 0 | I133: =IF(AND(B133='Calc|Fee Based'!B131,C133='Calc|Fee Based'!C131,D133='Calc|Fee Based'!D131,E133='Calc|Fee Based'!E131, F133='Calc|Fee Based'!F131,G133='Calc|Fee Based'!G131, H133='Calc|Fee Based'!H131),0,1) -> 0
A134: 123 | B134: ='Calc|Fee Based'!B132 ->  | C134: ='Calc|Fee Based'!C132 ->  | D134: ='Calc|Fee Based'!D132 ->  | E134: ='Calc|Fee Based'!E132 ->  | F134: ='Calc|Fee Based'!F132 ->  | G134: ='Calc|Fee Based'!G132 ->  | H134: 0 | I134: =IF(AND(B134='Calc|Fee Based'!B132,C134='Calc|Fee Based'!C132,D134='Calc|Fee Based'!D132,E134='Calc|Fee Based'!E132, F134='Calc|Fee Based'!F132,G134='Calc|Fee Based'!G132, H134='Calc|Fee Based'!H132),0,1) -> 0
A135: 124 | B135: ='Calc|Fee Based'!B133 ->  | C135: ='Calc|Fee Based'!C133 ->  | D135: ='Calc|Fee Based'!D133 ->  | E135: ='Calc|Fee Based'!E133 ->  | F135: ='Calc|Fee Based'!F133 ->  | G135: ='Calc|Fee Based'!G133 ->  | H135: 0 | I135: =IF(AND(B135='Calc|Fee Based'!B133,C135='Calc|Fee Based'!C133,D135='Calc|Fee Based'!D133,E135='Calc|Fee Based'!E133, F135='Calc|Fee Based'!F133,G135='Calc|Fee Based'!G133, H135='Calc|Fee Based'!H133),0,1) -> 0
A136: 125 | B136: ='Calc|Fee Based'!B134 ->  | C136: ='Calc|Fee Based'!C134 ->  | D136: ='Calc|Fee Based'!D134 ->  | E136: ='Calc|Fee Based'!E134 ->  | F136: ='Calc|Fee Based'!F134 ->  | G136: ='Calc|Fee Based'!G134 ->  | H136: 0 | I136: =IF(AND(B136='Calc|Fee Based'!B134,C136='Calc|Fee Based'!C134,D136='Calc|Fee Based'!D134,E136='Calc|Fee Based'!E134, F136='Calc|Fee Based'!F134,G136='Calc|Fee Based'!G134, H136='Calc|Fee Based'!H134),0,1) -> 0
A137: 126 | B137: ='Calc|Fee Based'!B135 ->  | C137: ='Calc|Fee Based'!C135 ->  | D137: ='Calc|Fee Based'!D135 ->  | E137: ='Calc|Fee Based'!E135 ->  | F137: ='Calc|Fee Based'!F135 ->  | G137: ='Calc|Fee Based'!G135 ->  | H137: 0 | I137: =IF(AND(B137='Calc|Fee Based'!B135,C137='Calc|Fee Based'!C135,D137='Calc|Fee Based'!D135,E137='Calc|Fee Based'!E135, F137='Calc|Fee Based'!F135,G137='Calc|Fee Based'!G135, H137='Calc|Fee Based'!H135),0,1) -> 0
A138: 127 | B138: ='Calc|Fee Based'!B136 ->  | C138: ='Calc|Fee Based'!C136 ->  | D138: ='Calc|Fee Based'!D136 ->  | E138: ='Calc|Fee Based'!E136 ->  | F138: ='Calc|Fee Based'!F136 ->  | G138: ='Calc|Fee Based'!G136 ->  | H138: 0 | I138: =IF(AND(B138='Calc|Fee Based'!B136,C138='Calc|Fee Based'!C136,D138='Calc|Fee Based'!D136,E138='Calc|Fee Based'!E136, F138='Calc|Fee Based'!F136,G138='Calc|Fee Based'!G136, H138='Calc|Fee Based'!H136),0,1) -> 0
A139: 128 | B139: ='Calc|Fee Based'!B137 ->  | C139: ='Calc|Fee Based'!C137 ->  | D139: ='Calc|Fee Based'!D137 ->  | E139: ='Calc|Fee Based'!E137 ->  | F139: ='Calc|Fee Based'!F137 ->  | G139: ='Calc|Fee Based'!G137 ->  | H139: 0 | I139: =IF(AND(B139='Calc|Fee Based'!B137,C139='Calc|Fee Based'!C137,D139='Calc|Fee Based'!D137,E139='Calc|Fee Based'!E137, F139='Calc|Fee Based'!F137,G139='Calc|Fee Based'!G137, H139='Calc|Fee Based'!H137),0,1) -> 0
A140: 129 | B140: ='Calc|Fee Based'!B138 ->  | C140: ='Calc|Fee Based'!C138 ->  | D140: ='Calc|Fee Based'!D138 ->  | E140: ='Calc|Fee Based'!E138 ->  | F140: ='Calc|Fee Based'!F138 ->  | G140: ='Calc|Fee Based'!G138 ->  | H140: 0 | I140: =IF(AND(B140='Calc|Fee Based'!B138,C140='Calc|Fee Based'!C138,D140='Calc|Fee Based'!D138,E140='Calc|Fee Based'!E138, F140='Calc|Fee Based'!F138,G140='Calc|Fee Based'!G138, H140='Calc|Fee Based'!H138),0,1) -> 0
A141: 130 | B141: ='Calc|Fee Based'!B139 ->  | C141: ='Calc|Fee Based'!C139 ->  | D141: ='Calc|Fee Based'!D139 ->  | E141: ='Calc|Fee Based'!E139 ->  | F141: ='Calc|Fee Based'!F139 ->  | G141: ='Calc|Fee Based'!G139 ->  | H141: 0 | I141: =IF(AND(B141='Calc|Fee Based'!B139,C141='Calc|Fee Based'!C139,D141='Calc|Fee Based'!D139,E141='Calc|Fee Based'!E139, F141='Calc|Fee Based'!F139,G141='Calc|Fee Based'!G139, H141='Calc|Fee Based'!H139),0,1) -> 0
A142: 131 | B142: ='Calc|Fee Based'!B140 ->  | C142: ='Calc|Fee Based'!C140 ->  | D142: ='Calc|Fee Based'!D140 ->  | E142: ='Calc|Fee Based'!E140 ->  | F142: ='Calc|Fee Based'!F140 ->  | G142: ='Calc|Fee Based'!G140 ->  | H142: 0 | I142: =IF(AND(B142='Calc|Fee Based'!B140,C142='Calc|Fee Based'!C140,D142='Calc|Fee Based'!D140,E142='Calc|Fee Based'!E140, F142='Calc|Fee Based'!F140,G142='Calc|Fee Based'!G140, H142='Calc|Fee Based'!H140),0,1) -> 0
A143: 132 | B143: ='Calc|Fee Based'!B141 ->  | C143: ='Calc|Fee Based'!C141 ->  | D143: ='Calc|Fee Based'!D141 ->  | E143: ='Calc|Fee Based'!E141 ->  | F143: ='Calc|Fee Based'!F141 ->  | G143: ='Calc|Fee Based'!G141 ->  | H143: 0 | I143: =IF(AND(B143='Calc|Fee Based'!B141,C143='Calc|Fee Based'!C141,D143='Calc|Fee Based'!D141,E143='Calc|Fee Based'!E141, F143='Calc|Fee Based'!F141,G143='Calc|Fee Based'!G141, H143='Calc|Fee Based'!H141),0,1) -> 0
A144: 133 | B144: ='Calc|Fee Based'!B142 ->  | C144: ='Calc|Fee Based'!C142 ->  | D144: ='Calc|Fee Based'!D142 ->  | E144: ='Calc|Fee Based'!E142 ->  | F144: ='Calc|Fee Based'!F142 ->  | G144: ='Calc|Fee Based'!G142 ->  | H144: 0 | I144: =IF(AND(B144='Calc|Fee Based'!B142,C144='Calc|Fee Based'!C142,D144='Calc|Fee Based'!D142,E144='Calc|Fee Based'!E142, F144='Calc|Fee Based'!F142,G144='Calc|Fee Based'!G142, H144='Calc|Fee Based'!H142),0,1) -> 0
A145: 134 | B145: ='Calc|Fee Based'!B143 ->  | C145: ='Calc|Fee Based'!C143 ->  | D145: ='Calc|Fee Based'!D143 ->  | E145: ='Calc|Fee Based'!E143 ->  | F145: ='Calc|Fee Based'!F143 ->  | G145: ='Calc|Fee Based'!G143 ->  | H145: 0 | I145: =IF(AND(B145='Calc|Fee Based'!B143,C145='Calc|Fee Based'!C143,D145='Calc|Fee Based'!D143,E145='Calc|Fee Based'!E143, F145='Calc|Fee Based'!F143,G145='Calc|Fee Based'!G143, H145='Calc|Fee Based'!H143),0,1) -> 0
A146: 135 | B146: ='Calc|Fee Based'!B144 ->  | C146: ='Calc|Fee Based'!C144 ->  | D146: ='Calc|Fee Based'!D144 ->  | E146: ='Calc|Fee Based'!E144 ->  | F146: ='Calc|Fee Based'!F144 ->  | G146: ='Calc|Fee Based'!G144 ->  | H146: 0 | I146: =IF(AND(B146='Calc|Fee Based'!B144,C146='Calc|Fee Based'!C144,D146='Calc|Fee Based'!D144,E146='Calc|Fee Based'!E144, F146='Calc|Fee Based'!F144,G146='Calc|Fee Based'!G144, H146='Calc|Fee Based'!H144),0,1) -> 0
A147: 136 | B147: ='Calc|Fee Based'!B145 ->  | C147: ='Calc|Fee Based'!C145 ->  | D147: ='Calc|Fee Based'!D145 ->  | E147: ='Calc|Fee Based'!E145 ->  | F147: ='Calc|Fee Based'!F145 ->  | G147: ='Calc|Fee Based'!G145 ->  | H147: 0 | I147: =IF(AND(B147='Calc|Fee Based'!B145,C147='Calc|Fee Based'!C145,D147='Calc|Fee Based'!D145,E147='Calc|Fee Based'!E145, F147='Calc|Fee Based'!F145,G147='Calc|Fee Based'!G145, H147='Calc|Fee Based'!H145),0,1) -> 0
A148: 137 | B148: ='Calc|Fee Based'!B146 ->  | C148: ='Calc|Fee Based'!C146 ->  | D148: ='Calc|Fee Based'!D146 ->  | E148: ='Calc|Fee Based'!E146 ->  | F148: ='Calc|Fee Based'!F146 ->  | G148: ='Calc|Fee Based'!G146 ->  | H148: 0 | I148: =IF(AND(B148='Calc|Fee Based'!B146,C148='Calc|Fee Based'!C146,D148='Calc|Fee Based'!D146,E148='Calc|Fee Based'!E146, F148='Calc|Fee Based'!F146,G148='Calc|Fee Based'!G146, H148='Calc|Fee Based'!H146),0,1) -> 0
A149: 138 | B149: ='Calc|Fee Based'!B147 ->  | C149: ='Calc|Fee Based'!C147 ->  | D149: ='Calc|Fee Based'!D147 ->  | E149: ='Calc|Fee Based'!E147 ->  | F149: ='Calc|Fee Based'!F147 ->  | G149: ='Calc|Fee Based'!G147 ->  | H149: 0 | I149: =IF(AND(B149='Calc|Fee Based'!B147,C149='Calc|Fee Based'!C147,D149='Calc|Fee Based'!D147,E149='Calc|Fee Based'!E147, F149='Calc|Fee Based'!F147,G149='Calc|Fee Based'!G147, H149='Calc|Fee Based'!H147),0,1) -> 0
A150: 139 | B150: ='Calc|Fee Based'!B148 ->  | C150: ='Calc|Fee Based'!C148 ->  | D150: ='Calc|Fee Based'!D148 ->  | E150: ='Calc|Fee Based'!E148 ->  | F150: ='Calc|Fee Based'!F148 ->  | G150: ='Calc|Fee Based'!G148 ->  | H150: 0 | I150: =IF(AND(B150='Calc|Fee Based'!B148,C150='Calc|Fee Based'!C148,D150='Calc|Fee Based'!D148,E150='Calc|Fee Based'!E148, F150='Calc|Fee Based'!F148,G150='Calc|Fee Based'!G148, H150='Calc|Fee Based'!H148),0,1) -> 0
A151: 140 | B151: ='Calc|Fee Based'!B149 ->  | C151: ='Calc|Fee Based'!C149 ->  | D151: ='Calc|Fee Based'!D149 ->  | E151: ='Calc|Fee Based'!E149 ->  | F151: ='Calc|Fee Based'!F149 ->  | G151: ='Calc|Fee Based'!G149 ->  | H151: 0 | I151: =IF(AND(B151='Calc|Fee Based'!B149,C151='Calc|Fee Based'!C149,D151='Calc|Fee Based'!D149,E151='Calc|Fee Based'!E149, F151='Calc|Fee Based'!F149,G151='Calc|Fee Based'!G149, H151='Calc|Fee Based'!H149),0,1) -> 0
A152: 141 | B152: ='Calc|Fee Based'!B150 ->  | C152: ='Calc|Fee Based'!C150 ->  | D152: ='Calc|Fee Based'!D150 ->  | E152: ='Calc|Fee Based'!E150 ->  | F152: ='Calc|Fee Based'!F150 ->  | G152: ='Calc|Fee Based'!G150 ->  | H152: 0 | I152: =IF(AND(B152='Calc|Fee Based'!B150,C152='Calc|Fee Based'!C150,D152='Calc|Fee Based'!D150,E152='Calc|Fee Based'!E150, F152='Calc|Fee Based'!F150,G152='Calc|Fee Based'!G150, H152='Calc|Fee Based'!H150),0,1) -> 0
A153: 142 | B153: ='Calc|Fee Based'!B151 ->  | C153: ='Calc|Fee Based'!C151 ->  | D153: ='Calc|Fee Based'!D151 ->  | E153: ='Calc|Fee Based'!E151 ->  | F153: ='Calc|Fee Based'!F151 ->  | G153: ='Calc|Fee Based'!G151 ->  | H153: 0 | I153: =IF(AND(B153='Calc|Fee Based'!B151,C153='Calc|Fee Based'!C151,D153='Calc|Fee Based'!D151,E153='Calc|Fee Based'!E151, F153='Calc|Fee Based'!F151,G153='Calc|Fee Based'!G151, H153='Calc|Fee Based'!H151),0,1) -> 0
A154: 143 | B154: ='Calc|Fee Based'!B152 ->  | C154: ='Calc|Fee Based'!C152 ->  | D154: ='Calc|Fee Based'!D152 ->  | E154: ='Calc|Fee Based'!E152 ->  | F154: ='Calc|Fee Based'!F152 ->  | G154: ='Calc|Fee Based'!G152 ->  | H154: 0 | I154: =IF(AND(B154='Calc|Fee Based'!B152,C154='Calc|Fee Based'!C152,D154='Calc|Fee Based'!D152,E154='Calc|Fee Based'!E152, F154='Calc|Fee Based'!F152,G154='Calc|Fee Based'!G152, H154='Calc|Fee Based'!H152),0,1) -> 0
A155: 144 | B155: ='Calc|Fee Based'!B153 ->  | C155: ='Calc|Fee Based'!C153 ->  | D155: ='Calc|Fee Based'!D153 ->  | E155: ='Calc|Fee Based'!E153 ->  | F155: ='Calc|Fee Based'!F153 ->  | G155: ='Calc|Fee Based'!G153 ->  | H155: 0 | I155: =IF(AND(B155='Calc|Fee Based'!B153,C155='Calc|Fee Based'!C153,D155='Calc|Fee Based'!D153,E155='Calc|Fee Based'!E153, F155='Calc|Fee Based'!F153,G155='Calc|Fee Based'!G153, H155='Calc|Fee Based'!H153),0,1) -> 0
A156: 145 | B156: ='Calc|Fee Based'!B154 ->  | C156: ='Calc|Fee Based'!C154 ->  | D156: ='Calc|Fee Based'!D154 ->  | E156: ='Calc|Fee Based'!E154 ->  | F156: ='Calc|Fee Based'!F154 ->  | G156: ='Calc|Fee Based'!G154 ->  | H156: 0 | I156: =IF(AND(B156='Calc|Fee Based'!B154,C156='Calc|Fee Based'!C154,D156='Calc|Fee Based'!D154,E156='Calc|Fee Based'!E154, F156='Calc|Fee Based'!F154,G156='Calc|Fee Based'!G154, H156='Calc|Fee Based'!H154),0,1) -> 0
A157: 146 | B157: ='Calc|Fee Based'!B155 ->  | C157: ='Calc|Fee Based'!C155 ->  | D157: ='Calc|Fee Based'!D155 ->  | E157: ='Calc|Fee Based'!E155 ->  | F157: ='Calc|Fee Based'!F155 ->  | G157: ='Calc|Fee Based'!G155 ->  | H157: 0 | I157: =IF(AND(B157='Calc|Fee Based'!B155,C157='Calc|Fee Based'!C155,D157='Calc|Fee Based'!D155,E157='Calc|Fee Based'!E155, F157='Calc|Fee Based'!F155,G157='Calc|Fee Based'!G155, H157='Calc|Fee Based'!H155),0,1) -> 0
A158: 147 | B158: ='Calc|Fee Based'!B156 ->  | C158: ='Calc|Fee Based'!C156 ->  | D158: ='Calc|Fee Based'!D156 ->  | E158: ='Calc|Fee Based'!E156 ->  | F158: ='Calc|Fee Based'!F156 ->  | G158: ='Calc|Fee Based'!G156 ->  | H158: 0 | I158: =IF(AND(B158='Calc|Fee Based'!B156,C158='Calc|Fee Based'!C156,D158='Calc|Fee Based'!D156,E158='Calc|Fee Based'!E156, F158='Calc|Fee Based'!F156,G158='Calc|Fee Based'!G156, H158='Calc|Fee Based'!H156),0,1) -> 0
A159: 148 | B159: ='Calc|Fee Based'!B157 ->  | C159: ='Calc|Fee Based'!C157 ->  | D159: ='Calc|Fee Based'!D157 ->  | E159: ='Calc|Fee Based'!E157 ->  | F159: ='Calc|Fee Based'!F157 ->  | G159: ='Calc|Fee Based'!G157 ->  | H159: 0 | I159: =IF(AND(B159='Calc|Fee Based'!B157,C159='Calc|Fee Based'!C157,D159='Calc|Fee Based'!D157,E159='Calc|Fee Based'!E157, F159='Calc|Fee Based'!F157,G159='Calc|Fee Based'!G157, H159='Calc|Fee Based'!H157),0,1) -> 0
A160: 149 | B160: ='Calc|Fee Based'!B158 ->  | C160: ='Calc|Fee Based'!C158 ->  | D160: ='Calc|Fee Based'!D158 ->  | E160: ='Calc|Fee Based'!E158 ->  | F160: ='Calc|Fee Based'!F158 ->  | G160: ='Calc|Fee Based'!G158 ->  | H160: 0 | I160: =IF(AND(B160='Calc|Fee Based'!B158,C160='Calc|Fee Based'!C158,D160='Calc|Fee Based'!D158,E160='Calc|Fee Based'!E158, F160='Calc|Fee Based'!F158,G160='Calc|Fee Based'!G158, H160='Calc|Fee Based'!H158),0,1) -> 0
A161: 150 | B161: ='Calc|Fee Based'!B159 ->  | C161: ='Calc|Fee Based'!C159 ->  | D161: ='Calc|Fee Based'!D159 ->  | E161: ='Calc|Fee Based'!E159 ->  | F161: ='Calc|Fee Based'!F159 ->  | G161: ='Calc|Fee Based'!G159 ->  | H161: 0 | I161: =IF(AND(B161='Calc|Fee Based'!B159,C161='Calc|Fee Based'!C159,D161='Calc|Fee Based'!D159,E161='Calc|Fee Based'!E159, F161='Calc|Fee Based'!F159,G161='Calc|Fee Based'!G159, H161='Calc|Fee Based'!H159),0,1) -> 0
A162: 151 | B162: ='Calc|Fee Based'!B160 ->  | C162: ='Calc|Fee Based'!C160 ->  | D162: ='Calc|Fee Based'!D160 ->  | E162: ='Calc|Fee Based'!E160 ->  | F162: ='Calc|Fee Based'!F160 ->  | G162: ='Calc|Fee Based'!G160 ->  | H162: 0 | I162: =IF(AND(B162='Calc|Fee Based'!B160,C162='Calc|Fee Based'!C160,D162='Calc|Fee Based'!D160,E162='Calc|Fee Based'!E160, F162='Calc|Fee Based'!F160,G162='Calc|Fee Based'!G160, H162='Calc|Fee Based'!H160),0,1) -> 0
A163: 152 | B163: ='Calc|Fee Based'!B161 ->  | C163: ='Calc|Fee Based'!C161 ->  | D163: ='Calc|Fee Based'!D161 ->  | E163: ='Calc|Fee Based'!E161 ->  | F163: ='Calc|Fee Based'!F161 ->  | G163: ='Calc|Fee Based'!G161 ->  | H163: 0 | I163: =IF(AND(B163='Calc|Fee Based'!B161,C163='Calc|Fee Based'!C161,D163='Calc|Fee Based'!D161,E163='Calc|Fee Based'!E161, F163='Calc|Fee Based'!F161,G163='Calc|Fee Based'!G161, H163='Calc|Fee Based'!H161),0,1) -> 0
A164: 153 | B164: ='Calc|Fee Based'!B162 ->  | C164: ='Calc|Fee Based'!C162 ->  | D164: ='Calc|Fee Based'!D162 ->  | E164: ='Calc|Fee Based'!E162 ->  | F164: ='Calc|Fee Based'!F162 ->  | G164: ='Calc|Fee Based'!G162 ->  | H164: 0 | I164: =IF(AND(B164='Calc|Fee Based'!B162,C164='Calc|Fee Based'!C162,D164='Calc|Fee Based'!D162,E164='Calc|Fee Based'!E162, F164='Calc|Fee Based'!F162,G164='Calc|Fee Based'!G162, H164='Calc|Fee Based'!H162),0,1) -> 0
A165: 154 | B165: ='Calc|Fee Based'!B163 ->  | C165: ='Calc|Fee Based'!C163 ->  | D165: ='Calc|Fee Based'!D163 ->  | E165: ='Calc|Fee Based'!E163 ->  | F165: ='Calc|Fee Based'!F163 ->  | G165: ='Calc|Fee Based'!G163 ->  | H165: 0 | I165: =IF(AND(B165='Calc|Fee Based'!B163,C165='Calc|Fee Based'!C163,D165='Calc|Fee Based'!D163,E165='Calc|Fee Based'!E163, F165='Calc|Fee Based'!F163,G165='Calc|Fee Based'!G163, H165='Calc|Fee Based'!H163),0,1) -> 0
A166: 155 | B166: ='Calc|Fee Based'!B164 ->  | C166: ='Calc|Fee Based'!C164 ->  | D166: ='Calc|Fee Based'!D164 ->  | E166: ='Calc|Fee Based'!E164 ->  | F166: ='Calc|Fee Based'!F164 ->  | G166: ='Calc|Fee Based'!G164 ->  | H166: 0 | I166: =IF(AND(B166='Calc|Fee Based'!B164,C166='Calc|Fee Based'!C164,D166='Calc|Fee Based'!D164,E166='Calc|Fee Based'!E164, F166='Calc|Fee Based'!F164,G166='Calc|Fee Based'!G164, H166='Calc|Fee Based'!H164),0,1) -> 0
A167: 156 | B167: ='Calc|Fee Based'!B165 ->  | C167: ='Calc|Fee Based'!C165 ->  | D167: ='Calc|Fee Based'!D165 ->  | E167: ='Calc|Fee Based'!E165 ->  | F167: ='Calc|Fee Based'!F165 ->  | G167: ='Calc|Fee Based'!G165 ->  | H167: 0 | I167: =IF(AND(B167='Calc|Fee Based'!B165,C167='Calc|Fee Based'!C165,D167='Calc|Fee Based'!D165,E167='Calc|Fee Based'!E165, F167='Calc|Fee Based'!F165,G167='Calc|Fee Based'!G165, H167='Calc|Fee Based'!H165),0,1) -> 0
A168: 157 | B168: ='Calc|Fee Based'!B166 ->  | C168: ='Calc|Fee Based'!C166 ->  | D168: ='Calc|Fee Based'!D166 ->  | E168: ='Calc|Fee Based'!E166 ->  | F168: ='Calc|Fee Based'!F166 ->  | G168: ='Calc|Fee Based'!G166 ->  | H168: 0 | I168: =IF(AND(B168='Calc|Fee Based'!B166,C168='Calc|Fee Based'!C166,D168='Calc|Fee Based'!D166,E168='Calc|Fee Based'!E166, F168='Calc|Fee Based'!F166,G168='Calc|Fee Based'!G166, H168='Calc|Fee Based'!H166),0,1) -> 0
A169: 158 | B169: ='Calc|Fee Based'!B167 ->  | C169: ='Calc|Fee Based'!C167 ->  | D169: ='Calc|Fee Based'!D167 ->  | E169: ='Calc|Fee Based'!E167 ->  | F169: ='Calc|Fee Based'!F167 ->  | G169: ='Calc|Fee Based'!G167 ->  | H169: 0 | I169: =IF(AND(B169='Calc|Fee Based'!B167,C169='Calc|Fee Based'!C167,D169='Calc|Fee Based'!D167,E169='Calc|Fee Based'!E167, F169='Calc|Fee Based'!F167,G169='Calc|Fee Based'!G167, H169='Calc|Fee Based'!H167),0,1) -> 0
A170: 159 | B170: ='Calc|Fee Based'!B168 ->  | C170: ='Calc|Fee Based'!C168 ->  | D170: ='Calc|Fee Based'!D168 ->  | E170: ='Calc|Fee Based'!E168 ->  | F170: ='Calc|Fee Based'!F168 ->  | G170: ='Calc|Fee Based'!G168 ->  | H170: 0 | I170: =IF(AND(B170='Calc|Fee Based'!B168,C170='Calc|Fee Based'!C168,D170='Calc|Fee Based'!D168,E170='Calc|Fee Based'!E168, F170='Calc|Fee Based'!F168,G170='Calc|Fee Based'!G168, H170='Calc|Fee Based'!H168),0,1) -> 0
A171: 160 | B171: ='Calc|Fee Based'!B169 ->  | C171: ='Calc|Fee Based'!C169 ->  | D171: ='Calc|Fee Based'!D169 ->  | E171: ='Calc|Fee Based'!E169 ->  | F171: ='Calc|Fee Based'!F169 ->  | G171: ='Calc|Fee Based'!G169 ->  | H171: 0 | I171: =IF(AND(B171='Calc|Fee Based'!B169,C171='Calc|Fee Based'!C169,D171='Calc|Fee Based'!D169,E171='Calc|Fee Based'!E169, F171='Calc|Fee Based'!F169,G171='Calc|Fee Based'!G169, H171='Calc|Fee Based'!H169),0,1) -> 0
A172: 161 | B172: ='Calc|Fee Based'!B170 ->  | C172: ='Calc|Fee Based'!C170 ->  | D172: ='Calc|Fee Based'!D170 ->  | E172: ='Calc|Fee Based'!E170 ->  | F172: ='Calc|Fee Based'!F170 ->  | G172: ='Calc|Fee Based'!G170 ->  | H172: 0 | I172: =IF(AND(B172='Calc|Fee Based'!B170,C172='Calc|Fee Based'!C170,D172='Calc|Fee Based'!D170,E172='Calc|Fee Based'!E170, F172='Calc|Fee Based'!F170,G172='Calc|Fee Based'!G170, H172='Calc|Fee Based'!H170),0,1) -> 0
A173: 162 | B173: ='Calc|Fee Based'!B171 ->  | C173: ='Calc|Fee Based'!C171 ->  | D173: ='Calc|Fee Based'!D171 ->  | E173: ='Calc|Fee Based'!E171 ->  | F173: ='Calc|Fee Based'!F171 ->  | G173: ='Calc|Fee Based'!G171 ->  | H173: 0 | I173: =IF(AND(B173='Calc|Fee Based'!B171,C173='Calc|Fee Based'!C171,D173='Calc|Fee Based'!D171,E173='Calc|Fee Based'!E171, F173='Calc|Fee Based'!F171,G173='Calc|Fee Based'!G171, H173='Calc|Fee Based'!H171),0,1) -> 0
A174: 163 | B174: ='Calc|Fee Based'!B172 ->  | C174: ='Calc|Fee Based'!C172 ->  | D174: ='Calc|Fee Based'!D172 ->  | E174: ='Calc|Fee Based'!E172 ->  | F174: ='Calc|Fee Based'!F172 ->  | G174: ='Calc|Fee Based'!G172 ->  | H174: 0 | I174: =IF(AND(B174='Calc|Fee Based'!B172,C174='Calc|Fee Based'!C172,D174='Calc|Fee Based'!D172,E174='Calc|Fee Based'!E172, F174='Calc|Fee Based'!F172,G174='Calc|Fee Based'!G172, H174='Calc|Fee Based'!H172),0,1) -> 0
A175: 164 | B175: ='Calc|Fee Based'!B173 ->  | C175: ='Calc|Fee Based'!C173 ->  | D175: ='Calc|Fee Based'!D173 ->  | E175: ='Calc|Fee Based'!E173 ->  | F175: ='Calc|Fee Based'!F173 ->  | G175: ='Calc|Fee Based'!G173 ->  | H175: 0 | I175: =IF(AND(B175='Calc|Fee Based'!B173,C175='Calc|Fee Based'!C173,D175='Calc|Fee Based'!D173,E175='Calc|Fee Based'!E173, F175='Calc|Fee Based'!F173,G175='Calc|Fee Based'!G173, H175='Calc|Fee Based'!H173),0,1) -> 0
A176: 165 | B176: ='Calc|Fee Based'!B174 ->  | C176: ='Calc|Fee Based'!C174 ->  | D176: ='Calc|Fee Based'!D174 ->  | E176: ='Calc|Fee Based'!E174 ->  | F176: ='Calc|Fee Based'!F174 ->  | G176: ='Calc|Fee Based'!G174 ->  | H176: 0 | I176: =IF(AND(B176='Calc|Fee Based'!B174,C176='Calc|Fee Based'!C174,D176='Calc|Fee Based'!D174,E176='Calc|Fee Based'!E174, F176='Calc|Fee Based'!F174,G176='Calc|Fee Based'!G174, H176='Calc|Fee Based'!H174),0,1) -> 0
A177: 166 | B177: ='Calc|Fee Based'!B175 ->  | C177: ='Calc|Fee Based'!C175 ->  | D177: ='Calc|Fee Based'!D175 ->  | E177: ='Calc|Fee Based'!E175 ->  | F177: ='Calc|Fee Based'!F175 ->  | G177: ='Calc|Fee Based'!G175 ->  | H177: 0 | I177: =IF(AND(B177='Calc|Fee Based'!B175,C177='Calc|Fee Based'!C175,D177='Calc|Fee Based'!D175,E177='Calc|Fee Based'!E175, F177='Calc|Fee Based'!F175,G177='Calc|Fee Based'!G175, H177='Calc|Fee Based'!H175),0,1) -> 0
A178: 167 | B178: ='Calc|Fee Based'!B176 ->  | C178: ='Calc|Fee Based'!C176 ->  | D178: ='Calc|Fee Based'!D176 ->  | E178: ='Calc|Fee Based'!E176 ->  | F178: ='Calc|Fee Based'!F176 ->  | G178: ='Calc|Fee Based'!G176 ->  | H178: 0 | I178: =IF(AND(B178='Calc|Fee Based'!B176,C178='Calc|Fee Based'!C176,D178='Calc|Fee Based'!D176,E178='Calc|Fee Based'!E176, F178='Calc|Fee Based'!F176,G178='Calc|Fee Based'!G176, H178='Calc|Fee Based'!H176),0,1) -> 0
A179: 168 | B179: ='Calc|Fee Based'!B177 ->  | C179: ='Calc|Fee Based'!C177 ->  | D179: ='Calc|Fee Based'!D177 ->  | E179: ='Calc|Fee Based'!E177 ->  | F179: ='Calc|Fee Based'!F177 ->  | G179: ='Calc|Fee Based'!G177 ->  | H179: 0 | I179: =IF(AND(B179='Calc|Fee Based'!B177,C179='Calc|Fee Based'!C177,D179='Calc|Fee Based'!D177,E179='Calc|Fee Based'!E177, F179='Calc|Fee Based'!F177,G179='Calc|Fee Based'!G177, H179='Calc|Fee Based'!H177),0,1) -> 0
A180: 169 | B180: ='Calc|Fee Based'!B178 ->  | C180: ='Calc|Fee Based'!C178 ->  | D180: ='Calc|Fee Based'!D178 ->  | E180: ='Calc|Fee Based'!E178 ->  | F180: ='Calc|Fee Based'!F178 ->  | G180: ='Calc|Fee Based'!G178 ->  | H180: 0 | I180: =IF(AND(B180='Calc|Fee Based'!B178,C180='Calc|Fee Based'!C178,D180='Calc|Fee Based'!D178,E180='Calc|Fee Based'!E178, F180='Calc|Fee Based'!F178,G180='Calc|Fee Based'!G178, H180='Calc|Fee Based'!H178),0,1) -> 0
A181: 170 | B181: ='Calc|Fee Based'!B179 ->  | C181: ='Calc|Fee Based'!C179 ->  | D181: ='Calc|Fee Based'!D179 ->  | E181: ='Calc|Fee Based'!E179 ->  | F181: ='Calc|Fee Based'!F179 ->  | G181: ='Calc|Fee Based'!G179 ->  | H181: 0 | I181: =IF(AND(B181='Calc|Fee Based'!B179,C181='Calc|Fee Based'!C179,D181='Calc|Fee Based'!D179,E181='Calc|Fee Based'!E179, F181='Calc|Fee Based'!F179,G181='Calc|Fee Based'!G179, H181='Calc|Fee Based'!H179),0,1) -> 0
A182: 171 | B182: ='Calc|Fee Based'!B180 ->  | C182: ='Calc|Fee Based'!C180 ->  | D182: ='Calc|Fee Based'!D180 ->  | E182: ='Calc|Fee Based'!E180 ->  | F182: ='Calc|Fee Based'!F180 ->  | G182: ='Calc|Fee Based'!G180 ->  | H182: 0 | I182: =IF(AND(B182='Calc|Fee Based'!B180,C182='Calc|Fee Based'!C180,D182='Calc|Fee Based'!D180,E182='Calc|Fee Based'!E180, F182='Calc|Fee Based'!F180,G182='Calc|Fee Based'!G180, H182='Calc|Fee Based'!H180),0,1) -> 0
A183: 172 | B183: ='Calc|Fee Based'!B181 ->  | C183: ='Calc|Fee Based'!C181 ->  | D183: ='Calc|Fee Based'!D181 ->  | E183: ='Calc|Fee Based'!E181 ->  | F183: ='Calc|Fee Based'!F181 ->  | G183: ='Calc|Fee Based'!G181 ->  | H183: 0 | I183: =IF(AND(B183='Calc|Fee Based'!B181,C183='Calc|Fee Based'!C181,D183='Calc|Fee Based'!D181,E183='Calc|Fee Based'!E181, F183='Calc|Fee Based'!F181,G183='Calc|Fee Based'!G181, H183='Calc|Fee Based'!H181),0,1) -> 0
A184: 173 | B184: ='Calc|Fee Based'!B182 ->  | C184: ='Calc|Fee Based'!C182 ->  | D184: ='Calc|Fee Based'!D182 ->  | E184: ='Calc|Fee Based'!E182 ->  | F184: ='Calc|Fee Based'!F182 ->  | G184: ='Calc|Fee Based'!G182 ->  | H184: 0 | I184: =IF(AND(B184='Calc|Fee Based'!B182,C184='Calc|Fee Based'!C182,D184='Calc|Fee Based'!D182,E184='Calc|Fee Based'!E182, F184='Calc|Fee Based'!F182,G184='Calc|Fee Based'!G182, H184='Calc|Fee Based'!H182),0,1) -> 0
A185: 174 | B185: ='Calc|Fee Based'!B183 ->  | C185: ='Calc|Fee Based'!C183 ->  | D185: ='Calc|Fee Based'!D183 ->  | E185: ='Calc|Fee Based'!E183 ->  | F185: ='Calc|Fee Based'!F183 ->  | G185: ='Calc|Fee Based'!G183 ->  | H185: 0 | I185: =IF(AND(B185='Calc|Fee Based'!B183,C185='Calc|Fee Based'!C183,D185='Calc|Fee Based'!D183,E185='Calc|Fee Based'!E183, F185='Calc|Fee Based'!F183,G185='Calc|Fee Based'!G183, H185='Calc|Fee Based'!H183),0,1) -> 0
A186: 175 | B186: ='Calc|Fee Based'!B184 ->  | C186: ='Calc|Fee Based'!C184 ->  | D186: ='Calc|Fee Based'!D184 ->  | E186: ='Calc|Fee Based'!E184 ->  | F186: ='Calc|Fee Based'!F184 ->  | G186: ='Calc|Fee Based'!G184 ->  | H186: 0 | I186: =IF(AND(B186='Calc|Fee Based'!B184,C186='Calc|Fee Based'!C184,D186='Calc|Fee Based'!D184,E186='Calc|Fee Based'!E184, F186='Calc|Fee Based'!F184,G186='Calc|Fee Based'!G184, H186='Calc|Fee Based'!H184),0,1) -> 0
A187: 176 | B187: ='Calc|Fee Based'!B185 ->  | C187: ='Calc|Fee Based'!C185 ->  | D187: ='Calc|Fee Based'!D185 ->  | E187: ='Calc|Fee Based'!E185 ->  | F187: ='Calc|Fee Based'!F185 ->  | G187: ='Calc|Fee Based'!G185 ->  | H187: 0 | I187: =IF(AND(B187='Calc|Fee Based'!B185,C187='Calc|Fee Based'!C185,D187='Calc|Fee Based'!D185,E187='Calc|Fee Based'!E185, F187='Calc|Fee Based'!F185,G187='Calc|Fee Based'!G185, H187='Calc|Fee Based'!H185),0,1) -> 0
A188: 177 | B188: ='Calc|Fee Based'!B186 ->  | C188: ='Calc|Fee Based'!C186 ->  | D188: ='Calc|Fee Based'!D186 ->  | E188: ='Calc|Fee Based'!E186 ->  | F188: ='Calc|Fee Based'!F186 ->  | G188: ='Calc|Fee Based'!G186 ->  | H188: 0 | I188: =IF(AND(B188='Calc|Fee Based'!B186,C188='Calc|Fee Based'!C186,D188='Calc|Fee Based'!D186,E188='Calc|Fee Based'!E186, F188='Calc|Fee Based'!F186,G188='Calc|Fee Based'!G186, H188='Calc|Fee Based'!H186),0,1) -> 0
A189: 178 | B189: ='Calc|Fee Based'!B187 ->  | C189: ='Calc|Fee Based'!C187 ->  | D189: ='Calc|Fee Based'!D187 ->  | E189: ='Calc|Fee Based'!E187 ->  | F189: ='Calc|Fee Based'!F187 ->  | G189: ='Calc|Fee Based'!G187 ->  | H189: 0 | I189: =IF(AND(B189='Calc|Fee Based'!B187,C189='Calc|Fee Based'!C187,D189='Calc|Fee Based'!D187,E189='Calc|Fee Based'!E187, F189='Calc|Fee Based'!F187,G189='Calc|Fee Based'!G187, H189='Calc|Fee Based'!H187),0,1) -> 0
A190: 179 | B190: ='Calc|Fee Based'!B188 ->  | C190: ='Calc|Fee Based'!C188 ->  | D190: ='Calc|Fee Based'!D188 ->  | E190: ='Calc|Fee Based'!E188 ->  | F190: ='Calc|Fee Based'!F188 ->  | G190: ='Calc|Fee Based'!G188 ->  | H190: 0 | I190: =IF(AND(B190='Calc|Fee Based'!B188,C190='Calc|Fee Based'!C188,D190='Calc|Fee Based'!D188,E190='Calc|Fee Based'!E188, F190='Calc|Fee Based'!F188,G190='Calc|Fee Based'!G188, H190='Calc|Fee Based'!H188),0,1) -> 0
A191: 180 | B191: ='Calc|Fee Based'!B189 ->  | C191: ='Calc|Fee Based'!C189 ->  | D191: ='Calc|Fee Based'!D189 ->  | E191: ='Calc|Fee Based'!E189 ->  | F191: ='Calc|Fee Based'!F189 ->  | G191: ='Calc|Fee Based'!G189 ->  | H191: 0 | I191: =IF(AND(B191='Calc|Fee Based'!B189,C191='Calc|Fee Based'!C189,D191='Calc|Fee Based'!D189,E191='Calc|Fee Based'!E189, F191='Calc|Fee Based'!F189,G191='Calc|Fee Based'!G189, H191='Calc|Fee Based'!H189),0,1) -> 0
A192: 181 | B192: ='Calc|Fee Based'!B190 ->  | C192: ='Calc|Fee Based'!C190 ->  | D192: ='Calc|Fee Based'!D190 ->  | E192: ='Calc|Fee Based'!E190 ->  | F192: ='Calc|Fee Based'!F190 ->  | G192: ='Calc|Fee Based'!G190 ->  | H192: 0 | I192: =IF(AND(B192='Calc|Fee Based'!B190,C192='Calc|Fee Based'!C190,D192='Calc|Fee Based'!D190,E192='Calc|Fee Based'!E190, F192='Calc|Fee Based'!F190,G192='Calc|Fee Based'!G190, H192='Calc|Fee Based'!H190),0,1) -> 0
A193: 182 | B193: ='Calc|Fee Based'!B191 ->  | C193: ='Calc|Fee Based'!C191 ->  | D193: ='Calc|Fee Based'!D191 ->  | E193: ='Calc|Fee Based'!E191 ->  | F193: ='Calc|Fee Based'!F191 ->  | G193: ='Calc|Fee Based'!G191 ->  | H193: 0 | I193: =IF(AND(B193='Calc|Fee Based'!B191,C193='Calc|Fee Based'!C191,D193='Calc|Fee Based'!D191,E193='Calc|Fee Based'!E191, F193='Calc|Fee Based'!F191,G193='Calc|Fee Based'!G191, H193='Calc|Fee Based'!H191),0,1) -> 0
A194: 183 | B194: ='Calc|Fee Based'!B192 ->  | C194: ='Calc|Fee Based'!C192 ->  | D194: ='Calc|Fee Based'!D192 ->  | E194: ='Calc|Fee Based'!E192 ->  | F194: ='Calc|Fee Based'!F192 ->  | G194: ='Calc|Fee Based'!G192 ->  | H194: 0 | I194: =IF(AND(B194='Calc|Fee Based'!B192,C194='Calc|Fee Based'!C192,D194='Calc|Fee Based'!D192,E194='Calc|Fee Based'!E192, F194='Calc|Fee Based'!F192,G194='Calc|Fee Based'!G192, H194='Calc|Fee Based'!H192),0,1) -> 0
A195: 184 | B195: ='Calc|Fee Based'!B193 ->  | C195: ='Calc|Fee Based'!C193 ->  | D195: ='Calc|Fee Based'!D193 ->  | E195: ='Calc|Fee Based'!E193 ->  | F195: ='Calc|Fee Based'!F193 ->  | G195: ='Calc|Fee Based'!G193 ->  | H195: 0 | I195: =IF(AND(B195='Calc|Fee Based'!B193,C195='Calc|Fee Based'!C193,D195='Calc|Fee Based'!D193,E195='Calc|Fee Based'!E193, F195='Calc|Fee Based'!F193,G195='Calc|Fee Based'!G193, H195='Calc|Fee Based'!H193),0,1) -> 0
A196: 185 | B196: ='Calc|Fee Based'!B194 ->  | C196: ='Calc|Fee Based'!C194 ->  | D196: ='Calc|Fee Based'!D194 ->  | E196: ='Calc|Fee Based'!E194 ->  | F196: ='Calc|Fee Based'!F194 ->  | G196: ='Calc|Fee Based'!G194 ->  | H196: 0 | I196: =IF(AND(B196='Calc|Fee Based'!B194,C196='Calc|Fee Based'!C194,D196='Calc|Fee Based'!D194,E196='Calc|Fee Based'!E194, F196='Calc|Fee Based'!F194,G196='Calc|Fee Based'!G194, H196='Calc|Fee Based'!H194),0,1) -> 0
A197: 186 | B197: ='Calc|Fee Based'!B195 ->  | C197: ='Calc|Fee Based'!C195 ->  | D197: ='Calc|Fee Based'!D195 ->  | E197: ='Calc|Fee Based'!E195 ->  | F197: ='Calc|Fee Based'!F195 ->  | G197: ='Calc|Fee Based'!G195 ->  | H197: 0 | I197: =IF(AND(B197='Calc|Fee Based'!B195,C197='Calc|Fee Based'!C195,D197='Calc|Fee Based'!D195,E197='Calc|Fee Based'!E195, F197='Calc|Fee Based'!F195,G197='Calc|Fee Based'!G195, H197='Calc|Fee Based'!H195),0,1) -> 0
A198: 187 | B198: ='Calc|Fee Based'!B196 ->  | C198: ='Calc|Fee Based'!C196 ->  | D198: ='Calc|Fee Based'!D196 ->  | E198: ='Calc|Fee Based'!E196 ->  | F198: ='Calc|Fee Based'!F196 ->  | G198: ='Calc|Fee Based'!G196 ->  | H198: 0 | I198: =IF(AND(B198='Calc|Fee Based'!B196,C198='Calc|Fee Based'!C196,D198='Calc|Fee Based'!D196,E198='Calc|Fee Based'!E196, F198='Calc|Fee Based'!F196,G198='Calc|Fee Based'!G196, H198='Calc|Fee Based'!H196),0,1) -> 0
A199: 188 | B199: ='Calc|Fee Based'!B197 ->  | C199: ='Calc|Fee Based'!C197 ->  | D199: ='Calc|Fee Based'!D197 ->  | E199: ='Calc|Fee Based'!E197 ->  | F199: ='Calc|Fee Based'!F197 ->  | G199: ='Calc|Fee Based'!G197 ->  | H199: 0 | I199: =IF(AND(B199='Calc|Fee Based'!B197,C199='Calc|Fee Based'!C197,D199='Calc|Fee Based'!D197,E199='Calc|Fee Based'!E197, F199='Calc|Fee Based'!F197,G199='Calc|Fee Based'!G197, H199='Calc|Fee Based'!H197),0,1) -> 0
A200: 189 | B200: ='Calc|Fee Based'!B198 ->  | C200: ='Calc|Fee Based'!C198 ->  | D200: ='Calc|Fee Based'!D198 ->  | E200: ='Calc|Fee Based'!E198 ->  | F200: ='Calc|Fee Based'!F198 ->  | G200: ='Calc|Fee Based'!G198 ->  | H200: 0 | I200: =IF(AND(B200='Calc|Fee Based'!B198,C200='Calc|Fee Based'!C198,D200='Calc|Fee Based'!D198,E200='Calc|Fee Based'!E198, F200='Calc|Fee Based'!F198,G200='Calc|Fee Based'!G198, H200='Calc|Fee Based'!H198),0,1) -> 0
A201: 190 | B201: ='Calc|Fee Based'!B199 ->  | C201: ='Calc|Fee Based'!C199 ->  | D201: ='Calc|Fee Based'!D199 ->  | E201: ='Calc|Fee Based'!E199 ->  | F201: ='Calc|Fee Based'!F199 ->  | G201: ='Calc|Fee Based'!G199 ->  | H201: 0 | I201: =IF(AND(B201='Calc|Fee Based'!B199,C201='Calc|Fee Based'!C199,D201='Calc|Fee Based'!D199,E201='Calc|Fee Based'!E199, F201='Calc|Fee Based'!F199,G201='Calc|Fee Based'!G199, H201='Calc|Fee Based'!H199),0,1) -> 0
A202: 191 | B202: ='Calc|Fee Based'!B200 ->  | C202: ='Calc|Fee Based'!C200 ->  | D202: ='Calc|Fee Based'!D200 ->  | E202: ='Calc|Fee Based'!E200 ->  | F202: ='Calc|Fee Based'!F200 ->  | G202: ='Calc|Fee Based'!G200 ->  | H202: 0 | I202: =IF(AND(B202='Calc|Fee Based'!B200,C202='Calc|Fee Based'!C200,D202='Calc|Fee Based'!D200,E202='Calc|Fee Based'!E200, F202='Calc|Fee Based'!F200,G202='Calc|Fee Based'!G200, H202='Calc|Fee Based'!H200),0,1) -> 0
A203: 192 | B203: ='Calc|Fee Based'!B201 ->  | C203: ='Calc|Fee Based'!C201 ->  | D203: ='Calc|Fee Based'!D201 ->  | E203: ='Calc|Fee Based'!E201 ->  | F203: ='Calc|Fee Based'!F201 ->  | G203: ='Calc|Fee Based'!G201 ->  | H203: 0 | I203: =IF(AND(B203='Calc|Fee Based'!B201,C203='Calc|Fee Based'!C201,D203='Calc|Fee Based'!D201,E203='Calc|Fee Based'!E201, F203='Calc|Fee Based'!F201,G203='Calc|Fee Based'!G201, H203='Calc|Fee Based'!H201),0,1) -> 0
... 296 more rows

Sheet Output|Quoted
B1: =Index!B1 -> AER ANS Forecast Model | C1: Key: | D1: Input | F1: Sheet Validation | G1: ='Model Validation'!C9 -> 0
B2: =MID(CELL("filename",A1),FIND("]",CELL("filename",A1))+1,255) -> Output|Quoted | D2: Formula
D4: =IF(D7='Input|Escalations'!J27,0,1) -> 0 | E4: =IF(E7='Input|Escalations'!K27,0,1) -> 0 | F4: =IF(F7='Input|Escalations'!L27,0,1) -> 0 | G4: =IF(G7='Input|Escalations'!M27,0,1) -> 0
B5: =IFERROR("2.1 X-factors for each year of "&'Input|Setup'!$E$11&" to "&'Input|Setup'!$E$15&" regulatory period, (per cent)","") -> 2.1 X-factors for each year of 2025-26 to 2029-30 regulatory period, (per cent)
C6: ='Output|Fee Based'!C6 -> 2025-26 | D6: ='Output|Fee Based'!D6 -> 2026-27 | E6: ='Output|Fee Based'!E6 -> 2027-28 | F6: ='Output|Fee Based'!F6 -> 2028-29 | G6: ='Output|Fee Based'!G6 -> 2029-30
D7: ='Output|Fee Based'!D7 -> -0.009861100793 | E7: ='Output|Fee Based'!E7 -> -0.008443651806 | F7: ='Output|Fee Based'!F7 -> -0.01051247269 | G7: ='Output|Fee Based'!G7 -> -0.01236745202
I9: For AER only
B10: =IFERROR("2.2 Labour rates for "&'Input|Setup'!$E$11&", ($"&'Input|Setup'!$E$8&")","") -> 2.2 Labour rates for 2025-26, ($2025-26) | I10: AER maximum rates | J10: AER decision
B11: Quoted service - Labour rates | C11: Hours | D11: Hourly rate ($) | I11: Hourly rate ($) | J11: Hourly rate ($)
A12: 1 | B12: ='Calc|Labour Rates'!B10 -> Administrative | C12: ='Calc|Labour Rates'!C10 -> Business hours | D12: =IF('Calc|Labour Rates'!$D10="No","NA",IFERROR(LOOKUP(2, 1/('Calc|Labour Rates'!$B$10:$B$39='Output|Quoted'!$B12)/('Calc|Labour Rates'!$C$10:$C$39='Output|Quoted'!$C12),'Calc|Labour Rates'!$E$10:$E$39),0)) -> NA | G12: =IF(OR($D12="NA",AND(B12='Calc|Labour Rates'!B10,'Output|Quoted'!C12='Calc|Labour Rates'!C10,'Output|Quoted'!D12='Calc|Labour Rates'!E10)),0,1) -> 0 | I12: 72 | J12: =MIN($I12,$D12) -> 72
A13: =IFERROR(A12+1,"") -> 2 | B13: ='Calc|Labour Rates'!B11 -> Technical Service Person | C13: ='Calc|Labour Rates'!C11 -> Business hours | D13: =IF('Calc|Labour Rates'!$D11="No","NA",IFERROR(LOOKUP(2, 1/('Calc|Labour Rates'!$B$10:$B$39='Output|Quoted'!$B13)/('Calc|Labour Rates'!$C$10:$C$39='Output|Quoted'!$C13),'Calc|Labour Rates'!$E$10:$E$39),0)) -> NA | G13: =IF(OR($D13="NA",AND(B13='Calc|Labour Rates'!B11,'Output|Quoted'!C13='Calc|Labour Rates'!C11,'Output|Quoted'!D13='Calc|Labour Rates'!E11)),0,1) -> 0 | I13: 150 | J13: 150
A14: =IFERROR(A13+1,"") -> 3 | B14: ='Calc|Labour Rates'!B12 -> Supervisor | C14: ='Calc|Labour Rates'!C12 -> Business hours | D14: =IF('Calc|Labour Rates'!$D12="No","NA",IFERROR(LOOKUP(2, 1/('Calc|Labour Rates'!$B$10:$B$39='Output|Quoted'!$B14)/('Calc|Labour Rates'!$C$10:$C$39='Output|Quoted'!$C14),'Calc|Labour Rates'!$E$10:$E$39),0)) -> NA | G14: =IF(OR($D14="NA",AND(B14='Calc|Labour Rates'!B12,'Output|Quoted'!C14='Calc|Labour Rates'!C12,'Output|Quoted'!D14='Calc|Labour Rates'!E12)),0,1) -> 0 | I14: 150 | J14: 150
A15: 4 | B15: ='Calc|Labour Rates'!B13 -> Para Professional | C15: ='Calc|Labour Rates'!C13 -> Business hours | D15: =IF('Calc|Labour Rates'!$D13="No","NA",IFERROR(LOOKUP(2, 1/('Calc|Labour Rates'!$B$10:$B$39='Output|Quoted'!$B15)/('Calc|Labour Rates'!$C$10:$C$39='Output|Quoted'!$C15),'Calc|Labour Rates'!$E$10:$E$39),0)) -> NA | G15: =IF(OR($D15="NA",AND(B15='Calc|Labour Rates'!B13,'Output|Quoted'!C15='Calc|Labour Rates'!C13,'Output|Quoted'!D15='Calc|Labour Rates'!E13)),0,1) -> 0 | I15: 205 | J15: 205
A16: 5 | B16: ='Calc|Labour Rates'!B14 -> 50% TSP/Contractor mix | C16: ='Calc|Labour Rates'!C14 -> Business hours | D16: =IF('Calc|Labour Rates'!$D14="No","NA",IFERROR(LOOKUP(2, 1/('Calc|Labour Rates'!$B$10:$B$39='Output|Quoted'!$B16)/('Calc|Labour Rates'!$C$10:$C$39='Output|Quoted'!$C16),'Calc|Labour Rates'!$E$10:$E$39),0)) -> NA | G16: =IF(OR($D16="NA",AND(B16='Calc|Labour Rates'!B14,'Output|Quoted'!C16='Calc|Labour Rates'!C14,'Output|Quoted'!D16='Calc|Labour Rates'!E14)),0,1) -> 0 | I16: 300 | J16: 300
A17: 6 | B17: ='Calc|Labour Rates'!B15 -> 20% TSP/Contractor mix | C17: ='Calc|Labour Rates'!C15 -> Business hours | D17: =IF('Calc|Labour Rates'!$D15="No","NA",IFERROR(LOOKUP(2, 1/('Calc|Labour Rates'!$B$10:$B$39='Output|Quoted'!$B17)/('Calc|Labour Rates'!$C$10:$C$39='Output|Quoted'!$C17),'Calc|Labour Rates'!$E$10:$E$39),0)) -> NA | G17: =IF(OR($D17="NA",AND(B17='Calc|Labour Rates'!B15,'Output|Quoted'!C17='Calc|Labour Rates'!C15,'Output|Quoted'!D17='Calc|Labour Rates'!E15)),0,1) -> 0 | I17: =I12*1.69 -> 121.68 | J17: 121.68
A18: 7 | B18: ='Calc|Labour Rates'!B16 -> Administrative | C18: ='Calc|Labour Rates'!C16 -> After hours | D18: =IF('Calc|Labour Rates'!$D16="No","NA",IFERROR(LOOKUP(2, 1/('Calc|Labour Rates'!$B$10:$B$39='Output|Quoted'!$B18)/('Calc|Labour Rates'!$C$10:$C$39='Output|Quoted'!$C18),'Calc|Labour Rates'!$E$10:$E$39),0)) -> NA | G18: =IF(OR($D18="NA",AND(B18='Calc|Labour Rates'!B16,'Output|Quoted'!C18='Calc|Labour Rates'!C16,'Output|Quoted'!D18='Calc|Labour Rates'!E16)),0,1) -> 0 | I18: =I13*1.69 -> 253.5 | J18: 253.5
A19: 8 | B19: ='Calc|Labour Rates'!B17 -> Technical Service Person | C19: ='Calc|Labour Rates'!C17 -> After hours | D19: =IF('Calc|Labour Rates'!$D17="No","NA",IFERROR(LOOKUP(2, 1/('Calc|Labour Rates'!$B$10:$B$39='Output|Quoted'!$B19)/('Calc|Labour Rates'!$C$10:$C$39='Output|Quoted'!$C19),'Calc|Labour Rates'!$E$10:$E$39),0)) -> NA | G19: =IF(OR($D19="NA",AND(B19='Calc|Labour Rates'!B17,'Output|Quoted'!C19='Calc|Labour Rates'!C17,'Output|Quoted'!D19='Calc|Labour Rates'!E17)),0,1) -> 0 | I19: =I14*1.69 -> 253.5 | J19: 253.5
A20: 9 | B20: ='Calc|Labour Rates'!B18 -> Supervisor | C20: ='Calc|Labour Rates'!C18 -> After hours | D20: =IF('Calc|Labour Rates'!$D18="No","NA",IFERROR(LOOKUP(2, 1/('Calc|Labour Rates'!$B$10:$B$39='Output|Quoted'!$B20)/('Calc|Labour Rates'!$C$10:$C$39='Output|Quoted'!$C20),'Calc|Labour Rates'!$E$10:$E$39),0)) -> NA | G20: =IF(OR($D20="NA",AND(B20='Calc|Labour Rates'!B18,'Output|Quoted'!C20='Calc|Labour Rates'!C18,'Output|Quoted'!D20='Calc|Labour Rates'!E18)),0,1) -> 0 | I20: =I15*1.69 -> 346.45 | J20: 346.45
A21: 10 | B21: ='Calc|Labour Rates'!B19 -> Para Professional | C21: ='Calc|Labour Rates'!C19 -> After hours | D21: =IF('Calc|Labour Rates'!$D19="No","NA",IFERROR(LOOKUP(2, 1/('Calc|Labour Rates'!$B$10:$B$39='Output|Quoted'!$B21)/('Calc|Labour Rates'!$C$10:$C$39='Output|Quoted'!$C21),'Calc|Labour Rates'!$E$10:$E$39),0)) -> NA | G21: =IF(OR($D21="NA",AND(B21='Calc|Labour Rates'!B19,'Output|Quoted'!C21='Calc|Labour Rates'!C19,'Output|Quoted'!D21='Calc|Labour Rates'!E19)),0,1) -> 0 | I21: =I16*1.69 -> 507 | J21: 507
A22: 11 | B22: ='Calc|Labour Rates'!B20 -> 50% TSP/Contractor mix | C22: ='Calc|Labour Rates'!C20 -> After hours | D22: =IF('Calc|Labour Rates'!$D20="No","NA",IFERROR(LOOKUP(2, 1/('Calc|Labour Rates'!$B$10:$B$39='Output|Quoted'!$B22)/('Calc|Labour Rates'!$C$10:$C$39='Output|Quoted'!$C22),'Calc|Labour Rates'!$E$10:$E$39),0)) -> NA | G22: =IF(OR($D22="NA",AND(B22='Calc|Labour Rates'!B20,'Output|Quoted'!C22='Calc|Labour Rates'!C20,'Output|Quoted'!D22='Calc|Labour Rates'!E20)),0,1) -> 0 | J22: 0
A23: 12 | B23: ='Calc|Labour Rates'!B21 -> 20% TSP/Contractor mix | C23: ='Calc|Labour Rates'!C21 -> After hours | D23: =IF('Calc|Labour Rates'!$D21="No","NA",IFERROR(LOOKUP(2, 1/('Calc|Labour Rates'!$B$10:$B$39='Output|Quoted'!$B23)/('Calc|Labour Rates'!$C$10:$C$39='Output|Quoted'!$C23),'Calc|Labour Rates'!$E$10:$E$39),0)) -> NA | G23: =IF(OR($D23="NA",AND(B23='Calc|Labour Rates'!B21,'Output|Quoted'!C23='Calc|Labour Rates'!C21,'Output|Quoted'!D23='Calc|Labour Rates'!E21)),0,1) -> 0 | J23: 0
A24: 13 | B24: ='Calc|Labour Rates'!B22 -> Administrative (Quoted) | C24: ='Calc|Labour Rates'!C22 -> Business hours | D24: =IF('Calc|Labour Rates'!$D22="No","NA",IFERROR(LOOKUP(2, 1/('Calc|Labour Rates'!$B$10:$B$39='Output|Quoted'!$B24)/('Calc|Labour Rates'!$C$10:$C$39='Output|Quoted'!$C24),'Calc|Labour Rates'!$E$10:$E$39),0)) -> 104.22 | G24: =IF(OR($D24="NA",AND(B24='Calc|Labour Rates'!B22,'Output|Quoted'!C24='Calc|Labour Rates'!C22,'Output|Quoted'!D24='Calc|Labour Rates'!E22)),0,1) -> 0 | J24: 104.22
A25: 14 | B25: ='Calc|Labour Rates'!B23 -> Professional & Managerial (Quoted) | C25: ='Calc|Labour Rates'!C23 -> Business hours | D25: =IF('Calc|Labour Rates'!$D23="No","NA",IFERROR(LOOKUP(2, 1/('Calc|Labour Rates'!$B$10:$B$39='Output|Quoted'!$B25)/('Calc|Labour Rates'!$C$10:$C$39='Output|Quoted'!$C25),'Calc|Labour Rates'!$E$10:$E$39),0)) -> 260.54 | G25: =IF(OR($D25="NA",AND(B25='Calc|Labour Rates'!B23,'Output|Quoted'!C25='Calc|Labour Rates'!C23,'Output|Quoted'!D25='Calc|Labour Rates'!E23)),0,1) -> 0 | J25: 260.54
A26: 15 | B26: ='Calc|Labour Rates'!B24 -> Power Worker (Quoted) | C26: ='Calc|Labour Rates'!C24 -> Business hours | D26: =IF('Calc|Labour Rates'!$D24="No","NA",IFERROR(LOOKUP(2, 1/('Calc|Labour Rates'!$B$10:$B$39='Output|Quoted'!$B26)/('Calc|Labour Rates'!$C$10:$C$39='Output|Quoted'!$C26),'Calc|Labour Rates'!$E$10:$E$39),0)) -> 195.2567528 | G26: =IF(OR($D26="NA",AND(B26='Calc|Labour Rates'!B24,'Output|Quoted'!C26='Calc|Labour Rates'!C24,'Output|Quoted'!D26='Calc|Labour Rates'!E24)),0,1) -> 0 | J26: 195.2567528
A27: 16 | B27: ='Calc|Labour Rates'!B25 -> Technical Service Person (Quoted) | C27: ='Calc|Labour Rates'!C25 -> Business hours | D27: =IF('Calc|Labour Rates'!$D25="No","NA",IFERROR(LOOKUP(2, 1/('Calc|Labour Rates'!$B$10:$B$39='Output|Quoted'!$B27)/('Calc|Labour Rates'!$C$10:$C$39='Output|Quoted'!$C27),'Calc|Labour Rates'!$E$10:$E$39),0)) -> 243.9949459 | G27: =IF(OR($D27="NA",AND(B27='Calc|Labour Rates'!B25,'Output|Quoted'!C27='Calc|Labour Rates'!C25,'Output|Quoted'!D27='Calc|Labour Rates'!E25)),0,1) -> 0 | J27: 243.9949459
A28: 17 | B28: ='Calc|Labour Rates'!B26 -> Elec Sys Designer (Quoted) | C28: ='Calc|Labour Rates'!C26 -> Business hours | D28: =IF('Calc|Labour Rates'!$D26="No","NA",IFERROR(LOOKUP(2, 1/('Calc|Labour Rates'!$B$10:$B$39='Output|Quoted'!$B28)/('Calc|Labour Rates'!$C$10:$C$39='Output|Quoted'!$C28),'Calc|Labour Rates'!$E$10:$E$39),0)) -> 235.6608162 | G28: =IF(OR($D28="NA",AND(B28='Calc|Labour Rates'!B26,'Output|Quoted'!C28='Calc|Labour Rates'!C26,'Output|Quoted'!D28='Calc|Labour Rates'!E26)),0,1) -> 0 | J28: 235.6608162
A29: 18 | B29: ='Calc|Labour Rates'!B27 -> Supervisor (Quoted) | C29: ='Calc|Labour Rates'!C27 -> Business hours | D29: =IF('Calc|Labour Rates'!$D27="No","NA",IFERROR(LOOKUP(2, 1/('Calc|Labour Rates'!$B$10:$B$39='Output|Quoted'!$B29)/('Calc|Labour Rates'!$C$10:$C$39='Output|Quoted'!$C29),'Calc|Labour Rates'!$E$10:$E$39),0)) -> 260.54 | G29: =IF(OR($D29="NA",AND(B29='Calc|Labour Rates'!B27,'Output|Quoted'!C29='Calc|Labour Rates'!C27,'Output|Quoted'!D29='Calc|Labour Rates'!E27)),0,1) -> 0 | J29: 260.54
A30: 19 | B30: ='Calc|Labour Rates'!B28 -> Para Professional (Quoted) | C30: ='Calc|Labour Rates'!C28 -> Business hours | D30: =IF('Calc|Labour Rates'!$D28="No","NA",IFERROR(LOOKUP(2, 1/('Calc|Labour Rates'!$B$10:$B$39='Output|Quoted'!$B30)/('Calc|Labour Rates'!$C$10:$C$39='Output|Quoted'!$C30),'Calc|Labour Rates'!$E$10:$E$39),0)) -> 256.92 | G30: =IF(OR($D30="NA",AND(B30='Calc|Labour Rates'!B28,'Output|Quoted'!C30='Calc|Labour Rates'!C28,'Output|Quoted'!D30='Calc|Labour Rates'!E28)),0,1) -> 0 | J30: 256.92
A31: 20 | B31: ='Calc|Labour Rates'!B29 -> Apprentice (Quoted) | C31: ='Calc|Labour Rates'!C29 -> Business hours | D31: =IF('Calc|Labour Rates'!$D29="No","NA",IFERROR(LOOKUP(2, 1/('Calc|Labour Rates'!$B$10:$B$39='Output|Quoted'!$B31)/('Calc|Labour Rates'!$C$10:$C$39='Output|Quoted'!$C31),'Calc|Labour Rates'!$E$10:$E$39),0)) -> 171.6982707 | G31: =IF(OR($D31="NA",AND(B31='Calc|Labour Rates'!B29,'Output|Quoted'!C31='Calc|Labour Rates'!C29,'Output|Quoted'!D31='Calc|Labour Rates'!E29)),0,1) -> 0 | J31: 171.6982707
A32: 21 | B32: ='Calc|Labour Rates'!B30 -> System Operator (Quoted) | C32: ='Calc|Labour Rates'!C30 -> Business hours | D32: =IF('Calc|Labour Rates'!$D30="No","NA",IFERROR(LOOKUP(2, 1/('Calc|Labour Rates'!$B$10:$B$39='Output|Quoted'!$B32)/('Calc|Labour Rates'!$C$10:$C$39='Output|Quoted'!$C32),'Calc|Labour Rates'!$E$10:$E$39),0)) -> 312.65 | G32: =IF(OR($D32="NA",AND(B32='Calc|Labour Rates'!B30,'Output|Quoted'!C32='Calc|Labour Rates'!C30,'Output|Quoted'!D32='Calc|Labour Rates'!E30)),0,1) -> 0 | J32: 312.65
A33: 22 | B33: ='Calc|Labour Rates'!B31 -> Administrative (Quoted) | C33: ='Calc|Labour Rates'!C31 -> After hours | D33: =IF('Calc|Labour Rates'!$D31="No","NA",IFERROR(LOOKUP(2, 1/('Calc|Labour Rates'!$B$10:$B$39='Output|Quoted'!$B33)/('Calc|Labour Rates'!$C$10:$C$39='Output|Quoted'!$C33),'Calc|Labour Rates'!$E$10:$E$39),0)) -> 182.38 | G33: =IF(OR($D33="NA",AND(B33='Calc|Labour Rates'!B31,'Output|Quoted'!C33='Calc|Labour Rates'!C31,'Output|Quoted'!D33='Calc|Labour Rates'!E31)),0,1) -> 0 | J33: 182.38
A34: 23 | B34: ='Calc|Labour Rates'!B32 -> Professional & Managerial (Quoted) | C34: ='Calc|Labour Rates'!C32 -> After hours | D34: =IF('Calc|Labour Rates'!$D32="No","NA",IFERROR(LOOKUP(2, 1/('Calc|Labour Rates'!$B$10:$B$39='Output|Quoted'!$B34)/('Calc|Labour Rates'!$C$10:$C$39='Output|Quoted'!$C34),'Calc|Labour Rates'!$E$10:$E$39),0)) -> 382.3911489 | G34: =IF(OR($D34="NA",AND(B34='Calc|Labour Rates'!B32,'Output|Quoted'!C34='Calc|Labour Rates'!C32,'Output|Quoted'!D34='Calc|Labour Rates'!E32)),0,1) -> 0 | J34: 382.3911489
A35: 24 | B35: ='Calc|Labour Rates'!B33 -> Power Worker (Quoted) | C35: ='Calc|Labour Rates'!C33 -> After hours | D35: =IF('Calc|Labour Rates'!$D33="No","NA",IFERROR(LOOKUP(2, 1/('Calc|Labour Rates'!$B$10:$B$39='Output|Quoted'!$B35)/('Calc|Labour Rates'!$C$10:$C$39='Output|Quoted'!$C35),'Calc|Labour Rates'!$E$10:$E$39),0)) -> 233.3164939 | G35: =IF(OR($D35="NA",AND(B35='Calc|Labour Rates'!B33,'Output|Quoted'!C35='Calc|Labour Rates'!C33,'Output|Quoted'!D35='Calc|Labour Rates'!E33)),0,1) -> 0 | J35: 233.3164939
A36: 25 | B36: ='Calc|Labour Rates'!B34 -> Technical Service Person (Quoted) | C36: ='Calc|Labour Rates'!C34 -> After hours | D36: =IF('Calc|Labour Rates'!$D34="No","NA",IFERROR(LOOKUP(2, 1/('Calc|Labour Rates'!$B$10:$B$39='Output|Quoted'!$B36)/('Calc|Labour Rates'!$C$10:$C$39='Output|Quoted'!$C36),'Calc|Labour Rates'!$E$10:$E$39),0)) -> 277.4785152 | G36: =IF(OR($D36="NA",AND(B36='Calc|Labour Rates'!B34,'Output|Quoted'!C36='Calc|Labour Rates'!C34,'Output|Quoted'!D36='Calc|Labour Rates'!E34)),0,1) -> 0 | J36: 277.4785152
A37: 26 | B37: ='Calc|Labour Rates'!B35 -> Elec Sys Designer (Quoted) | C37: ='Calc|Labour Rates'!C35 -> After hours | D37: =IF('Calc|Labour Rates'!$D35="No","NA",IFERROR(LOOKUP(2, 1/('Calc|Labour Rates'!$B$10:$B$39='Output|Quoted'!$B37)/('Calc|Labour Rates'!$C$10:$C$39='Output|Quoted'!$C37),'Calc|Labour Rates'!$E$10:$E$39),0)) -> 291.1724529 | G37: =IF(OR($D37="NA",AND(B37='Calc|Labour Rates'!B35,'Output|Quoted'!C37='Calc|Labour Rates'!C35,'Output|Quoted'!D37='Calc|Labour Rates'!E35)),0,1) -> 0 | J37: 291.1724529
A38: 27 | B38: ='Calc|Labour Rates'!B36 -> Supervisor (Quoted) | C38: ='Calc|Labour Rates'!C36 -> After hours | D38: =IF('Calc|Labour Rates'!$D36="No","NA",IFERROR(LOOKUP(2, 1/('Calc|Labour Rates'!$B$10:$B$39='Output|Quoted'!$B38)/('Calc|Labour Rates'!$C$10:$C$39='Output|Quoted'!$C38),'Calc|Labour Rates'!$E$10:$E$39),0)) -> 379.5336064 | G38: =IF(OR($D38="NA",AND(B38='Calc|Labour Rates'!B36,'Output|Quoted'!C38='Calc|Labour Rates'!C36,'Output|Quoted'!D38='Calc|Labour Rates'!E36)),0,1) -> 0 | J38: 379.5336064
A39: 28 | B39: ='Calc|Labour Rates'!B37 -> Para Professional (Quoted) | C39: ='Calc|Labour Rates'!C37 -> After hours | D39: =IF('Calc|Labour Rates'!$D37="No","NA",IFERROR(LOOKUP(2, 1/('Calc|Labour Rates'!$B$10:$B$39='Output|Quoted'!$B39)/('Calc|Labour Rates'!$C$10:$C$39='Output|Quoted'!$C39),'Calc|Labour Rates'!$E$10:$E$39),0)) -> 324.6836337 | G39: =IF(OR($D39="NA",AND(B39='Calc|Labour Rates'!B37,'Output|Quoted'!C39='Calc|Labour Rates'!C37,'Output|Quoted'!D39='Calc|Labour Rates'!E37)),0,1) -> 0 | J39: 324.6836337
A40: 29 | B40: ='Calc|Labour Rates'!B38 -> Apprentice (Quoted) | C40: ='Calc|Labour Rates'!C38 -> After hours | D40: =IF('Calc|Labour Rates'!$D38="No","NA",IFERROR(LOOKUP(2, 1/('Calc|Labour Rates'!$B$10:$B$39='Output|Quoted'!$B40)/('Calc|Labour Rates'!$C$10:$C$39='Output|Quoted'!$C40),'Calc|Labour Rates'!$E$10:$E$39),0)) -> 175.5347568 | G40: =IF(OR($D40="NA",AND(B40='Calc|Labour Rates'!B38,'Output|Quoted'!C40='Calc|Labour Rates'!C38,'Output|Quoted'!D40='Calc|Labour Rates'!E38)),0,1) -> 0 | J40: 175.5347568
A41: 30 | B41: ='Calc|Labour Rates'!B39 -> System Operator (Quoted) | C41: ='Calc|Labour Rates'!C39 -> After hours | D41: =IF('Calc|Labour Rates'!$D39="No","NA",IFERROR(LOOKUP(2, 1/('Calc|Labour Rates'!$B$10:$B$39='Output|Quoted'!$B41)/('Calc|Labour Rates'!$C$10:$C$39='Output|Quoted'!$C41),'Calc|Labour Rates'!$E$10:$E$39),0)) -> 507.009693 | G41: =IF(OR($D41="NA",AND(B41='Calc|Labour Rates'!B39,'Output|Quoted'!C41='Calc|Labour Rates'!C39,'Output|Quoted'!D41='Calc|Labour Rates'!E39)),0,1) -> 0 | J41: 507.009693
B44: =IFERROR("2.3 List of quoted services for "&'Input|Setup'!$E$11&" to "&'Input|Setup'!$E$15&" regulatory period","") -> 2.3 List of quoted services for 2025-26 to 2029-30 regulatory period
A46: 1 | B46: ='Input|Labour Rates'!B56 -> Connection Application - Small Customer Connections: Project Assessment fees to assess scope and prepare offer - small connections & real estate developers excluding subdivisions | G46: =IF(B46='Input|Labour Rates'!B56,0,1) -> 0
A47: =IFERROR(A46+1,"") -> 2 | B47: ='Input|Labour Rates'!B57 -> Feasibility and concept scoping, including planning and design, for large customer connections | G47: =IF(B47='Input|Labour Rates'!B57,0,1) -> 0
A48: =IFERROR(A47+1,"") -> 3 | B48: ='Input|Labour Rates'!B58 -> Negotiate Terms and Conditions of Network Connection Contract | G48: =IF(B48='Input|Labour Rates'!B58,0,1) -> 0
A49: 4 | B49: ='Input|Labour Rates'!B59 -> Connection Application - Large Customer Connections | G49: =IF(B49='Input|Labour Rates'!B59,0,1) -> 0
A50: 5 | B50: ='Input|Labour Rates'!B60 -> Design and construction of connection assets and any relevant augmentation - large customer connections | G50: =IF(B50='Input|Labour Rates'!B60,0,1) -> 0
A51: 6 | B51: ='Input|Labour Rates'!B61 -> Switching and commissioning for major customer connections, and real estate developments, where construction activities are undertaken by a 3rd party | G51: =IF(B51='Input|Labour Rates'!B61,0,1) -> 0
A52: 7 | B52: ='Input|Labour Rates'!B62 -> Design Construct Transfer Specifications and/or Design audits for large customer connections and real estate developments where undertaken by 3rd party | G52: =IF(B52='Input|Labour Rates'!B62,0,1) -> 0
A53: 8 | B53: ='Input|Labour Rates'!B63 -> Embedded generation - Application and compliance review | G53: =IF(B53='Input|Labour Rates'!B63,0,1) -> 0
A54: 9 | B54: ='Input|Labour Rates'!B64 -> Embedded generation - Site specific enquiry response | G54: =IF(B54='Input|Labour Rates'!B64,0,1) -> 0
A55: 10 | B55: ='Input|Labour Rates'!B65 -> Embedded generation - services associated with new technology | G55: =IF(B55='Input|Labour Rates'!B65,0,1) -> 0
A56: 11 | B56: ='Input|Labour Rates'!B66 -> LV CT Drawing Assessments | G56: =IF(B56='Input|Labour Rates'!B66,0,1) -> 0
A57: 12 | B57: ='Input|Labour Rates'!B67 -> Design application fee – Subdivision and Rate 2 public lighting | G57: =IF(B57='Input|Labour Rates'!B67,0,1) -> 0
A58: 13 | B58: ='Input|Labour Rates'!B68 -> Final audit fee - Subdivision and Rate 2 public lighting | G58: =IF(B58='Input|Labour Rates'!B68,0,1) -> 0
A59: 14 | B59: ='Input|Labour Rates'!B69 -> Design lodgement fee – Rate 3 public lighting | G59: =IF(B59='Input|Labour Rates'!B69,0,1) -> 0
A60: 15 | B60: ='Input|Labour Rates'!B70 -> Subdivision switching fees | G60: =IF(B60='Input|Labour Rates'!B70,0,1) -> 0
A61: 16 | B61: ='Input|Labour Rates'!B71 -> Subdivision live line activities | G61: =IF(B61='Input|Labour Rates'!B71,0,1) -> 0
A62: 17 | B62: ='Input|Labour Rates'!B72 -> Design and installation of public lighting glare shields | G62: =IF(B62='Input|Labour Rates'!B72,0,1) -> 0
A63: 18 | B63: ='Input|Labour Rates'!B73 -> Installation of public lighting smart controllers | G63: =IF(B63='Input|Labour Rates'!B73,0,1) -> 0
A64: 19 | B64: ='Input|Labour Rates'!B74 -> Supply enhancements - Large Customer Connections | G64: =IF(B64='Input|Labour Rates'!B74,0,1) -> 0
A65: 20 | B65: ='Input|Labour Rates'!B75 -> Customer requested review (e.g. static or dynamic import/export limits) | G65: =IF(B65='Input|Labour Rates'!B75,0,1) -> 0
A66: 21 | B66: ='Input|Labour Rates'!B76 -> Additional Connection enquiry advice - pre or post application | G66: =IF(B66='Input|Labour Rates'!B76,0,1) -> 0
A67: 22 | B67: ='Input|Labour Rates'!B77 -> Supply enhancements - Small Customer Connections: Uneconomical connections above the minimum price technically acceptable | G67: =IF(B67='Input|Labour Rates'!B77,0,1) -> 0
A68: 23 | B68: ='Input|Labour Rates'!B78 -> Enhanced Connection Services - Small Customer: Dedicated feeders / assets / N-1 | G68: =IF(B68='Input|Labour Rates'!B78,0,1) -> 0
A69: 24 | B69: ='Input|Labour Rates'!B79 -> Enhanced Connection Services - Large Customer: Dedicated feeders / assets / N-1 | G69: =IF(B69='Input|Labour Rates'!B79,0,1) -> 0
A70: 25 | B70: ='Input|Labour Rates'!B80 -> Public lighting Rate 1 where costs are above the standard building block allowances | G70: =IF(B70='Input|Labour Rates'!B80,0,1) -> 0
A71: 26 | B71: ='Input|Labour Rates'!B81 -> Rate 2 public lighting design and construction | G71: =IF(B71='Input|Labour Rates'!B81,0,1) -> 0
A72: 27 | B72: ='Input|Labour Rates'!B82 -> Network stability assessment, validation, and commissioning services | G72: =IF(B72='Input|Labour Rates'!B82,0,1) -> 0
A73: 28 | B73: ='Input|Labour Rates'!B83 -> Costs associated with the accreditation of service providers | G73: =IF(B73='Input|Labour Rates'!B83,0,1) -> 0
A74: 29 | B74: ='Input|Labour Rates'!B84 -> Costs associated with the assessment of non-standard materials | G74: =IF(B74='Input|Labour Rates'!B84,0,1) -> 0
A75: 30 | B75: ='Input|Labour Rates'!B85 -> Investigations (e.g. voltage investigation) | G75: =IF(B75='Input|Labour Rates'!B85,0,1) -> 0
A76: 31 | B76: ='Input|Labour Rates'!B86 -> Design, switching and audit costs for Make Ready Works associated with NBN works | G76: =IF(B76='Input|Labour Rates'!B86,0,1) -> 0 | H76: `
A77: 32 | B77: ='Input|Labour Rates'!B87 -> Design assessment of 3rd party cathodic protection systems connected to EQL network | G77: =IF(B77='Input|Labour Rates'!B87,0,1) -> 0
A78: 33 | B78: ='Input|Labour Rates'!B88 -> Design assessment costs associated with NBN works Aerial Reticulation Plans (Fibre) | G78: =IF(B78='Input|Labour Rates'!B88,0,1) -> 0
A79: 34 | B79: ='Input|Labour Rates'!B89 -> Chapter 5 application services (e.g. detailed response to enquiry, application) | G79: =IF(B79='Input|Labour Rates'!B89,0,1) -> 0
A80: 35 | B80: ='Input|Labour Rates'!B90 -> Provide technical and site-specific connection advice | G80: =IF(B80='Input|Labour Rates'!B90,0,1) -> 0
A81: 36 | B81: ='Input|Labour Rates'!B91 -> Development of Customer requested and/or non-standard technical solutions (e.g. standards development, product deployment) | G81: =IF(B81='Input|Labour Rates'!B91,0,1) -> 0
A82: 37 | B82: ='Input|Labour Rates'!B92 -> Feasibility and concept scoping, including planning and design, for small customer connections (Enquiry) | G82: =IF(B82='Input|Labour Rates'!B92,0,1) -> 0
A83: 38 | B83: ='Input|Labour Rates'!B93 -> Installation of Smart Controllers or Network Devices for an existing Connection | G83: =IF(B83='Input|Labour Rates'!B93,0,1) -> 0
A84: 39 | B84: ='Input|Labour Rates'!B94 -> Network Safety Services | G84: =IF(B84='Input|Labour Rates'!B94,0,1) -> 0
A85: 40 | B85: ='Input|Labour Rates'!B95 -> Customer requested planned interruptions | G85: =IF(B85='Input|Labour Rates'!B95,0,1) -> 0
A86: 41 | B86: ='Input|Labour Rates'!B96 -> Customer, retailer or third party requested appointments | G86: =IF(B86='Input|Labour Rates'!B96,0,1) -> 0
A87: 42 | B87: ='Input|Labour Rates'!B97 -> Removal/rearrangement of network assets | G87: =IF(B87='Input|Labour Rates'!B97,0,1) -> 0
A88: 43 | B88: ='Input|Labour Rates'!B98 -> Network related property services | G88: =IF(B88='Input|Labour Rates'!B98,0,1) -> 0
A89: 44 | B89: ='Input|Labour Rates'!B99 -> Authorisation and approval of third-party service providers design and works | G89: =IF(B89='Input|Labour Rates'!B99,0,1) -> 0
A90: 45 | B90: ='Input|Labour Rates'!B100 -> Inspection and auditing services | G90: =IF(B90='Input|Labour Rates'!B100,0,1) -> 0
A91: 46 | B91: ='Input|Labour Rates'!B101 -> Sale of approved materials or equipment | G91: =IF(B91='Input|Labour Rates'!B101,0,1) -> 0
A92: 47 | B92: ='Input|Labour Rates'!B102 -> Provision of training to third parties for network related access | G92: =IF(B92='Input|Labour Rates'!B102,0,1) -> 0
A93: 48 | B93: ='Input|Labour Rates'!B103 -> Provision of services for approved unmetered supplies | G93: =IF(B93='Input|Labour Rates'!B103,0,1) -> 0
A94: 49 | B94: ='Input|Labour Rates'!B104 -> Auxiliary Public Lighting Services | G94: =IF(B94='Input|Labour Rates'!B104,0,1) -> 0
A95: 50 | B95: ='Input|Labour Rates'!B105 -> Search Fees - non-standard search | G95: =IF(B95='Input|Labour Rates'!B105,0,1) -> 0
A96: 51 | B96: ='Input|Labour Rates'!B106 -> 0 | G96: =IF(B96='Input|Labour Rates'!B106,0,1) -> 0
A97: 52 | B97: ='Input|Labour Rates'!B107 -> 0 | G97: =IF(B97='Input|Labour Rates'!B107,0,1) -> 0
A98: 53 | B98: ='Input|Labour Rates'!B108 -> 0 | G98: =IF(B98='Input|Labour Rates'!B108,0,1) -> 0
A99: 54 | B99: ='Input|Labour Rates'!B109 -> 0 | G99: =IF(B99='Input|Labour Rates'!B109,0,1) -> 0
A100: 55 | B100: ='Input|Labour Rates'!B110 -> 0 | G100: =IF(B100='Input|Labour Rates'!B110,0,1) -> 0
A101: 56 | B101: ='Input|Labour Rates'!B111 -> 0 | G101: =IF(B101='Input|Labour Rates'!B111,0,1) -> 0
A102: 57 | B102: ='Input|Labour Rates'!B112 -> 0 | G102: =IF(B102='Input|Labour Rates'!B112,0,1) -> 0
A103: 58 | B103: ='Input|Labour Rates'!B113 -> 0 | G103: =IF(B103='Input|Labour Rates'!B113,0,1) -> 0
A104: 59 | B104: ='Input|Labour Rates'!B114 -> 0 | G104: =IF(B104='Input|Labour Rates'!B114,0,1) -> 0
A105: 60 | B105: ='Input|Labour Rates'!B115 -> 0 | G105: =IF(B105='Input|Labour Rates'!B115,0,1) -> 0
A106: 61 | B106: ='Input|Labour Rates'!B116 -> 0 | G106: =IF(B106='Input|Labour Rates'!B116,0,1) -> 0
A107: 62 | B107: ='Input|Labour Rates'!B117 -> 0 | G107: =IF(B107='Input|Labour Rates'!B117,0,1) -> 0
A108: 63 | B108: ='Input|Labour Rates'!B118 -> 0 | G108: =IF(B108='Input|Labour Rates'!B118,0,1) -> 0
A109: 64 | B109: ='Input|Labour Rates'!B119 -> 0 | G109: =IF(B109='Input|Labour Rates'!B119,0,1) -> 0
A110: 65 | B110: ='Input|Labour Rates'!B120 -> 0 | G110: =IF(B110='Input|Labour Rates'!B120,0,1) -> 0
A111: 66 | B111: ='Input|Labour Rates'!B121 -> 0 | G111: =IF(B111='Input|Labour Rates'!B121,0,1) -> 0
A112: 67 | B112: ='Input|Labour Rates'!B122 -> 0 | G112: =IF(B112='Input|Labour Rates'!B122,0,1) -> 0
A113: 68 | B113: ='Input|Labour Rates'!B123 -> 0 | G113: =IF(B113='Input|Labour Rates'!B123,0,1) -> 0
A114: 69 | B114: ='Input|Labour Rates'!B124 -> 0 | G114: =IF(B114='Input|Labour Rates'!B124,0,1) -> 0
A115: 70 | B115: ='Input|Labour Rates'!B125 -> 0 | G115: =IF(B115='Input|Labour Rates'!B125,0,1) -> 0
A116: 71 | B116: ='Input|Labour Rates'!B126 -> 0 | G116: =IF(B116='Input|Labour Rates'!B126,0,1) -> 0
A117: 72 | B117: ='Input|Labour Rates'!B127 -> 0 | G117: =IF(B117='Input|Labour Rates'!B127,0,1) -> 0
A118: 73 | B118: ='Input|Labour Rates'!B128 -> 0 | G118: =IF(B118='Input|Labour Rates'!B128,0,1) -> 0
A119: 74 | B119: ='Input|Labour Rates'!B129 -> 0 | G119: =IF(B119='Input|Labour Rates'!B129,0,1) -> 0
A120: 75 | B120: ='Input|Labour Rates'!B130 -> 0 | G120: =IF(B120='Input|Labour Rates'!B130,0,1) -> 0
A121: 76 | B121: ='Input|Labour Rates'!B131 -> 0 | G121: =IF(B121='Input|Labour Rates'!B131,0,1) -> 0
A122: 77 | B122: ='Input|Labour Rates'!B132 -> 0 | G122: =IF(B122='Input|Labour Rates'!B132,0,1) -> 0
A123: 78 | B123: ='Input|Labour Rates'!B133 -> 0 | G123: =IF(B123='Input|Labour Rates'!B133,0,1) -> 0
A124: 79 | B124: ='Input|Labour Rates'!B134 -> 0 | G124: =IF(B124='Input|Labour Rates'!B134,0,1) -> 0
A125: 80 | B125: ='Input|Labour Rates'!B135 -> 0 | G125: =IF(B125='Input|Labour Rates'!B135,0,1) -> 0
A126: 81 | B126: ='Input|Labour Rates'!B136 -> 0 | G126: =IF(B126='Input|Labour Rates'!B136,0,1) -> 0
A127: 82 | B127: ='Input|Labour Rates'!B137 -> 0 | G127: =IF(B127='Input|Labour Rates'!B137,0,1) -> 0
A128: 83 | B128: ='Input|Labour Rates'!B138 -> 0 | G128: =IF(B128='Input|Labour Rates'!B138,0,1) -> 0
A129: 84 | B129: ='Input|Labour Rates'!B139 -> 0 | G129: =IF(B129='Input|Labour Rates'!B139,0,1) -> 0
A130: 85 | B130: ='Input|Labour Rates'!B140 -> 0 | G130: =IF(B130='Input|Labour Rates'!B140,0,1) -> 0
A131: 86 | B131: ='Input|Labour Rates'!B141 -> 0 | G131: =IF(B131='Input|Labour Rates'!B141,0,1) -> 0
A132: 87 | B132: ='Input|Labour Rates'!B142 -> 0 | G132: =IF(B132='Input|Labour Rates'!B142,0,1) -> 0
A133: 88 | B133: ='Input|Labour Rates'!B143 -> 0 | G133: =IF(B133='Input|Labour Rates'!B143,0,1) -> 0
A134: 89 | B134: ='Input|Labour Rates'!B144 -> 0 | G134: =IF(B134='Input|Labour Rates'!B144,0,1) -> 0
A135: 90 | B135: ='Input|Labour Rates'!B145 -> 0 | G135: =IF(B135='Input|Labour Rates'!B145,0,1) -> 0
A136: 91 | B136: ='Input|Labour Rates'!B146 -> 0 | G136: =IF(B136='Input|Labour Rates'!B146,0,1) -> 0
A137: 92 | B137: ='Input|Labour Rates'!B147 -> 0 | G137: =IF(B137='Input|Labour Rates'!B147,0,1) -> 0
A138: 93 | B138: ='Input|Labour Rates'!B148 -> 0 | G138: =IF(B138='Input|Labour Rates'!B148,0,1) -> 0
A139: 94 | B139: ='Input|Labour Rates'!B149 -> 0 | G139: =IF(B139='Input|Labour Rates'!B149,0,1) -> 0
A140: 95 | B140: ='Input|Labour Rates'!B150 -> 0 | G140: =IF(B140='Input|Labour Rates'!B150,0,1) -> 0
A141: 96 | B141: ='Input|Labour Rates'!B151 -> 0 | G141: =IF(B141='Input|Labour Rates'!B151,0,1) -> 0
A142: 97 | B142: ='Input|Labour Rates'!B152 -> 0 | G142: =IF(B142='Input|Labour Rates'!B152,0,1) -> 0
A143: 98 | B143: ='Input|Labour Rates'!B153 -> 0 | G143: =IF(B143='Input|Labour Rates'!B153,0,1) -> 0
A144: 99 | B144: ='Input|Labour Rates'!B154 -> 0 | G144: =IF(B144='Input|Labour Rates'!B154,0,1) -> 0
A145: 100 | B145: ='Input|Labour Rates'!B155 -> 0 | G145: =IF(B145='Input|Labour Rates'!B155,0,1) -> 0
A146: 101 | B146: ='Input|Labour Rates'!B156 -> 0 | G146: =IF(B146='Input|Labour Rates'!B156,0,1) -> 0
A147: 102 | B147: ='Input|Labour Rates'!B157 -> 0 | G147: =IF(B147='Input|Labour Rates'!B157,0,1) -> 0
A148: 103 | B148: ='Input|Labour Rates'!B158 -> 0 | G148: =IF(B148='Input|Labour Rates'!B158,0,1) -> 0
A149: 104 | B149: ='Input|Labour Rates'!B159 -> 0 | G149: =IF(B149='Input|Labour Rates'!B159,0,1) -> 0
A150: 105 | B150: ='Input|Labour Rates'!B160 -> 0 | G150: =IF(B150='Input|Labour Rates'!B160,0,1) -> 0
A151: 106 | B151: ='Input|Labour Rates'!B161 -> 0 | G151: =IF(B151='Input|Labour Rates'!B161,0,1) -> 0
A152: 107 | B152: ='Input|Labour Rates'!B162 -> 0 | G152: =IF(B152='Input|Labour Rates'!B162,0,1) -> 0
A153: 108 | B153: ='Input|Labour Rates'!B163 -> 0 | G153: =IF(B153='Input|Labour Rates'!B163,0,1) -> 0
A154: 109 | B154: ='Input|Labour Rates'!B164 -> 0 | G154: =IF(B154='Input|Labour Rates'!B164,0,1) -> 0
A155: 110 | B155: ='Input|Labour Rates'!B165 -> 0 | G155: =IF(B155='Input|Labour Rates'!B165,0,1) -> 0
A156: 111 | B156: ='Input|Labour Rates'!B166 -> 0 | G156: =IF(B156='Input|Labour Rates'!B166,0,1) -> 0
A157: 112 | B157: ='Input|Labour Rates'!B167 -> 0 | G157: =IF(B157='Input|Labour Rates'!B167,0,1) -> 0
A158: 113 | B158: ='Input|Labour Rates'!B168 -> 0 | G158: =IF(B158='Input|Labour Rates'!B168,0,1) -> 0
A159: 114 | B159: ='Input|Labour Rates'!B169 -> 0 | G159: =IF(B159='Input|Labour Rates'!B169,0,1) -> 0
A160: 115 | B160: ='Input|Labour Rates'!B170 -> 0 | G160: =IF(B160='Input|Labour Rates'!B170,0,1) -> 0
A161: 116 | B161: ='Input|Labour Rates'!B171 -> 0 | G161: =IF(B161='Input|Labour Rates'!B171,0,1) -> 0
A162: 117 | B162: ='Input|Labour Rates'!B172 -> 0 | G162: =IF(B162='Input|Labour Rates'!B172,0,1) -> 0
A163: 118 | B163: ='Input|Labour Rates'!B173 -> 0 | G163: =IF(B163='Input|Labour Rates'!B173,0,1) -> 0
A164: 119 | B164: ='Input|Labour Rates'!B174 -> 0 | G164: =IF(B164='Input|Labour Rates'!B174,0,1) -> 0
A165: 120 | B165: ='Input|Labour Rates'!B175 -> 0 | G165: =IF(B165='Input|Labour Rates'!B175,0,1) -> 0
A166: 121 | B166: ='Input|Labour Rates'!B176 -> 0 | G166: =IF(B166='Input|Labour Rates'!B176,0,1) -> 0
A167: 122 | B167: ='Input|Labour Rates'!B177 -> 0 | G167: =IF(B167='Input|Labour Rates'!B177,0,1) -> 0
A168: 123 | B168: ='Input|Labour Rates'!B178 -> 0 | G168: =IF(B168='Input|Labour Rates'!B178,0,1) -> 0
A169: 124 | B169: ='Input|Labour Rates'!B179 -> 0 | G169: =IF(B169='Input|Labour Rates'!B179,0,1) -> 0
A170: 125 | B170: ='Input|Labour Rates'!B180 -> 0 | G170: =IF(B170='Input|Labour Rates'!B180,0,1) -> 0
A171: 126 | B171: ='Input|Labour Rates'!B181 -> 0 | G171: =IF(B171='Input|Labour Rates'!B181,0,1) -> 0
A172: 127 | B172: ='Input|Labour Rates'!B182 -> 0 | G172: =IF(B172='Input|Labour Rates'!B182,0,1) -> 0
A173: 128 | B173: ='Input|Labour Rates'!B183 -> 0 | G173: =IF(B173='Input|Labour Rates'!B183,0,1) -> 0
A174: 129 | B174: ='Input|Labour Rates'!B184 -> 0 | G174: =IF(B174='Input|Labour Rates'!B184,0,1) -> 0
A175: 130 | B175: ='Input|Labour Rates'!B185 -> 0 | G175: =IF(B175='Input|Labour Rates'!B185,0,1) -> 0
A176: 131 | B176: ='Input|Labour Rates'!B186 -> 0 | G176: =IF(B176='Input|Labour Rates'!B186,0,1) -> 0
A177: 132 | B177: ='Input|Labour Rates'!B187 -> 0 | G177: =IF(B177='Input|Labour Rates'!B187,0,1) -> 0
A178: 133 | B178: ='Input|Labour Rates'!B188 -> 0 | G178: =IF(B178='Input|Labour Rates'!B188,0,1) -> 0
A179: 134 | B179: ='Input|Labour Rates'!B189 -> 0 | G179: =IF(B179='Input|Labour Rates'!B189,0,1) -> 0
A180: 135 | B180: ='Input|Labour Rates'!B190 -> 0 | G180: =IF(B180='Input|Labour Rates'!B190,0,1) -> 0
A181: 136 | B181: ='Input|Labour Rates'!B191 -> 0 | G181: =IF(B181='Input|Labour Rates'!B191,0,1) -> 0
A182: 137 | B182: ='Input|Labour Rates'!B192 -> 0 | G182: =IF(B182='Input|Labour Rates'!B192,0,1) -> 0
A183: 138 | B183: ='Input|Labour Rates'!B193 -> 0 | G183: =IF(B183='Input|Labour Rates'!B193,0,1) -> 0
A184: 139 | B184: ='Input|Labour Rates'!B194 -> 0 | G184: =IF(B184='Input|Labour Rates'!B194,0,1) -> 0
A185: 140 | B185: ='Input|Labour Rates'!B195 -> 0 | G185: =IF(B185='Input|Labour Rates'!B195,0,1) -> 0
A186: 141 | B186: ='Input|Labour Rates'!B196 -> 0 | G186: =IF(B186='Input|Labour Rates'!B196,0,1) -> 0
A187: 142 | B187: ='Input|Labour Rates'!B197 -> 0 | G187: =IF(B187='Input|Labour Rates'!B197,0,1) -> 0
A188: 143 | B188: ='Input|Labour Rates'!B198 -> 0 | G188: =IF(B188='Input|Labour Rates'!B198,0,1) -> 0
A189: 144 | B189: ='Input|Labour Rates'!B199 -> 0 | G189: =IF(B189='Input|Labour Rates'!B199,0,1) -> 0
A190: 145 | B190: ='Input|Labour Rates'!B200 -> 0 | G190: =IF(B190='Input|Labour Rates'!B200,0,1) -> 0
A191: 146 | B191: ='Input|Labour Rates'!B201 -> 0 | G191: =IF(B191='Input|Labour Rates'!B201,0,1) -> 0
A192: 147 | B192: ='Input|Labour Rates'!B202 -> 0 | G192: =IF(B192='Input|Labour Rates'!B202,0,1) -> 0
A193: 148 | B193: ='Input|Labour Rates'!B203 -> 0 | G193: =IF(B193='Input|Labour Rates'!B203,0,1) -> 0
A194: 149 | B194: ='Input|Labour Rates'!B204 -> 0 | G194: =IF(B194='Input|Labour Rates'!B204,0,1) -> 0
A195: 150 | B195: ='Input|Labour Rates'!B205 -> 0 | G195: =IF(B195='Input|Labour Rates'!B205,0,1) -> 0
A196: 151 | B196: ='Input|Labour Rates'!B206 -> 0 | G196: =IF(B196='Input|Labour Rates'!B206,0,1) -> 0
A197: 152 | B197: ='Input|Labour Rates'!B207 -> 0 | G197: =IF(B197='Input|Labour Rates'!B207,0,1) -> 0
A198: 153 | B198: ='Input|Labour Rates'!B208 -> 0 | G198: =IF(B198='Input|Labour Rates'!B208,0,1) -> 0
A199: 154 | B199: ='Input|Labour Rates'!B209 -> 0 | G199: =IF(B199='Input|Labour Rates'!B209,0,1) -> 0
A200: 155 | B200: ='Input|Labour Rates'!B210 -> 0 | G200: =IF(B200='Input|Labour Rates'!B210,0,1) -> 0
A201: 156 | B201: ='Input|Labour Rates'!B211 -> 0 | G201: =IF(B201='Input|Labour Rates'!B211,0,1) -> 0
A202: 157 | B202: ='Input|Labour Rates'!B212 -> 0 | G202: =IF(B202='Input|Labour Rates'!B212,0,1) -> 0
A203: 158 | B203: ='Input|Labour Rates'!B213 -> 0 | G203: =IF(B203='Input|Labour Rates'!B213,0,1) -> 0
A204: 159 | B204: ='Input|Labour Rates'!B214 -> 0 | G204: =IF(B204='Input|Labour Rates'!B214,0,1) -> 0
A205: 160 | B205: ='Input|Labour Rates'!B215 -> 0 | G205: =IF(B205='Input|Labour Rates'!B215,0,1) -> 0
... 90 more rows

Sheet Input|Setup
B1: =IFERROR(Index!B1,"") -> AER ANS Forecast Model | D1: Key: | E1: Input | H1: Sheet Validation | I1: ='Model Validation'!C10 -> 0
B2: =IFERROR(MID(CELL("filename",A1),FIND("]",CELL("filename",A1))+1,255),"") -> Input|Setup | E2: Formula
Q4: For AER only
A5: 3.1 | B5: Years setup | E5: Year? | F5: =IF(COUNTA(E6:E7)=0,1,0) -> 0 | Q5: Years
B6: First year of forecast regulatory control period | E6: 2025-26 | Q6: 2016-17
B7: Base year for inputs | E7: 2023-24 | Q7: =LEFT(Q6,4)+1&"-"&RIGHT(Q6,2)+1 -> 2017-18
B8: Base year for outputs | E8: =E6 -> 2025-26 | Q8: 2018-19
Q9: 2019-20
A10: 3.2 | B10: Current regulatory period | D10: 3.3 | E10: Forecast regulatory period | Q10: 2020-21
A11: 1 | B11: =LEFT(B12,4)-1&"-"&RIGHT(B12,2)-1 -> 2020-21 | D11: 1 | E11: =E6 -> 2025-26 | Q11: 2021-22
A12: =A11+1 -> 2 | B12: =LEFT(B13,4)-1&"-"&RIGHT(B13,2)-1 -> 2021-22 | D12: =D11+1 -> 2 | E12: =LEFT(E11,4)+1&"-"&RIGHT(E11,2)+1 -> 2026-27 | Q12: 2022-23
A13: =A12+1 -> 3 | B13: =LEFT(B14,4)-1&"-"&RIGHT(B14,2)-1 -> 2022-23 | D13: =D12+1 -> 3 | E13: =LEFT(E12,4)+1&"-"&RIGHT(E12,2)+1 -> 2027-28 | Q13: 2023-24
A14: =A13+1 -> 4 | B14: =LEFT(B15,4)-1&"-"&RIGHT(B15,2)-1 -> 2023-24 | D14: =D13+1 -> 4 | E14: =LEFT(E13,4)+1&"-"&RIGHT(E13,2)+1 -> 2028-29 | Q14: 2024-25
A15: =A14+1 -> 5 | B15: =LEFT(E11,4)-1&"-"&RIGHT(E11,2)-1 -> 2024-25 | D15: =D14+1 -> 5 | E15: =LEFT(E14,4)+1&"-"&RIGHT(E14,2)+1 -> 2029-30 | Q15: 2025-26
Q16: 2026-27
Q17: 2027-28
A18: 3.4 | B18: Used for quoted service? | D18: 3.5 | E18: Conversions | Q18: 2028-29
A19: 1 | B19: Yes | E19: 60 | F19: mins | Q19: 2029-30
A20: =A19+1 -> 2 | B20: No | Q20: 2030-31
Q21: 2031-32
Q22: 2032-33
Q23: 2033-34
A24: 3.6 | B24: Hours | C24: =IF(COUNTA(B25:B27)=0,1,0) -> 0 | Q24: 2034-35
B25: Business hours
B26: After hours
A30: 3.7 | B30: Labour type | C30: =IF(COUNTA(B31:B49)=0,1,0) -> 0 | D30: 3.8 | E30: Service Grouping | F30: =IF(COUNTA(E31:E49)=0,1,0) -> 0 | G30: ="3.9" -> 3.9 | H30: Tariff class grouping
A31: 1 | B31: Administrative | E31: De-energisation | H31: Auxiliary metering services
A32: =A31+1 -> 2 | B32: Professional & Managerial | E32: Faults/Emergency response | H32: Connection application and management services
A33: =A32+1 -> 3 | B33: Power Worker | E33: Load control time switch | H33: Network Ancillary services
A34: =A33+1 -> 4 | B34: Technical Service Person | E34: Meter inspection and investigation on request
A35: 5 | B35: Elec Sys Designer | E35: Meter reading
A36: 6 | B36: Supervisor | E36: Meter reconfiguration
A37: 7 | B37: Para Professional | E37: Meter test
A38: 8 | B38: Apprentice | E38: Metering alteration
A39: 9 | B39: System Operator | E39: Point of attachment relocation
A40: 10 | B40: 50% TSP/Contractor mix | E40: Re-arrange connection assets at customer's request | G40: ="3.10" -> 3.10 | H40: Permutations
A41: 11 | B41: 20% TSP/Contractor mix | E41: Re-energisation | H41: Technical
A42: 12 | B42: Administrative (Quoted) | E42: Removal of a meter (Type 5 & 6) | H42: CT
A43: 13 | B43: Professional & Managerial (Quoted) | E43: Reseal | H43: No CT
A44: 14 | B44: Power Worker (Quoted) | E44: Supply Abolishment | H44: No Payment CT
A45: 15 | B45: Technical Service Person (Quoted) | E45: Supply enhancement | H45: No Payment No CT
A46: 16 | B46: Elec Sys Designer (Quoted) | E46: Temporary connection | H46: Traffic Control
A47: 17 | B47: Supervisor (Quoted) | E47: Temporary disconnections and reconnections (which may involve a line drop) | H47: Traffic Control CT
A48: 18 | B48: Para Professional (Quoted) | E48: Type 6 non standard metering data services | H48: Traffic Control No CT
A49: 19 | B49: Apprentice (Quoted) | E49: Unfulfilled site visit | H49: Non-technical
B50: System Operator (Quoted) | E50: Other

Sheet Input|Escalations
B1: =IFERROR(Index!B1,"") -> AER ANS Forecast Model | C1: Key: | D1: Input | F1: Sheet Validation | G1: ='Model Validation'!C11 -> 0
B2: =IFERROR(MID(CELL("filename",A1),FIND("]",CELL("filename",A1))+1,255),"") -> Input|Escalations | D2: Formula
A5: 4.1 | B5: Escalation setup
C7: Year
B8: First year of forecast regulatory control period | C8: ='Input|Setup'!E6 -> 2025-26
B9: Base year for inputs | C9: ='Input|Setup'!E7 -> 2023-24
B10: Base year for outputs | C10: ='Input|Setup'!E8 -> 2025-26
A13: 4.2 | B13: Inflation | D13: Current regulatory period | I13: Forecast regulatory period
D15: =IFERROR((LEFT(E15,4)-1&IF(MID(E15,5,1)="","","-"&TEXT(MOD(MID(E15,6,2)-1,100),"00"))),"") -> 2020-21 | E15: =IFERROR((LEFT(F15,4)-1&IF(MID(F15,5,1)="","","-"&TEXT(MOD(MID(F15,6,2)-1,100),"00"))),"") -> 2021-22 | F15: =IFERROR((LEFT(G15,4)-1&IF(MID(G15,5,1)="","","-"&TEXT(MOD(MID(G15,6,2)-1,100),"00"))),"") -> 2022-23 | G15: =IFERROR((LEFT(H15,4)-1&IF(MID(H15,5,1)="","","-"&TEXT(MOD(MID(H15,6,2)-1,100),"00"))),"") -> 2023-24 | H15: =IFERROR((LEFT(I15,4)-1&IF(MID(I15,5,1)="","","-"&TEXT(MOD(MID(I15,6,2)-1,100),"00"))),"") -> 2024-25 | I15: =$C$8 -> 2025-26 | J15: =IFERROR((LEFT(I15,4)+1&IF(MID(I15,5,1)="","","-"&TEXT(MOD(MID(I15,6,2)+1,100),"00"))),"") -> 2026-27 | K15: =IFERROR((LEFT(J15,4)+1&IF(MID(J15,5,1)="","","-"&TEXT(MOD(MID(J15,6,2)+1,100),"00"))),"") -> 2027-28 | L15: =IFERROR((LEFT(K15,4)+1&IF(MID(K15,5,1)="","","-"&TEXT(MOD(MID(K15,6,2)+1,100),"00"))),"") -> 2028-29 | M15: =IFERROR((LEFT(L15,4)+1&IF(MID(L15,5,1)="","","-"&TEXT(MOD(MID(L15,6,2)+1,100),"00"))),"") -> 2029-30
B16: CPI year on year change (%) - lagged one year (actual/estimate) | E16: =IFERROR(E20/D20-1,0) -> 0.008605851979 | F16: =IFERROR(F20/E20-1,0) -> 0.03498293515 | G16: =IF(G20="",G21,IFERROR(G20/F20-1,0)) -> 0.07831821929 | H16: 0.04051987768 | I16: 0.03 | J16: 0.02799781128 | K16: 0.025 | L16: 0.025 | M16: 0.025
B17: Cumulative Inflation Index | D17: 1.0184 | E17: =IFERROR(D17*(1+E16),"") -> 1.0271642 | F17: =E17*(1+F16) -> 1.063097418 | G17: 1.146357315 | H17: 1.192807573 | I17: 1.2285918 | J17: 1.262989682 | K17: 1.294564424 | L17: 1.326928534 | M17: 1.360101748
B18: =IFERROR("Real "&C9 &" "&LEFT(D9,9)&" to "& "Real "&C10 &" "&LEFT(D10,9),"") -> Real 2023-24 to Real 2025-26 | I18: =I$17/INDEX($D$15:$M$17,3, MATCH($C$9,$D$15:$M$15,0)) -> 1.071735474 | J18: =J$17/INDEX($D$15:$M$17,3, MATCH($C$9,$D$15:$M$15,0)) -> 1.101741722 | K18: =K$17/INDEX($D$15:$M$17,3, MATCH($C$9,$D$15:$M$15,0)) -> 1.129285265 | L18: =L$17/INDEX($D$15:$M$17,3, MATCH($C$9,$D$15:$M$15,0)) -> 1.157517396 | M18: =M$17/INDEX($D$15:$M$17,3, MATCH($C$9,$D$15:$M$15,0)) -> 1.186455331
B19: ABS index, all groups CPI inflation series A2325846C, weighted average for the eight capital cities | D19: ="Dec-" & RIGHT(D15,2)-2 -> Dec-19 | E19: Dec-20 | F19: Dec-21 | G19: Dec-22 | H19: Dec-23 | I19: Dec-24 | J19: Dec-25 | K19: Dec-26 | L19: Dec-27 | M19: Dec-28
D20: 116.2 | E20: 117.2 | F20: 121.3 | G20: 130.8 | H20: 136.1 | N20: =IF(COUNTA(D20:M20)=0,1,0) -> 0
B21: Source (where ABS index is not available. E.g. forecast CPI) | I21: 0.03 | J21: 0.02799781128 | K21: 0.025 | L21: 0.025 | M21: 0.025 | N21: =IF(COUNTA(G21:M21)=0,1,0) -> 0
A24: 4.3 | B24: Real price escalation | D24: Current regulatory period | I24: Forecast regulatory period
D26: =IFERROR((LEFT(E26,4)-1&IF(MID(E26,5,1)="","","-"&TEXT(MOD(MID(E26,6,2)-1,100),"00"))),"") -> 2020-21 | E26: =IFERROR((LEFT(F26,4)-1&IF(MID(F26,5,1)="","","-"&TEXT(MOD(MID(F26,6,2)-1,100),"00"))),"") -> 2021-22 | F26: =IFERROR((LEFT(G26,4)-1&IF(MID(G26,5,1)="","","-"&TEXT(MOD(MID(G26,6,2)-1,100),"00"))),"") -> 2022-23 | G26: =IFERROR((LEFT(H26,4)-1&IF(MID(H26,5,1)="","","-"&TEXT(MOD(MID(H26,6,2)-1,100),"00"))),"") -> 2023-24 | H26: =IFERROR((LEFT(I26,4)-1&IF(MID(I26,5,1)="","","-"&TEXT(MOD(MID(I26,6,2)-1,100),"00"))),"") -> 2024-25 | I26: =$C$8 -> 2025-26 | J26: =IFERROR((LEFT(I26,4)+1&IF(MID(I26,5,1)="","","-"&TEXT(MOD(MID(I26,6,2)+1,100),"00"))),"") -> 2026-27 | K26: =IFERROR((LEFT(J26,4)+1&IF(MID(J26,5,1)="","","-"&TEXT(MOD(MID(J26,6,2)+1,100),"00"))),"") -> 2027-28 | L26: =IFERROR((LEFT(K26,4)+1&IF(MID(K26,5,1)="","","-"&TEXT(MOD(MID(K26,6,2)+1,100),"00"))),"") -> 2028-29 | M26: =IFERROR((LEFT(L26,4)+1&IF(MID(L26,5,1)="","","-"&TEXT(MOD(MID(L26,6,2)+1,100),"00"))),"") -> 2029-30
B27: X-factor (real wage price escalation) | D27: =-D37 -> 0 | E27: 0.03095491541 | F27: 0.01873083386 | G27: -0.02050300651 | H27: -0.02527000403 | I27: -0.01481650282 | J27: -0.009861100793 | K27: -0.008443651806 | L27: -0.01051247269 | M27: -0.01236745202
B28: Materials | D28: =D27 -> 0 | E28: 0.03095491541 | F28: 0.01873083386 | G28: -0.02050300651 | H28: -0.02527000403 | I28: -0.01481650282 | J28: -0.009861100793 | K28: -0.008443651806 | L28: -0.01051247269 | M28: -0.01236745202
B29: Contracts | D29: 0 | E29: 0.03095491541 | F29: 0.01873083386 | G29: -0.02050300651 | H29: -0.02527000403 | I29: -0.01481650282 | J29: -0.009861100793 | K29: -0.008443651806 | L29: -0.01051247269 | M29: -0.01236745202
B30: Vehicles | D30: 0 | E30: 0.03095491541 | F30: 0.01873083386 | G30: -0.02050300651 | H30: -0.02527000403 | I30: -0.01481650282 | J30: -0.009861100793 | K30: -0.008443651806 | L30: -0.01051247269 | M30: -0.01236745202
B31: Other | D31: 0 | E31: 0.03095491541 | F31: 0.01873083386 | G31: -0.02050300651 | H31: -0.02527000403 | I31: -0.01481650282 | J31: -0.009861100793 | K31: -0.008443651806 | L31: -0.01051247269 | M31: -0.01236745202
A34: 4.3.1 | B34: Real wage price escalation | D34: Current regulatory period | I34: Forecast regulatory period
D36: =IFERROR((LEFT(E36,4)-1&IF(MID(E36,5,1)="","","-"&TEXT(MOD(MID(E36,6,2)-1,100),"00"))),"") -> 2020-21 | E36: =IFERROR((LEFT(F36,4)-1&IF(MID(F36,5,1)="","","-"&TEXT(MOD(MID(F36,6,2)-1,100),"00"))),"") -> 2021-22 | F36: =IFERROR((LEFT(G36,4)-1&IF(MID(G36,5,1)="","","-"&TEXT(MOD(MID(G36,6,2)-1,100),"00"))),"") -> 2022-23 | G36: =IFERROR((LEFT(H36,4)-1&IF(MID(H36,5,1)="","","-"&TEXT(MOD(MID(H36,6,2)-1,100),"00"))),"") -> 2023-24 | H36: =IFERROR((LEFT(I36,4)-1&IF(MID(I36,5,1)="","","-"&TEXT(MOD(MID(I36,6,2)-1,100),"00"))),"") -> 2024-25 | I36: =$C$8 -> 2025-26 | J36: =IFERROR((LEFT(I36,4)+1&IF(MID(I36,5,1)="","","-"&TEXT(MOD(MID(I36,6,2)+1,100),"00"))),"") -> 2026-27 | K36: =IFERROR((LEFT(J36,4)+1&IF(MID(J36,5,1)="","","-"&TEXT(MOD(MID(J36,6,2)+1,100),"00"))),"") -> 2027-28 | L36: =IFERROR((LEFT(K36,4)+1&IF(MID(K36,5,1)="","","-"&TEXT(MOD(MID(K36,6,2)+1,100),"00"))),"") -> 2028-29 | M36: =IFERROR((LEFT(L36,4)+1&IF(MID(L36,5,1)="","","-"&TEXT(MOD(MID(L36,6,2)+1,100),"00"))),"") -> 2029-30
B37: Labour - Real wage price growth | D37: =SUM((D42*D49),(D44*D50),(D45*D51),(D46*D52)) -> 0 | E37: -0.03095491541 | F37: -0.01873083386 | G37: 0.02050300651 | H37: 0.02527000403 | I37: =SUM((I42*I49),(I44*I50),(I45*I51),(I46*I52)) -> 0.01481650282 | J37: 0.009861100793 | K37: 0.008443651806 | L37: 0.01051247269 | M37: 0.01236745202
B38: Cumulative Labour - Wage price growth index | D38: =1+D37 -> 1 | E38: =IFERROR(D38*(1+E37),"") -> 0.9690450846 | F38: 0.9508940621 | G38: 0.9703902493 | H38: 0.9949120148 | I38: 1.009653131 | J38: 1.019609423 | K38: 1.02821865 | L38: 1.03902777 | M38: 1.051877896
B39: ="Escalate from base year to " & C8 -> Escalate from base year to 2025-26 | I39: =I38/INDEX($D$36:$M$38,3,MATCH($C$9,$D$36:$M$36,0)) -> 1.04046092
B41: Forecast/Source | D41: =IFERROR((LEFT(E41,4)-1&IF(MID(E41,5,1)="","","-"&TEXT(MOD(MID(E41,6,2)-1,100),"00"))),"") -> 2020-21 | E41: =IFERROR((LEFT(F41,4)-1&IF(MID(F41,5,1)="","","-"&TEXT(MOD(MID(F41,6,2)-1,100),"00"))),"") -> 2021-22 | F41: =IFERROR((LEFT(G41,4)-1&IF(MID(G41,5,1)="","","-"&TEXT(MOD(MID(G41,6,2)-1,100),"00"))),"") -> 2022-23 | G41: =IFERROR((LEFT(H41,4)-1&IF(MID(H41,5,1)="","","-"&TEXT(MOD(MID(H41,6,2)-1,100),"00"))),"") -> 2023-24 | H41: =IFERROR((LEFT(I41,4)-1&IF(MID(I41,5,1)="","","-"&TEXT(MOD(MID(I41,6,2)-1,100),"00"))),"") -> 2024-25 | I41: =$C$8 -> 2025-26 | J41: =IFERROR((LEFT(I41,4)+1&IF(MID(I41,5,1)="","","-"&TEXT(MOD(MID(I41,6,2)+1,100),"00"))),"") -> 2026-27 | K41: =IFERROR((LEFT(J41,4)+1&IF(MID(J41,5,1)="","","-"&TEXT(MOD(MID(J41,6,2)+1,100),"00"))),"") -> 2027-28 | L41: =IFERROR((LEFT(K41,4)+1&IF(MID(K41,5,1)="","","-"&TEXT(MOD(MID(K41,6,2)+1,100),"00"))),"") -> 2028-29 | M41: =IFERROR((LEFT(L41,4)+1&IF(MID(L41,5,1)="","","-"&TEXT(MOD(MID(L41,6,2)+1,100),"00"))),"") -> 2029-30 | N41: =IF(COUNTA(B42:M46)=0,1,0) -> 0
B42: WPI - BIS | I42: 0.01356028273 | J42: 0.01179626969 | K42: 0.009216394603 | L42: 0.01219499571 | M42: 0.01379958982
B43: AER real labour forecast KPMG | E43: -0.03595491541 | F43: -0.02373083386 | G43: 0.01550300651 | H43: 0.02027000403 | I43: 0.006072722907 | J43: 0.007925931897 | K43: 0.007670909008 | L43: 0.008829949667 | M43: 0.01093531422
B44: Superannuation | E44: 0.005 | F44: 0.005 | G44: 0.005 | H44: 0.005 | I44: 0.005
B45: Wage + super guarantee increases | E45: =SUM(E42:E44) -> -0.03095491541 | F45: =SUM(F42:F44) -> -0.01873083386 | G45: =SUM(G42:G44) -> 0.02050300651 | H45: =SUM(H42:H44) -> 0.02527000403 | I45: =AVERAGE(I42:I43)+I44 -> 0.01481650282 | J45: =AVERAGE(J42:J43)+J44 -> 0.009861100793 | K45: =AVERAGE(K42:K43)+K44 -> 0.008443651806 | L45: =AVERAGE(L42:L43)+L44 -> 0.01051247269 | M45: =AVERAGE(M42:M43)+M44 -> 0.01236745202
B48: Weights (per cent) | D48: =IFERROR((LEFT(E48,4)-1&IF(MID(E48,5,1)="","","-"&TEXT(MOD(MID(E48,6,2)-1,100),"00"))),"") -> 2020-21 | E48: =IFERROR((LEFT(F48,4)-1&IF(MID(F48,5,1)="","","-"&TEXT(MOD(MID(F48,6,2)-1,100),"00"))),"") -> 2021-22 | F48: =IFERROR((LEFT(G48,4)-1&IF(MID(G48,5,1)="","","-"&TEXT(MOD(MID(G48,6,2)-1,100),"00"))),"") -> 2022-23 | G48: =IFERROR((LEFT(H48,4)-1&IF(MID(H48,5,1)="","","-"&TEXT(MOD(MID(H48,6,2)-1,100),"00"))),"") -> 2023-24 | H48: =IFERROR((LEFT(I48,4)-1&IF(MID(I48,5,1)="","","-"&TEXT(MOD(MID(I48,6,2)-1,100),"00"))),"") -> 2024-25 | I48: =$C$8 -> 2025-26 | J48: =IFERROR((LEFT(I48,4)+1&IF(MID(I48,5,1)="","","-"&TEXT(MOD(MID(I48,6,2)+1,100),"00"))),"") -> 2026-27 | K48: =IFERROR((LEFT(J48,4)+1&IF(MID(J48,5,1)="","","-"&TEXT(MOD(MID(J48,6,2)+1,100),"00"))),"") -> 2027-28 | L48: =IFERROR((LEFT(K48,4)+1&IF(MID(K48,5,1)="","","-"&TEXT(MOD(MID(K48,6,2)+1,100),"00"))),"") -> 2028-29 | M48: =IFERROR((LEFT(L48,4)+1&IF(MID(L48,5,1)="","","-"&TEXT(MOD(MID(L48,6,2)+1,100),"00"))),"") -> 2029-30 | N48: =IF(COUNTA(D49:M52)=0,1,0) -> 0
B49: =B42 -> WPI - BIS | E49: 0 | F49: 0 | G49: 0 | H49: 0 | I49: 0 | J49: 0 | K49: 0 | L49: 0 | M49: 0
B50: =B44 -> Superannuation | E50: 0 | F50: 0 | G50: 0 | H50: 0 | I50: 0 | J50: 0 | K50: 0 | L50: 0 | M50: 0
B51: =B45 -> Wage + super guarantee increases | E51: 1 | F51: 1 | G51: 1 | H51: 1 | I51: 1 | J51: 1 | K51: 1 | L51: 1 | M51: 1
B52: =B46 -> 0
D53: =IF(OR(SUM(D49:D52)=0,SUM(D49:D52)=1),0,1) -> 0 | E53: 0 | F53: 0 | G53: 0 | H53: 0 | I53: 0 | J53: 0 | K53: 0 | L53: 0 | M53: 0 | N53: =IF(SUM(D53:M53)=0,0,1) -> 0
A55: 4.3.2 | B55: Real price escalation (non-wage) | D55: Current regulatory period | I55: Forecast regulatory period
D57: =IFERROR((LEFT(E57,4)-1&IF(MID(E57,5,1)="","","-"&TEXT(MOD(MID(E57,6,2)-1,100),"00"))),"") -> 2020-21 | E57: =IFERROR((LEFT(F57,4)-1&IF(MID(F57,5,1)="","","-"&TEXT(MOD(MID(F57,6,2)-1,100),"00"))),"") -> 2021-22 | F57: =IFERROR((LEFT(G57,4)-1&IF(MID(G57,5,1)="","","-"&TEXT(MOD(MID(G57,6,2)-1,100),"00"))),"") -> 2022-23 | G57: =IFERROR((LEFT(H57,4)-1&IF(MID(H57,5,1)="","","-"&TEXT(MOD(MID(H57,6,2)-1,100),"00"))),"") -> 2023-24 | H57: =IFERROR((LEFT(I57,4)-1&IF(MID(I57,5,1)="","","-"&TEXT(MOD(MID(I57,6,2)-1,100),"00"))),"") -> 2024-25 | I57: =$C$8 -> 2025-26 | J57: =IFERROR((LEFT(I57,4)+1&IF(MID(I57,5,1)="","","-"&TEXT(MOD(MID(I57,6,2)+1,100),"00"))),"") -> 2026-27 | K57: =IFERROR((LEFT(J57,4)+1&IF(MID(J57,5,1)="","","-"&TEXT(MOD(MID(J57,6,2)+1,100),"00"))),"") -> 2027-28 | L57: =IFERROR((LEFT(K57,4)+1&IF(MID(K57,5,1)="","","-"&TEXT(MOD(MID(K57,6,2)+1,100),"00"))),"") -> 2028-29 | M57: =IFERROR((LEFT(L57,4)+1&IF(MID(L57,5,1)="","","-"&TEXT(MOD(MID(L57,6,2)+1,100),"00"))),"") -> 2029-30
B58: Materials - Real price growth | D58: =-D$28 -> 0 | E58: -0.03095491541 | F58: -0.01873083386 | G58: 0.02050300651 | H58: 0.02527000403 | I58: 0.01481650282 | J58: 0.009861100793 | K58: 0.008443651806 | L58: 0.01051247269 | M58: 0.01236745202
B59: Cumulative Labour - Wage price growth index | D59: =1+D58 -> 1 | E59: =IFERROR(D59*(1+E58),"") -> 0.9690450846 | F59: 0.9508940621 | G59: 0.9703902493 | H59: 0.9949120148 | I59: 1.009653131 | J59: 1.019609423 | K59: 1.02821865 | L59: 1.03902777 | M59: 1.051877896
B60: ="Escalate from base year to " & C28 -> Escalate from base year to | I60: =I59/INDEX($D$57:$M$59,3,MATCH($C$9,$D$57:$M$57,0)) -> 1.04046092
D62: =IFERROR((LEFT(E62,4)-1&IF(MID(E62,5,1)="","","-"&TEXT(MOD(MID(E62,6,2)-1,100),"00"))),"") -> 2020-21 | E62: =IFERROR((LEFT(F62,4)-1&IF(MID(F62,5,1)="","","-"&TEXT(MOD(MID(F62,6,2)-1,100),"00"))),"") -> 2021-22 | F62: =IFERROR((LEFT(G62,4)-1&IF(MID(G62,5,1)="","","-"&TEXT(MOD(MID(G62,6,2)-1,100),"00"))),"") -> 2022-23 | G62: =IFERROR((LEFT(H62,4)-1&IF(MID(H62,5,1)="","","-"&TEXT(MOD(MID(H62,6,2)-1,100),"00"))),"") -> 2023-24 | H62: =IFERROR((LEFT(I62,4)-1&IF(MID(I62,5,1)="","","-"&TEXT(MOD(MID(I62,6,2)-1,100),"00"))),"") -> 2024-25 | I62: =$C$8 -> 2025-26 | J62: =IFERROR((LEFT(I62,4)+1&IF(MID(I62,5,1)="","","-"&TEXT(MOD(MID(I62,6,2)+1,100),"00"))),"") -> 2026-27 | K62: =IFERROR((LEFT(J62,4)+1&IF(MID(J62,5,1)="","","-"&TEXT(MOD(MID(J62,6,2)+1,100),"00"))),"") -> 2027-28 | L62: =IFERROR((LEFT(K62,4)+1&IF(MID(K62,5,1)="","","-"&TEXT(MOD(MID(K62,6,2)+1,100),"00"))),"") -> 2028-29 | M62: =IFERROR((LEFT(L62,4)+1&IF(MID(L62,5,1)="","","-"&TEXT(MOD(MID(L62,6,2)+1,100),"00"))),"") -> 2029-30
B63: Contracts - Real price growth | D63: =-D$29 -> 0 | E63: -0.03095491541 | F63: -0.01873083386 | G63: 0.02050300651 | H63: 0.02527000403 | I63: 0.01481650282 | J63: 0.009861100793 | K63: 0.008443651806 | L63: 0.01051247269 | M63: 0.01236745202
B64: Cumulative Labour - Wage price growth index | D64: =1+D63 -> 1 | E64: =IFERROR(D64*(1+E63),"") -> 0.9690450846 | F64: 0.9508940621 | G64: 0.9703902493 | H64: 0.9949120148 | I64: 1.009653131 | J64: 1.019609423 | K64: 1.02821865 | L64: 1.03902777 | M64: 1.051877896
B65: ="Escalate from base year to " & C33 -> Escalate from base year to | I65: =I64/INDEX($D$62:$M$64,3,MATCH($C$9,$D$62:$M$62,0)) -> 1.04046092
D67: =IFERROR((LEFT(E67,4)-1&IF(MID(E67,5,1)="","","-"&TEXT(MOD(MID(E67,6,2)-1,100),"00"))),"") -> 2020-21 | E67: =IFERROR((LEFT(F67,4)-1&IF(MID(F67,5,1)="","","-"&TEXT(MOD(MID(F67,6,2)-1,100),"00"))),"") -> 2021-22 | F67: =IFERROR((LEFT(G67,4)-1&IF(MID(G67,5,1)="","","-"&TEXT(MOD(MID(G67,6,2)-1,100),"00"))),"") -> 2022-23 | G67: =IFERROR((LEFT(H67,4)-1&IF(MID(H67,5,1)="","","-"&TEXT(MOD(MID(H67,6,2)-1,100),"00"))),"") -> 2023-24 | H67: =IFERROR((LEFT(I67,4)-1&IF(MID(I67,5,1)="","","-"&TEXT(MOD(MID(I67,6,2)-1,100),"00"))),"") -> 2024-25 | I67: =$C$8 -> 2025-26 | J67: =IFERROR((LEFT(I67,4)+1&IF(MID(I67,5,1)="","","-"&TEXT(MOD(MID(I67,6,2)+1,100),"00"))),"") -> 2026-27 | K67: =IFERROR((LEFT(J67,4)+1&IF(MID(J67,5,1)="","","-"&TEXT(MOD(MID(J67,6,2)+1,100),"00"))),"") -> 2027-28 | L67: =IFERROR((LEFT(K67,4)+1&IF(MID(K67,5,1)="","","-"&TEXT(MOD(MID(K67,6,2)+1,100),"00"))),"") -> 2028-29 | M67: =IFERROR((LEFT(L67,4)+1&IF(MID(L67,5,1)="","","-"&TEXT(MOD(MID(L67,6,2)+1,100),"00"))),"") -> 2029-30
B68: Vehicles - Real price growth | D68: =-D$30 -> 0 | E68: -0.03095491541 | F68: -0.01873083386 | G68: 0.02050300651 | H68: 0.02527000403 | I68: 0.01481650282 | J68: 0.009861100793 | K68: 0.008443651806 | L68: 0.01051247269 | M68: 0.01236745202
B69: Cumulative Labour - Wage price growth index | D69: =1+D68 -> 1 | E69: =IFERROR(D69*(1+E68),"") -> 0.9690450846 | F69: 0.9508940621 | G69: 0.9703902493 | H69: 0.9949120148 | I69: 1.009653131 | J69: 1.019609423 | K69: 1.02821865 | L69: 1.03902777 | M69: 1.051877896
B70: ="Escalate from base year to " & C38 -> Escalate from base year to | I70: =I69/INDEX($D$67:$M$69,3,MATCH($C$9,$D$67:$M$67,0)) -> 1.04046092
D72: =IFERROR((LEFT(E72,4)-1&IF(MID(E72,5,1)="","","-"&TEXT(MOD(MID(E72,6,2)-1,100),"00"))),"") -> 2020-21 | E72: =IFERROR((LEFT(F72,4)-1&IF(MID(F72,5,1)="","","-"&TEXT(MOD(MID(F72,6,2)-1,100),"00"))),"") -> 2021-22 | F72: =IFERROR((LEFT(G72,4)-1&IF(MID(G72,5,1)="","","-"&TEXT(MOD(MID(G72,6,2)-1,100),"00"))),"") -> 2022-23 | G72: =IFERROR((LEFT(H72,4)-1&IF(MID(H72,5,1)="","","-"&TEXT(MOD(MID(H72,6,2)-1,100),"00"))),"") -> 2023-24 | H72: =IFERROR((LEFT(I72,4)-1&IF(MID(I72,5,1)="","","-"&TEXT(MOD(MID(I72,6,2)-1,100),"00"))),"") -> 2024-25 | I72: =$C$8 -> 2025-26 | J72: =IFERROR((LEFT(I72,4)+1&IF(MID(I72,5,1)="","","-"&TEXT(MOD(MID(I72,6,2)+1,100),"00"))),"") -> 2026-27 | K72: =IFERROR((LEFT(J72,4)+1&IF(MID(J72,5,1)="","","-"&TEXT(MOD(MID(J72,6,2)+1,100),"00"))),"") -> 2027-28 | L72: =IFERROR((LEFT(K72,4)+1&IF(MID(K72,5,1)="","","-"&TEXT(MOD(MID(K72,6,2)+1,100),"00"))),"") -> 2028-29 | M72: =IFERROR((LEFT(L72,4)+1&IF(MID(L72,5,1)="","","-"&TEXT(MOD(MID(L72,6,2)+1,100),"00"))),"") -> 2029-30
B73: Other - Real price growth | D73: =-D$31 -> 0 | E73: -0.03095491541 | F73: -0.01873083386 | G73: 0.02050300651 | H73: 0.02527000403 | I73: 0.01481650282 | J73: 0.009861100793 | K73: 0.008443651806 | L73: 0.01051247269 | M73: 0.01236745202
B74: Cumulative Labour - Wage price growth index | D74: =1+D73 -> 1 | E74: =IFERROR(D74*(1+E73),"") -> 0.9690450846 | F74: 0.9508940621 | G74: 0.9703902493 | H74: 0.9949120148 | I74: 1.009653131 | J74: 1.019609423 | K74: 1.02821865 | L74: 1.03902777 | M74: 1.051877896
B75: ="Escalate from base year to " & C44 -> Escalate from base year to | I75: =I74/INDEX($D$72:$M$74,3,MATCH($C$9,$D$72:$M$72,0)) -> 1.04046092

Sheet Input|Indirect Cost Rates
B1: =IFERROR(Index!B1,"") -> AER ANS Forecast Model | C1: Key: | D1: Input | F1: Sheet Validation | G1: NA
B2: =IFERROR(MID(CELL("filename",A1),FIND("]",CELL("filename",A1))+1,255),"") -> Input|Indirect Cost Rates | D2: Formula
A5: 5.1 | B5: On costs
B7: On cost drivers | C7: Unit | D7: FY2023
B8: Labour On Cost | C8: Per cent | D8: 0.465
B9: Fleet On Cost | C9: Per cent | D9: 0.212
B10: Material On Cost | C10: Per cent | D10: 0.0872
C11: Per cent
C12: Per cent
C13: Per cent
C14: Per cent
C15: Per cent
C16: Per cent
C17: Per cent
C18: Per cent
B19: Compounded on cost factor | C19: Per cent
A22: 5.2 | B22: Overhead
D23: FY2023
B24: Type of Overhead | C24: Unit | D24: Input
B25: Network (average rate applied to all direct costs for fee-based services) | C25: Per cent | D25: 0.4372538646
B26: Corporate | C26: Per cent | D26: 0.1481681034
B27: Network & Non-network (rate applied to Labour costs - quoted services) | C27: Per cent | D27: 1.0597
C28: Per cent
C29: Per cent
C30: Per cent
C31: Per cent
A34: 5.3 | B34: Margins
C36: Unit | D36: Input
C37: Per cent
C38: Per cent
C39: Per cent
C40: Per cent
B41: Margin for quoted services services only | C41: Per cent | D41: =0.06 -> 0.06
A43: 5.4 | B43: Tax recovery rate
C45: Unit | D45: Input
C46: Per cent
C47: Per cent
C48: Per cent
C49: Per cent

Sheet Input|Fee Based|EGX
B1: =IFERROR(Index!B1,"") -> AER ANS Forecast Model | D1: Key: | E1: Input | I1: Sheet Validation | J1: ='Model Validation'!C14 -> 0
B2: =IFERROR(MID(CELL("filename",A1),FIND("]",CELL("filename",A1))+1,255),"") -> Input|Fee Based|EGX | E2: Formula
AQ5: Includes Material Oncost | AS5: Fleet On Cost
B7: 7.1 Fee based services | F7: Mapping categories | I7: =IFERROR("7.2 Service cost build up - DIRECT COSTS, $'s ($"&'Input|Escalations'!$C$9&")","") -> 7.2 Service cost build up - DIRECT COSTS, $'s ($2023-24) | AV7: 7.3 Service cost build - INDIRECT COSTS (per cent) | BD7: 7.4 Notes and sources for "Other costs"
I9: 7.2.1 Non-field based labour | U9: =IF(SUM(U11:U499)=0,0,1) -> 0 | V9: 7.2.2 Field based labour | AP9: =IF(SUM(AP11:AP499)=0,0,1) -> 0 | AQ9: 7.2.3 Direct non-labour | AV9: Indirect Costs
B10: Service code | C10: Service | D10: ='Input|Setup'!$B$24 & " (List)" -> Hours (List) | E10: ='Input|Setup'!$E$30 & " (List)" -> Service Grouping (List) | F10: ='Input|Setup'!$H$30 & " (List)" -> Tariff class grouping (List) | G10: ='Input|Setup'!$H$40 & " (List)" -> Permutations (List) | I10: Labour category 1 (List) | J10: ='Input|Setup'!$B$24 & " (List)" -> Hours (List) | K10: FTE | L10: Time on task (Minutes) | M10: Labour category 2 (List) | N10: ='Input|Setup'!$B$24 & " (List)" -> Hours (List) | O10: FTE | P10: Time on task (Minutes) | Q10: Labour category 3 (List) | R10: ='Input|Setup'!$B$24 & " (List)" -> Hours (List) | S10: FTE | T10: Time on task (Minutes) | V10: Labour category 1 (List) | W10: ='Input|Setup'!$B$24 & " (List)" -> Hours (List) | X10: FTE | Y10: Travel time (Minutes) | Z10: Time on task (Minutes) | AA10: Labour category 2 (List) | AB10: ='Input|Setup'!$B$24 & " (List)" -> Hours (List) | AC10: FTE | AD10: Travel time (Minutes) | AE10: Time on task (Minutes) | AF10: Labour category 3 (List) | AG10: ='Input|Setup'!$B$24 & " (List)" -> Hours (List) | AH10: FTE | AI10: Travel time (Minutes) | AJ10: Time on task (Minutes) | AK10: Labour category 4 (List) | AL10: ='Input|Setup'!$B$24 & " (List)" -> Hours (List) | AM10: FTE | AN10: Travel time (Minutes) | AO10: Time on task (Minutes) | AQ10: ="Materials ($" & 'Input|Setup'!$E$7 & ")" -> Materials ($2023-24) | AR10: ="Contracts ($" & 'Input|Setup'!$E$7 & ")" -> Contracts ($2023-24) | AS10: ="Vehicles ($" & 'Input|Setup'!$E$7 & ")" -> Vehicles ($2023-24) | AT10: ="Other ($" & 'Input|Setup'!$E$7 & ")" -> Other ($2023-24) | AV10: Network Overhead (%) | AW10: Corporate Overhead (%) | AX10: Margin (%) | AY10: Tax recovery (%) | BD10: Notes and sources for "Other costs"
A11: 1 | B11: DNV1MBU | C11: Retailer requested de-energisation of the customer's premises where the de-energisation can be performed at the premises ie by a method other than main switch seal (eg pole, pillar, transformer or meter isolation link) | D11: Business hours | E11: De-energisation | F11: Connection application and management services | G11: No CT | H11: =IF(AND(ISTEXT(C11),OR(ISBLANK(D11),ISBLANK(E11))),1,0) -> 0 | K11: 0 | L11: 0 | O11: 0 | P11: 0 | S11: 0 | T11: 0 | U11: =IF(OR( AND(ISTEXT(I11),ISBLANK(J11)), AND(ISTEXT(M11),ISBLANK(N11)), AND(ISTEXT(Q11),ISBLANK(R11))),1,0) -> 0 | V11: 20% TSP/Contractor mix | W11: Business hours | X11: 1 | Y11: 31.5 | Z11: 20 | AC11: 0 | AD11: 0 | AE11: 0 | AH11: 0 | AI11: 0 | AJ11: 0 | AM11: 0 | AN11: 0 | AO11: 0 | AP11: =IF(OR( AND(ISTEXT(V11),ISBLANK(W11)), AND(ISTEXT(AA11),ISBLANK(AB11)), AND(ISTEXT(AF11),ISBLANK(AG11)), AND(ISTEXT(AK11),ISBLANK(AL11)),),1,0) -> 0 | AQ11: 0 | AS11: =((K11*L11)+(O11*P11)+(S11*T11)+(X11*(Y11+Z11))+(AC11*(AD11+AE11))+(AH11*(AI11+AJ11))+(AM11*(AN11+AO11)))/60*IF(W11='Input|Setup'!$B$25,VLOOKUP(V11,bus_hours,7,0),VLOOKUP(V11,after_hours,7,0)) -> 0.7010811733 | AT11: =((K11*L11)+(O11*P11)+(S11*T11)+(X11*(Y11+Z11))+(AC11*(AD11+AE11))+(AH11*(AI11+AJ11))+(AM11*(AN11+AO11)))/60*IF(X11='Input|Setup'!$B$25,VLOOKUP(V11,bus_hours,8,0),VLOOKUP(V11,after_hours,8,0)) -> 0 | AV11: =+'Input|Indirect Cost Rates'!$D$25 -> 0.4372538646 | AW11: =+'Input|Indirect Cost Rates'!$D$26 -> 0.1481681034 | AX11: =+'Input|Indirect Cost Rates'!$D$37 -> 0 | AY11: =+'Input|Indirect Cost Rates'!$D$46 -> 0 | AZ11: =IF(OR(ISBLANK(AV11),_xlfn.ISFORMULA(AV11)),0,1) -> 0 | BA11: =IF(OR(ISBLANK(AW11),_xlfn.ISFORMULA(AW11)),0,1) -> 0 | BB11: =IF(OR(ISBLANK(AX11),_xlfn.ISFORMULA(AX11)),0,1) -> 0 | BC11: =IF(OR(ISBLANK(AY11),_xlfn.ISFORMULA(AY11)),0,1) -> 0 | BD11: 80% of services performed by contractors | BE11: =IF(AND(OR(AT11="",AT11=0),BD11=""),0,IF(AND(AT11<>"",AT11<>0,BD11=""),1,0)) -> 0
A12: =A11+1 -> 2 | B12: DNV2MBU | C12: Retailer requested de-energisation of the customer's premises where the de-energisation can be performed at the premises ie by a method other than main switch seal (eg pole, pillar, transformer or meter isolation link) | D12: Business hours | E12: De-energisation | F12: Connection application and management services | G12: CT | H12: 0 | U12: 0 | V12: Technical Service Person | W12: Business hours | X12: 1 | Y12: 31.5 | Z12: 40.2 | AA12: Technical Service Person | AB12: Business hours | AC12: 1 | AD12: 31.5 | AE12: 40.2 | AI12: 0 | AJ12: 0 | AP12: 0 | AQ12: 0 | AS12: =((K12*L12)+(O12*P12)+(S12*T12)+(X12*(Y12+Z12))+(AC12*(AD12+AE12))+(AH12*(AI12+AJ12))+(AM12*(AN12+AO12)))/60*IF(W12='Input|Setup'!$B$25,VLOOKUP(V12,bus_hours,7,0),VLOOKUP(V12,after_hours,7,0)) -> 48.8034176 | AT12: =((K12*L12)+(O12*P12)+(S12*T12)+(X12*(Y12+Z12))+(AC12*(AD12+AE12))+(AH12*(AI12+AJ12))+(AM12*(AN12+AO12)))/60*IF(X12='Input|Setup'!$B$25,VLOOKUP(V12,bus_hours,8,0),VLOOKUP(V12,after_hours,8,0)) -> 0 | AV12: =+'Input|Indirect Cost Rates'!$D$25 -> 0.4372538646 | AW12: =+'Input|Indirect Cost Rates'!$D$26 -> 0.1481681034 | AX12: =+'Input|Indirect Cost Rates'!$D$37 -> 0 | AY12: =+'Input|Indirect Cost Rates'!$D$46 -> 0 | AZ12: 0 | BA12: 0 | BB12: 0 | BC12: 0 | BE12: 0
A13: =A12+1 -> 3 | B13: DN$1MBU | C13: Retailer requested de-energisation of the customer's premises where the de-energisation can be performed at the premises ie by a method other than main switch seal (eg pole, pillar, transformer or meter isolation link) | D13: Business hours | E13: De-energisation | F13: Connection application and management services | G13: No Payment No CT | H13: 0 | U13: 0 | V13: 20% TSP/Contractor mix | W13: Business hours | X13: 1 | Y13: 31.5 | Z13: 20 | AA13: 20% TSP/Contractor mix | AB13: Business hours | AC13: 1 | AD13: 31.5 | AE13: 20 | AI13: 0 | AJ13: 0 | AP13: 0 | AQ13: 0 | AS13: =((K13*L13)+(O13*P13)+(S13*T13)+(X13*(Y13+Z13))+(AC13*(AD13+AE13))+(AH13*(AI13+AJ13))+(AM13*(AN13+AO13)))/60*IF(W13='Input|Setup'!$B$25,VLOOKUP(V13,bus_hours,7,0),VLOOKUP(V13,after_hours,7,0)) -> 1.402162347 | AT13: =((K13*L13)+(O13*P13)+(S13*T13)+(X13*(Y13+Z13))+(AC13*(AD13+AE13))+(AH13*(AI13+AJ13))+(AM13*(AN13+AO13)))/60*IF(X13='Input|Setup'!$B$25,VLOOKUP(V13,bus_hours,8,0),VLOOKUP(V13,after_hours,8,0)) -> 0 | AV13: =+'Input|Indirect Cost Rates'!$D$25 -> 0.4372538646 | AW13: =+'Input|Indirect Cost Rates'!$D$26 -> 0.1481681034 | AX13: =+'Input|Indirect Cost Rates'!$D$37 -> 0 | AY13: =+'Input|Indirect Cost Rates'!$D$46 -> 0 | AZ13: 0 | BA13: 0 | BB13: 0 | BC13: 0 | BD13: 80% of services performed by contractors | BE13: 0
A14: 4 | B14: DN$2MBU | C14: Retailer requested de-energisation of the customer's premises where the de-energisation can be performed at the premises ie by a method other than main switch seal (eg pole, pillar, transformer or meter isolation link) | D14: Business hours | E14: De-energisation | F14: Connection application and management services | G14: No Payment CT | H14: 0 | U14: 0 | V14: Technical Service Person | W14: Business hours | X14: 1 | Y14: 31.5 | Z14: 40.2 | AA14: Technical Service Person | AB14: Business hours | AC14: 1 | AD14: 31.5 | AE14: 40.2 | AI14: 0 | AJ14: 0 | AP14: 0 | AQ14: 0 | AS14: =((K14*L14)+(O14*P14)+(S14*T14)+(X14*(Y14+Z14))+(AC14*(AD14+AE14))+(AH14*(AI14+AJ14))+(AM14*(AN14+AO14)))/60*IF(W14='Input|Setup'!$B$25,VLOOKUP(V14,bus_hours,7,0),VLOOKUP(V14,after_hours,7,0)) -> 48.8034176 | AT14: =((K14*L14)+(O14*P14)+(S14*T14)+(X14*(Y14+Z14))+(AC14*(AD14+AE14))+(AH14*(AI14+AJ14))+(AM14*(AN14+AO14)))/60*IF(X14='Input|Setup'!$B$25,VLOOKUP(V14,bus_hours,8,0),VLOOKUP(V14,after_hours,8,0)) -> 0 | AV14: =+'Input|Indirect Cost Rates'!$D$25 -> 0.4372538646 | AW14: =+'Input|Indirect Cost Rates'!$D$26 -> 0.1481681034 | AX14: =+'Input|Indirect Cost Rates'!$D$37 -> 0 | AY14: =+'Input|Indirect Cost Rates'!$D$46 -> 0 | AZ14: 0 | BA14: 0 | BB14: 0 | BC14: 0 | BE14: 0
A15: 5 | B15: DNMS1MBU | C15: Retailer requested de-energisation (MSS) | D15: Business hours | E15: De-energisation | F15: Connection application and management services | G15: No CT | H15: 0 | U15: 0 | V15: 50% TSP/Contractor mix | W15: Business hours | X15: 1 | Y15: 31.5 | Z15: 15 | AP15: 0 | AQ15: 0 | AS15: =((K15*L15)+(O15*P15)+(S15*T15)+(X15*(Y15+Z15))+(AC15*(AD15+AE15))+(AH15*(AI15+AJ15))+(AM15*(AN15+AO15)))/60*IF(TRUE,VLOOKUP(V15,bus_hours,7,0),VLOOKUP(V15,after_hours,7,0)) -> 3.956344 | AT15: =((K15*L15)+(O15*P15)+(S15*T15)+(X15*(Y15+Z15))+(AC15*(AD15+AE15))+(AH15*(AI15+AJ15))+(AM15*(AN15+AO15)))/60*IF(X15='Input|Setup'!$B$25,VLOOKUP(V15,bus_hours,8,0),VLOOKUP(V15,after_hours,8,0)) -> 0 | AV15: =+'Input|Indirect Cost Rates'!$D$25 -> 0.4372538646 | AW15: =+'Input|Indirect Cost Rates'!$D$26 -> 0.1481681034 | AX15: =+'Input|Indirect Cost Rates'!$D$37 -> 0 | AY15: =+'Input|Indirect Cost Rates'!$D$46 -> 0 | AZ15: 0 | BA15: 0 | BB15: 0 | BC15: 0 | BD15: 50% of services performed by contractors | BE15: 0
A16: 6 | B16: DNS$1MBU | C16: Retailer requested de-energisation (MSS) | D16: Business hours | E16: De-energisation | F16: Connection application and management services | G16: No Payment No CT | H16: 0 | U16: 0 | V16: 20% TSP/Contractor mix | W16: Business hours | X16: 1 | Y16: 31.5 | Z16: 15 | AA16: 20% TSP/Contractor mix | AB16: Business hours | AC16: 1 | AD16: 31.5 | AE16: 15 | AI16: 0 | AJ16: 0 | AP16: 0 | AQ16: 0 | AS16: =((K16*L16)+(O16*P16)+(S16*T16)+(X16*(Y16+Z16))+(AC16*(AD16+AE16))+(AH16*(AI16+AJ16))+(AM16*(AN16+AO16)))/60*IF(W16='Input|Setup'!$B$25,VLOOKUP(V16,bus_hours,7,0),VLOOKUP(V16,after_hours,7,0)) -> 1.26603008 | AT16: =((K16*L16)+(O16*P16)+(S16*T16)+(X16*(Y16+Z16))+(AC16*(AD16+AE16))+(AH16*(AI16+AJ16))+(AM16*(AN16+AO16)))/60*IF(X16='Input|Setup'!$B$25,VLOOKUP(V16,bus_hours,8,0),VLOOKUP(V16,after_hours,8,0)) -> 0 | AV16: =+'Input|Indirect Cost Rates'!$D$25 -> 0.4372538646 | AW16: =+'Input|Indirect Cost Rates'!$D$26 -> 0.1481681034 | AX16: =+'Input|Indirect Cost Rates'!$D$37 -> 0 | AY16: =+'Input|Indirect Cost Rates'!$D$46 -> 0 | AZ16: 0 | BA16: 0 | BB16: 0 | BC16: 0 | BD16: 80% of services performed by contractors | BE16: 0
A17: 7 | B17: RN$1MBU | C17: Retailer requests a re-energisation of the customer's premises where the customer has not paid their electricity account. No visual required | D17: Business hours | E17: Re-energisation | F17: Connection application and management services | G17: No Payment No CT | H17: 0 | U17: 0 | V17: 20% TSP/Contractor mix | W17: Business hours | X17: 1 | Y17: 31.5 | Z17: 15 | AA17: 20% TSP/Contractor mix | AB17: Business hours | AC17: 1 | AD17: 31.5 | AE17: 15 | AI17: 0 | AJ17: 0 | AP17: 0 | AQ17: 0 | AS17: =((K17*L17)+(O17*P17)+(S17*T17)+(X17*(Y17+Z17))+(AC17*(AD17+AE17))+(AH17*(AI17+AJ17))+(AM17*(AN17+AO17)))/60*IF(W17='Input|Setup'!$B$25,VLOOKUP(V17,bus_hours,7,0),VLOOKUP(V17,after_hours,7,0)) -> 1.26603008 | AT17: =((K17*L17)+(O17*P17)+(S17*T17)+(X17*(Y17+Z17))+(AC17*(AD17+AE17))+(AH17*(AI17+AJ17))+(AM17*(AN17+AO17)))/60*IF(X17='Input|Setup'!$B$25,VLOOKUP(V17,bus_hours,8,0),VLOOKUP(V17,after_hours,8,0)) -> 0 | AV17: =+'Input|Indirect Cost Rates'!$D$25 -> 0.4372538646 | AW17: =+'Input|Indirect Cost Rates'!$D$26 -> 0.1481681034 | AX17: =+'Input|Indirect Cost Rates'!$D$37 -> 0 | AY17: =+'Input|Indirect Cost Rates'!$D$46 -> 0 | AZ17: 0 | BA17: 0 | BB17: 0 | BC17: 0 | BD17: 80% of services performed by contractors | BE17: 0
A18: 8 | B18: RN$2MBU | C18: Retailer requests a re-energisation of the customer's premises where the customer has not paid their electricity account. No visual required | D18: Business hours | E18: Re-energisation | F18: Connection application and management services | G18: No Payment CT | H18: 0 | U18: 0 | V18: 20% TSP/Contractor mix | W18: Business hours | X18: 1 | Y18: 31.5 | Z18: 25 | AA18: 20% TSP/Contractor mix | AB18: Business hours | AC18: 1 | AD18: 31.5 | AE18: 25 | AI18: 0 | AJ18: 0 | AP18: 0 | AQ18: 0 | AS18: =((K18*L18)+(O18*P18)+(S18*T18)+(X18*(Y18+Z18))+(AC18*(AD18+AE18))+(AH18*(AI18+AJ18))+(AM18*(AN18+AO18)))/60*IF(W18='Input|Setup'!$B$25,VLOOKUP(V18,bus_hours,7,0),VLOOKUP(V18,after_hours,7,0)) -> 1.538294613 | AT18: =((K18*L18)+(O18*P18)+(S18*T18)+(X18*(Y18+Z18))+(AC18*(AD18+AE18))+(AH18*(AI18+AJ18))+(AM18*(AN18+AO18)))/60*IF(X18='Input|Setup'!$B$25,VLOOKUP(V18,bus_hours,8,0),VLOOKUP(V18,after_hours,8,0)) -> 0 | AV18: =+'Input|Indirect Cost Rates'!$D$25 -> 0.4372538646 | AW18: =+'Input|Indirect Cost Rates'!$D$26 -> 0.1481681034 | AX18: =+'Input|Indirect Cost Rates'!$D$37 -> 0 | AY18: =+'Input|Indirect Cost Rates'!$D$46 -> 0 | AZ18: 0 | BA18: 0 | BB18: 0 | BC18: 0 | BD18: 80% of services performed by contractors | BE18: 0
A19: 9 | B19: RN$1MAU | C19: Retailer requests a re-energisation of the customer's premises where the customer has not paid their electricity account. No visual required | D19: After hours | E19: Re-energisation | F19: Connection application and management services | G19: No Payment No CT | H19: 0 | U19: 0 | V19: Technical Service Person | W19: After hours | X19: 1 | Y19: 31.5 | Z19: 15 | AA19: Technical Service Person | AB19: After hours | AC19: 1 | AD19: 31.5 | AE19: 15 | AI19: 0 | AJ19: 0 | AP19: 0 | AQ19: 0 | AS19: =((K19*L19)+(O19*P19)+(S19*T19)+(X19*(Y19+Z19))+(AC19*(AD19+AE19))+(AH19*(AI19+AJ19))+(AM19*(AN19+AO19)))/60*IF(W19='Input|Setup'!$B$25,VLOOKUP(V19,bus_hours,7,0),VLOOKUP(V19,after_hours,7,0)) -> 35.99420323 | AT19: =((K19*L19)+(O19*P19)+(S19*T19)+(X19*(Y19+Z19))+(AC19*(AD19+AE19))+(AH19*(AI19+AJ19))+(AM19*(AN19+AO19)))/60*IF(X19='Input|Setup'!$B$25,VLOOKUP(V19,bus_hours,8,0),VLOOKUP(V19,after_hours,8,0)) -> 0 | AV19: =+'Input|Indirect Cost Rates'!$D$25 -> 0.4372538646 | AW19: =+'Input|Indirect Cost Rates'!$D$26 -> 0.1481681034 | AX19: =+'Input|Indirect Cost Rates'!$D$37 -> 0 | AY19: =+'Input|Indirect Cost Rates'!$D$46 -> 0 | AZ19: 0 | BA19: 0 | BB19: 0 | BC19: 0 | BE19: 0
A20: 10 | B20: RNS1MBU | C20: Retailer requests a re-energisation for the customer's premises following a main switch seal (no visual required) | D20: Business hours | E20: Re-energisation | F20: Connection application and management services | G20: No CT | H20: =IF(AND(ISTEXT(C20),OR(ISBLANK(D20),ISBLANK(E20))),1,0) -> 0 | U20: =IF(OR( AND(ISTEXT(I20),ISBLANK(J20)), AND(ISTEXT(M20),ISBLANK(N20)), AND(ISTEXT(Q20),ISBLANK(R20))),1,0) -> 0 | V20: 50% TSP/Contractor mix | W20: Business hours | X20: 1 | Y20: 31.5 | Z20: 15 | AI20: 0 | AJ20: 0 | AP20: =IF(OR( AND(ISTEXT(V20),ISBLANK(W20)), AND(ISTEXT(AA20),ISBLANK(AB20)), AND(ISTEXT(AF20),ISBLANK(AG20)), AND(ISTEXT(AK20),ISBLANK(AL20)),),1,0) -> 0 | AQ20: 0 | AS20: =((K20*L20)+(O20*P20)+(S20*T20)+(X20*(Y20+Z20))+(AC20*(AD20+AE20))+(AH20*(AI20+AJ20))+(AM20*(AN20+AO20)))/60*IF(W20='Input|Setup'!$B$25,VLOOKUP(V20,bus_hours,7,0),VLOOKUP(V20,after_hours,7,0)) -> 3.956344 | AT20: =((K20*L20)+(O20*P20)+(S20*T20)+(X20*(Y20+Z20))+(AC20*(AD20+AE20))+(AH20*(AI20+AJ20))+(AM20*(AN20+AO20)))/60*IF(X20='Input|Setup'!$B$25,VLOOKUP(V20,bus_hours,8,0),VLOOKUP(V20,after_hours,8,0)) -> 0 | AV20: =+'Input|Indirect Cost Rates'!$D$25 -> 0.4372538646 | AW20: =+'Input|Indirect Cost Rates'!$D$26 -> 0.1481681034 | AX20: =+'Input|Indirect Cost Rates'!$D$37 -> 0 | AY20: =+'Input|Indirect Cost Rates'!$D$46 -> 0 | AZ20: =IF(OR(ISBLANK(AV20),_xlfn.ISFORMULA(AV20)),0,1) -> 0 | BA20: =IF(OR(ISBLANK(AW20),_xlfn.ISFORMULA(AW20)),0,1) -> 0 | BB20: =IF(OR(ISBLANK(AX20),_xlfn.ISFORMULA(AX20)),0,1) -> 0 | BC20: =IF(OR(ISBLANK(AY20),_xlfn.ISFORMULA(AY20)),0,1) -> 0 | BD20: 50% of services performed by contractors | BE20: 0
A21: 11 | B21: RNS1MAU | C21: Retailer requests a re-energisation for the customer's premises following a main switch seal (no visual required) | D21: After hours | E21: Re-energisation | F21: Connection application and management services | G21: No CT | H21: 0 | U21: 0 | V21: Technical Service Person | W21: After hours | X21: 1 | Y21: 31.5 | Z21: 15 | AI21: 0 | AJ21: 0 | AP21: 0 | AQ21: 0 | AS21: =((K21*L21)+(O21*P21)+(S21*T21)+(X21*(Y21+Z21))+(AC21*(AD21+AE21))+(AH21*(AI21+AJ21))+(AM21*(AN21+AO21)))/60*IF(W21='Input|Setup'!$B$25,VLOOKUP(V21,bus_hours,7,0),VLOOKUP(V21,after_hours,7,0)) -> 17.99710161 | AT21: =((K21*L21)+(O21*P21)+(S21*T21)+(X21*(Y21+Z21))+(AC21*(AD21+AE21))+(AH21*(AI21+AJ21))+(AM21*(AN21+AO21)))/60*IF(X21='Input|Setup'!$B$25,VLOOKUP(V21,bus_hours,8,0),VLOOKUP(V21,after_hours,8,0)) -> 0 | AV21: =+'Input|Indirect Cost Rates'!$D$25 -> 0.4372538646 | AW21: =+'Input|Indirect Cost Rates'!$D$26 -> 0.1481681034 | AX21: =+'Input|Indirect Cost Rates'!$D$37 -> 0 | AY21: =+'Input|Indirect Cost Rates'!$D$46 -> 0 | AZ21: 0 | BA21: 0 | BB21: 0 | BC21: 0 | BE21: 0
A22: 12 | B22: RNS$1MBU | C22: Retailer requests a re-energisation for the customer's premises following a main switch seal (no visual required) | D22: Business hours | E22: Re-energisation | F22: Connection application and management services | G22: No Payment No CT | H22: 0 | U22: 0 | V22: 20% TSP/Contractor mix | W22: Business hours | X22: 1 | Y22: 31.5 | Z22: 15 | AA22: 20% TSP/Contractor mix | AB22: Business hours | AC22: 1 | AD22: 31.5 | AE22: 15 | AI22: 0 | AJ22: 0 | AP22: 0 | AQ22: 0 | AS22: =((K22*L22)+(O22*P22)+(S22*T22)+(X22*(Y22+Z22))+(AC22*(AD22+AE22))+(AH22*(AI22+AJ22))+(AM22*(AN22+AO22)))/60*IF(W22='Input|Setup'!$B$25,VLOOKUP(V22,bus_hours,7,0),VLOOKUP(V22,after_hours,7,0)) -> 1.26603008 | AT22: =((K22*L22)+(O22*P22)+(S22*T22)+(X22*(Y22+Z22))+(AC22*(AD22+AE22))+(AH22*(AI22+AJ22))+(AM22*(AN22+AO22)))/60*IF(X22='Input|Setup'!$B$25,VLOOKUP(V22,bus_hours,8,0),VLOOKUP(V22,after_hours,8,0)) -> 0 | AV22: =+'Input|Indirect Cost Rates'!$D$25 -> 0.4372538646 | AW22: =+'Input|Indirect Cost Rates'!$D$26 -> 0.1481681034 | AX22: =+'Input|Indirect Cost Rates'!$D$37 -> 0 | AY22: =+'Input|Indirect Cost Rates'!$D$46 -> 0 | AZ22: 0 | BA22: 0 | BB22: 0 | BC22: 0 | BD22: 80% of services performed by contractors | BE22: 0
A23: 13 | B23: RNV1MBU | C23: Retailer or metering coordinator/provider requests a visual examination upon re-energisation (physical or remote) of the customer’s premises. | D23: Business hours | E23: Re-energisation | F23: Connection application and management services | G23: No CT | H23: 0 | U23: 0 | V23: 20% TSP/Contractor mix | W23: Business hours | X23: 1 | Y23: 31.5 | Z23: 30 | AP23: 0 | AQ23: 0 | AS23: =((K23*L23)+(O23*P23)+(S23*T23)+(X23*(Y23+Z23))+(AC23*(AD23+AE23))+(AH23*(AI23+AJ23))+(AM23*(AN23+AO23)))/60*IF(W23='Input|Setup'!$B$25,VLOOKUP(V23,bus_hours,7,0),VLOOKUP(V23,after_hours,7,0)) -> 0.83721344 | AT23: =((K23*L23)+(O23*P23)+(S23*T23)+(X23*(Y23+Z23))+(AC23*(AD23+AE23))+(AH23*(AI23+AJ23))+(AM23*(AN23+AO23)))/60*IF(X23='Input|Setup'!$B$25,VLOOKUP(V23,bus_hours,8,0),VLOOKUP(V23,after_hours,8,0)) -> 0 | AV23: =+'Input|Indirect Cost Rates'!$D$25 -> 0.4372538646 | AW23: =+'Input|Indirect Cost Rates'!$D$26 -> 0.1481681034 | AX23: =+'Input|Indirect Cost Rates'!$D$37 -> 0 | AY23: =+'Input|Indirect Cost Rates'!$D$46 -> 0 | AZ23: 0 | BA23: 0 | BB23: 0 | BC23: 0 | BD23: 80% of services performed by contractors | BE23: 0
A24: 14 | B24: RNV2MBU | C24: Retailer or metering coordinator/provider requests a visual examination upon re-energisation (physical or remote) of the customer’s premises. | D24: Business hours | E24: Re-energisation | F24: Connection application and management services | G24: CT | H24: 0 | U24: 0 | V24: 50% TSP/Contractor mix | W24: Business hours | X24: 1 | Y24: 31.5 | Z24: 45 | AA24: 50% TSP/Contractor mix | AB24: Business hours | AC24: 1 | AD24: 31.5 | AE24: 45 | AI24: 0 | AJ24: 0 | AP24: 0 | AQ24: 0 | AS24: =((K24*L24)+(O24*P24)+(S24*T24)+(X24*(Y24+Z24))+(AC24*(AD24+AE24))+(AH24*(AI24+AJ24))+(AM24*(AN24+AO24)))/60*IF(W24='Input|Setup'!$B$25,VLOOKUP(V24,bus_hours,7,0),VLOOKUP(V24,after_hours,7,0)) -> 13.017648 | AT24: =((K24*L24)+(O24*P24)+(S24*T24)+(X24*(Y24+Z24))+(AC24*(AD24+AE24))+(AH24*(AI24+AJ24))+(AM24*(AN24+AO24)))/60*IF(X24='Input|Setup'!$B$25,VLOOKUP(V24,bus_hours,8,0),VLOOKUP(V24,after_hours,8,0)) -> 0 | AV24: =+'Input|Indirect Cost Rates'!$D$25 -> 0.4372538646 | AW24: =+'Input|Indirect Cost Rates'!$D$26 -> 0.1481681034 | AX24: =+'Input|Indirect Cost Rates'!$D$37 -> 0 | AY24: =+'Input|Indirect Cost Rates'!$D$46 -> 0 | AZ24: 0 | BA24: 0 | BB24: 0 | BC24: 0 | BD24: 50% of services performed by contractors | BE24: 0
A25: 15 | B25: RNV1MAU | C25: Retailer or metering coordinator/provider requests a visual examination upon re-energisation (physical or remote) of the customer’s premises. | D25: After hours | E25: Re-energisation | F25: Connection application and management services | G25: No CT | H25: 0 | U25: 0 | V25: Technical Service Person | W25: After hours | X25: 1 | Y25: 31.5 | Z25: 30 | AD25: 0 | AE25: 0 | AI25: 0 | AJ25: 0 | AP25: 0 | AQ25: 0 | AS25: =((K25*L25)+(O25*P25)+(S25*T25)+(X25*(Y25+Z25))+(AC25*(AD25+AE25))+(AH25*(AI25+AJ25))+(AM25*(AN25+AO25)))/60*IF(W25='Input|Setup'!$B$25,VLOOKUP(V25,bus_hours,7,0),VLOOKUP(V25,after_hours,7,0)) -> 23.80261826 | AT25: =((K25*L25)+(O25*P25)+(S25*T25)+(X25*(Y25+Z25))+(AC25*(AD25+AE25))+(AH25*(AI25+AJ25))+(AM25*(AN25+AO25)))/60*IF(X25='Input|Setup'!$B$25,VLOOKUP(V25,bus_hours,8,0),VLOOKUP(V25,after_hours,8,0)) -> 0 | AV25: =+'Input|Indirect Cost Rates'!$D$25 -> 0.4372538646 | AW25: =+'Input|Indirect Cost Rates'!$D$26 -> 0.1481681034 | AX25: =+'Input|Indirect Cost Rates'!$D$37 -> 0 | AY25: =+'Input|Indirect Cost Rates'!$D$46 -> 0 | AZ25: 0 | BA25: 0 | BB25: 0 | BC25: 0 | BE25: 0
A26: 16 | B26: RNV2MAU | C26: Retailer or metering coordinator/provider requests a visual examination upon re-energisation (physical or remote) of the customer’s premises. | D26: After hours | E26: Re-energisation | F26: Connection application and management services | G26: CT | H26: 0 | U26: 0 | V26: Technical Service Person | W26: After hours | X26: 1 | Y26: 31.5 | Z26: 45 | AA26: Technical Service Person | AB26: After hours | AC26: 1 | AD26: 31.5 | AE26: 45 | AI26: 0 | AJ26: 0 | AP26: 0 | AQ26: 0 | AS26: =((K26*L26)+(O26*P26)+(S26*T26)+(X26*(Y26+Z26))+(AC26*(AD26+AE26))+(AH26*(AI26+AJ26))+(AM26*(AN26+AO26)))/60*IF(W26='Input|Setup'!$B$25,VLOOKUP(V26,bus_hours,7,0),VLOOKUP(V26,after_hours,7,0)) -> 59.21626983 | AT26: =((K26*L26)+(O26*P26)+(S26*T26)+(X26*(Y26+Z26))+(AC26*(AD26+AE26))+(AH26*(AI26+AJ26))+(AM26*(AN26+AO26)))/60*IF(X26='Input|Setup'!$B$25,VLOOKUP(V26,bus_hours,8,0),VLOOKUP(V26,after_hours,8,0)) -> 0 | AV26: =+'Input|Indirect Cost Rates'!$D$25 -> 0.4372538646 | AW26: =+'Input|Indirect Cost Rates'!$D$26 -> 0.1481681034 | AX26: =+'Input|Indirect Cost Rates'!$D$37 -> 0 | AY26: =+'Input|Indirect Cost Rates'!$D$46 -> 0 | AZ26: 0 | BA26: 0 | BB26: 0 | BC26: 0 | BE26: 0
A27: 17 | B27: RN$V1MBU | C27: Retailer or metering coordinator/provider requests a visual examination upon re-energisation (physical) of the customer’s premises where the customer has not paid their electricity account. NMI de-energised > 30 days. | D27: Business hours | E27: Re-energisation | F27: Connection application and management services | G27: No Payment No CT | H27: 0 | U27: 0 | AP27: 0 | AQ27: 0 | AS27: 0 | AV27: =+'Input|Indirect Cost Rates'!$D$25 -> 0.4372538646 | AW27: =+'Input|Indirect Cost Rates'!$D$26 -> 0.1481681034 | AX27: =+'Input|Indirect Cost Rates'!$D$37 -> 0 | AY27: =+'Input|Indirect Cost Rates'!$D$46 -> 0 | AZ27: 0 | BA27: 0 | BB27: 0 | BC27: 0 | BD27: 100% of services performed by contractors | BE27: 0
A28: 18 | B28: RN$V1MAU | C28: Retailer or metering coordinator/provider requests a visual examination upon re-energisation (physical) of the customer’s premises where the customer has not paid their electricity account. NMI de-energised > 30 days. | D28: After hours | E28: Re-energisation | F28: Connection application and management services | G28: No Payment No CT | H28: 0 | U28: 0 | V28: Technical Service Person | W28: After hours | X28: 1 | Y28: 31.5 | Z28: 30 | AA28: Technical Service Person | AB28: After hours | AC28: 1 | AD28: 31.5 | AE28: 30 | AI28: 0 | AJ28: 0 | AP28: 0 | AQ28: 0 | AS28: =((K28*L28)+(O28*P28)+(S28*T28)+(X28*(Y28+Z28))+(AC28*(AD28+AE28))+(AH28*(AI28+AJ28))+(AM28*(AN28+AO28)))/60*IF(W28='Input|Setup'!$B$25,VLOOKUP(V28,bus_hours,7,0),VLOOKUP(V28,after_hours,7,0)) -> 47.60523653 | AT28: =((K28*L28)+(O28*P28)+(S28*T28)+(X28*(Y28+Z28))+(AC28*(AD28+AE28))+(AH28*(AI28+AJ28))+(AM28*(AN28+AO28)))/60*IF(X28='Input|Setup'!$B$25,VLOOKUP(V28,bus_hours,8,0),VLOOKUP(V28,after_hours,8,0)) -> 0 | AV28: =+'Input|Indirect Cost Rates'!$D$25 -> 0.4372538646 | AW28: =+'Input|Indirect Cost Rates'!$D$26 -> 0.1481681034 | AX28: =+'Input|Indirect Cost Rates'!$D$37 -> 0 | AY28: =+'Input|Indirect Cost Rates'!$D$46 -> 0 | AZ28: 0 | BA28: 0 | BB28: 0 | BC28: 0 | BE28: 0
A29: 19 | B29: RN$V2MBU | C29: Retailer or metering coordinator/provider requests a visual examination upon re-energisation (physical) of the customer’s premises where the customer has not paid their electricity account. NMI de-energised > 30 days. | D29: Business hours | E29: Re-energisation | F29: Connection application and management services | G29: No Payment CT | H29: 0 | U29: 0 | V29: 50% TSP/Contractor mix | W29: Business hours | X29: 1 | Y29: 31.5 | Z29: 45 | AA29: 50% TSP/Contractor mix | AB29: Business hours | AC29: 1 | AD29: 31.5 | AE29: 45 | AI29: 0 | AJ29: 0 | AP29: 0 | AQ29: 0 | AS29: =((K29*L29)+(O29*P29)+(S29*T29)+(X29*(Y29+Z29))+(AC29*(AD29+AE29))+(AH29*(AI29+AJ29))+(AM29*(AN29+AO29)))/60*IF(W29='Input|Setup'!$B$25,VLOOKUP(V29,bus_hours,7,0),VLOOKUP(V29,after_hours,7,0)) -> 13.017648 | AT29: =((K29*L29)+(O29*P29)+(S29*T29)+(X29*(Y29+Z29))+(AC29*(AD29+AE29))+(AH29*(AI29+AJ29))+(AM29*(AN29+AO29)))/60*IF(X29='Input|Setup'!$B$25,VLOOKUP(V29,bus_hours,8,0),VLOOKUP(V29,after_hours,8,0)) -> 0 | AV29: =+'Input|Indirect Cost Rates'!$D$25 -> 0.4372538646 | AW29: =+'Input|Indirect Cost Rates'!$D$26 -> 0.1481681034 | AX29: =+'Input|Indirect Cost Rates'!$D$37 -> 0 | AY29: =+'Input|Indirect Cost Rates'!$D$46 -> 0 | AZ29: 0 | BA29: 0 | BB29: 0 | BC29: 0 | BD29: 50% of services performed by contractors | BE29: 0
A30: 20 | B30: TDNNDBU | C30: Temporary de-energisation and re-energisation of supply to allow customer or contractor to work close - the supply will be disconnected - No Dismantling | D30: Business hours | E30: Temporary disconnections and reconnections (which may involve a line drop) | F30: Connection application and management services | G30: No CT | H30: 0 | U30: 0 | V30: Technical Service Person | W30: Business hours | X30: 1 | Y30: 31.5 | Z30: 40.2 | AA30: Technical Service Person | AB30: Business hours | AC30: 1 | AD30: 31.5 | AE30: 40.2 | AI30: 0 | AJ30: 0 | AP30: 0 | AQ30: 0 | AS30: =((K30*L30)+(O30*P30)+(S30*T30)+(X30*(Y30+Z30))+(AC30*(AD30+AE30))+(AH30*(AI30+AJ30))+(AM30*(AN30+AO30)))/60*IF(W30='Input|Setup'!$B$25,VLOOKUP(V30,bus_hours,7,0),VLOOKUP(V30,after_hours,7,0)) -> 48.8034176 | AT30: =((K30*L30)+(O30*P30)+(S30*T30)+(X30*(Y30+Z30))+(AC30*(AD30+AE30))+(AH30*(AI30+AJ30))+(AM30*(AN30+AO30)))/60*IF(X30='Input|Setup'!$B$25,VLOOKUP(V30,bus_hours,8,0),VLOOKUP(V30,after_hours,8,0)) -> 0 | AV30: =+'Input|Indirect Cost Rates'!$D$25 -> 0.4372538646 | AW30: =+'Input|Indirect Cost Rates'!$D$26 -> 0.1481681034 | AX30: =+'Input|Indirect Cost Rates'!$D$37 -> 0 | AY30: =+'Input|Indirect Cost Rates'!$D$46 -> 0 | AZ30: 0 | BA30: 0 | BB30: 0 | BC30: 0 | BE30: 0
A31: 21 | B31: TDNNDAU | C31: Temporary de-energisation and re-energisation of supply to allow customer or contractor to work close - the supply will be disconnected - No Dismantling | D31: After hours | E31: Temporary disconnections and reconnections (which may involve a line drop) | F31: Connection application and management services | G31: No CT | H31: 0 | U31: 0 | V31: Technical Service Person | W31: After hours | X31: 1 | Y31: 31.5 | Z31: 40.2 | AA31: Technical Service Person | AB31: After hours | AC31: 1 | AD31: 31.5 | AE31: 40.2 | AI31: 0 | AJ31: 0 | AP31: 0 | AQ31: 0 | AS31: =((K31*L31)+(O31*P31)+(S31*T31)+(X31*(Y31+Z31))+(AC31*(AD31+AE31))+(AH31*(AI31+AJ31))+(AM31*(AN31+AO31)))/60*IF(W31='Input|Setup'!$B$25,VLOOKUP(V31,bus_hours,7,0),VLOOKUP(V31,after_hours,7,0)) -> 55.50073917 | AT31: =((K31*L31)+(O31*P31)+(S31*T31)+(X31*(Y31+Z31))+(AC31*(AD31+AE31))+(AH31*(AI31+AJ31))+(AM31*(AN31+AO31)))/60*IF(X31='Input|Setup'!$B$25,VLOOKUP(V31,bus_hours,8,0),VLOOKUP(V31,after_hours,8,0)) -> 0 | AV31: =+'Input|Indirect Cost Rates'!$D$25 -> 0.4372538646 | AW31: =+'Input|Indirect Cost Rates'!$D$26 -> 0.1481681034 | AX31: =+'Input|Indirect Cost Rates'!$D$37 -> 0 | AY31: =+'Input|Indirect Cost Rates'!$D$46 -> 0 | AZ31: 0 | BA31: 0 | BB31: 0 | BC31: 0 | BE31: 0
A32: 22 | B32: TDNSPBU | C32: Temporary de-energisation and re-energisation of supply to allow customer or contractor to work close - the service may be physically dismantled or disconnected (e.g. overhead service dropped). This services includes switching if required. - Dismantling Single Phase | D32: Business hours | E32: Temporary disconnections and reconnections (which may involve a line drop) | F32: Connection application and management services | G32: No CT | H32: 0 | U32: 0 | V32: Technical Service Person | W32: Business hours | X32: 1 | Y32: 31.5 | Z32: 120 | AA32: Technical Service Person | AB32: Business hours | AC32: 1 | AD32: 31.5 | AE32: 120 | AI32: 0 | AJ32: 0 | AP32: 0 | AQ32: 0 | AS32: =((K32*L32)+(O32*P32)+(S32*T32)+(X32*(Y32+Z32))+(AC32*(AD32+AE32))+(AH32*(AI32+AJ32))+(AM32*(AN32+AO32)))/60*IF(W32='Input|Setup'!$B$25,VLOOKUP(V32,bus_hours,7,0),VLOOKUP(V32,after_hours,7,0)) -> 103.120192 | AT32: =((K32*L32)+(O32*P32)+(S32*T32)+(X32*(Y32+Z32))+(AC32*(AD32+AE32))+(AH32*(AI32+AJ32))+(AM32*(AN32+AO32)))/60*IF(X32='Input|Setup'!$B$25,VLOOKUP(V32,bus_hours,8,0),VLOOKUP(V32,after_hours,8,0)) -> 0 | AV32: =+'Input|Indirect Cost Rates'!$D$25 -> 0.4372538646 | AW32: =+'Input|Indirect Cost Rates'!$D$26 -> 0.1481681034 | AX32: =+'Input|Indirect Cost Rates'!$D$37 -> 0 | AY32: =+'Input|Indirect Cost Rates'!$D$46 -> 0 | AZ32: 0 | BA32: 0 | BB32: 0 | BC32: 0 | BE32: 0
A33: 23 | B33: TDNMPBU | C33: Temporary de-energisation and re-energisation of supply to allow customer or contractor to work close - the service may be physically dismantled or disconnected (e.g. overhead service dropped). This services includes switching if required. - Dismantling Multi Phase | D33: Business hours | E33: Temporary disconnections and reconnections (which may involve a line drop) | F33: Connection application and management services | G33: No CT | H33: 0 | U33: 0 | V33: Technical Service Person | W33: Business hours | X33: 1 | Y33: 31.5 | Z33: 150 | AA33: Technical Service Person | AB33: Business hours | AC33: 1 | AD33: 31.5 | AE33: 150 | AI33: 0 | AJ33: 0 | AP33: 0 | AQ33: 0 | AS33: =((K33*L33)+(O33*P33)+(S33*T33)+(X33*(Y33+Z33))+(AC33*(AD33+AE33))+(AH33*(AI33+AJ33))+(AM33*(AN33+AO33)))/60*IF(W33='Input|Setup'!$B$25,VLOOKUP(V33,bus_hours,7,0),VLOOKUP(V33,after_hours,7,0)) -> 123.540032 | AT33: =((K33*L33)+(O33*P33)+(S33*T33)+(X33*(Y33+Z33))+(AC33*(AD33+AE33))+(AH33*(AI33+AJ33))+(AM33*(AN33+AO33)))/60*IF(X33='Input|Setup'!$B$25,VLOOKUP(V33,bus_hours,8,0),VLOOKUP(V33,after_hours,8,0)) -> 0 | AV33: =+'Input|Indirect Cost Rates'!$D$25 -> 0.4372538646 | AW33: =+'Input|Indirect Cost Rates'!$D$26 -> 0.1481681034 | AX33: =+'Input|Indirect Cost Rates'!$D$37 -> 0 | AY33: =+'Input|Indirect Cost Rates'!$D$46 -> 0 | AZ33: 0 | BA33: 0 | BB33: 0 | BC33: 0 | BE33: 0
A34: 24 | B34: TDNSPTCBU | C34: Temporary de-energisation and re-energisation of supply to allow customer or contractor to work close - the service may be physically dismantled or disconnected (e.g. overhead service dropped). This services includes switching if required. - Dismantling Single Phase | D34: Business hours | E34: Temporary disconnections and reconnections (which may involve a line drop) | F34: Connection application and management services | G34: Traffic Control | H34: 0 | U34: 0 | V34: Technical Service Person | W34: Business hours | X34: 1 | Y34: 31.5 | Z34: 120 | AA34: Technical Service Person | AB34: Business hours | AC34: 1 | AD34: 31.5 | AE34: 120 | AI34: 0 | AJ34: 0 | AP34: 0 | AQ34: 0 | AS34: =((K34*L34)+(O34*P34)+(S34*T34)+(X34*(Y34+Z34))+(AC34*(AD34+AE34))+(AH34*(AI34+AJ34))+(AM34*(AN34+AO34)))/60*IF(W34='Input|Setup'!$B$25,VLOOKUP(V34,bus_hours,7,0),VLOOKUP(V34,after_hours,7,0)) -> 103.120192 | AT34: =((K34*L34)+(O34*P34)+(S34*T34)+(X34*(Y34+Z34))+(AC34*(AD34+AE34))+(AH34*(AI34+AJ34))+(AM34*(AN34+AO34)))/60*IF(X34='Input|Setup'!$B$25,VLOOKUP(V34,bus_hours,8,0),VLOOKUP(V34,after_hours,8,0)) -> 0 | AV34: =+'Input|Indirect Cost Rates'!$D$25 -> 0.4372538646 | AW34: =+'Input|Indirect Cost Rates'!$D$26 -> 0.1481681034 | AX34: =+'Input|Indirect Cost Rates'!$D$37 -> 0 | AY34: =+'Input|Indirect Cost Rates'!$D$46 -> 0 | AZ34: 0 | BA34: 0 | BB34: 0 | BC34: 0 | BD34: Traffic control costs | BE34: 0
A35: 25 | B35: TDNMPTCBU | C35: Temporary de-energisation and re-energisation of supply to allow customer or contractor to work close - the service may be physically dismantled or disconnected (e.g. overhead service dropped). This services includes switching if required. - Dismantling Multi Phase | D35: Business hours | E35: Temporary disconnections and reconnections (which may involve a line drop) | F35: Connection application and management services | G35: Traffic Control | H35: 0 | U35: 0 | V35: Technical Service Person | W35: Business hours | X35: 1 | Y35: 31.5 | Z35: 150 | AA35: Technical Service Person | AB35: Business hours | AC35: 1 | AD35: 31.5 | AE35: 150 | AI35: 0 | AJ35: 0 | AP35: 0 | AQ35: 0 | AS35: =((K35*L35)+(O35*P35)+(S35*T35)+(X35*(Y35+Z35))+(AC35*(AD35+AE35))+(AH35*(AI35+AJ35))+(AM35*(AN35+AO35)))/60*IF(W35='Input|Setup'!$B$25,VLOOKUP(V35,bus_hours,7,0),VLOOKUP(V35,after_hours,7,0)) -> 123.540032 | AT35: =((K35*L35)+(O35*P35)+(S35*T35)+(X35*(Y35+Z35))+(AC35*(AD35+AE35))+(AH35*(AI35+AJ35))+(AM35*(AN35+AO35)))/60*IF(X35='Input|Setup'!$B$25,VLOOKUP(V35,bus_hours,8,0),VLOOKUP(V35,after_hours,8,0)) -> 0 | AV35: =+'Input|Indirect Cost Rates'!$D$25 -> 0.4372538646 | AW35: =+'Input|Indirect Cost Rates'!$D$26 -> 0.1481681034 | AX35: =+'Input|Indirect Cost Rates'!$D$37 -> 0 | AY35: =+'Input|Indirect Cost Rates'!$D$46 -> 0 | AZ35: 0 | BA35: 0 | BB35: 0 | BC35: 0 | BD35: Traffic control costs | BE35: 0
A36: 26 | B36: TDNSPAU | C36: Temporary de-energisation and re-energisation of supply to allow customer or contractor to work close - the service may be physically dismantled or disconnected (e.g. overhead service dropped). This services includes switching if required. - Dismantling Single Phase | D36: After hours | E36: Temporary disconnections and reconnections (which may involve a line drop) | F36: Connection application and management services | G36: No CT | H36: 0 | U36: 0 | V36: Technical Service Person | W36: After hours | X36: 1 | Y36: 31.5 | Z36: 120 | AA36: Technical Service Person | AB36: After hours | AC36: 1 | AD36: 31.5 | AE36: 120 | AI36: 0 | AJ36: 0 | AP36: 0 | AQ36: 0 | AS36: =((K36*L36)+(O36*P36)+(S36*T36)+(X36*(Y36+Z36))+(AC36*(AD36+AE36))+(AH36*(AI36+AJ36))+(AM36*(AN36+AO36)))/60*IF(W36='Input|Setup'!$B$25,VLOOKUP(V36,bus_hours,7,0),VLOOKUP(V36,after_hours,7,0)) -> 117.2714363 | AT36: =((K36*L36)+(O36*P36)+(S36*T36)+(X36*(Y36+Z36))+(AC36*(AD36+AE36))+(AH36*(AI36+AJ36))+(AM36*(AN36+AO36)))/60*IF(X36='Input|Setup'!$B$25,VLOOKUP(V36,bus_hours,8,0),VLOOKUP(V36,after_hours,8,0)) -> 0 | AV36: =+'Input|Indirect Cost Rates'!$D$25 -> 0.4372538646 | AW36: =+'Input|Indirect Cost Rates'!$D$26 -> 0.1481681034 | AX36: =+'Input|Indirect Cost Rates'!$D$37 -> 0 | AY36: =+'Input|Indirect Cost Rates'!$D$46 -> 0 | AZ36: 0 | BA36: 0 | BB36: 0 | BC36: 0 | BE36: 0
A37: 27 | B37: TDNMPAU | C37: Temporary de-energisation and re-energisation of supply to allow customer or contractor to work close - the service may be physically dismantled or disconnected (e.g. overhead service dropped). This services includes switching if required. - Dismantling Multi Phase | D37: After hours | E37: Temporary disconnections and reconnections (which may involve a line drop) | F37: Connection application and management services | G37: No CT | H37: 0 | U37: 0 | V37: Technical Service Person | W37: After hours | X37: 1 | Y37: 31.5 | Z37: 150 | AA37: Technical Service Person | AB37: After hours | AC37: 1 | AD37: 31.5 | AE37: 150 | AI37: 0 | AJ37: 0 | AP37: 0 | AQ37: 0 | AS37: =((K37*L37)+(O37*P37)+(S37*T37)+(X37*(Y37+Z37))+(AC37*(AD37+AE37))+(AH37*(AI37+AJ37))+(AM37*(AN37+AO37)))/60*IF(W37='Input|Setup'!$B$25,VLOOKUP(V37,bus_hours,7,0),VLOOKUP(V37,after_hours,7,0)) -> 140.4935029 | AT37: =((K37*L37)+(O37*P37)+(S37*T37)+(X37*(Y37+Z37))+(AC37*(AD37+AE37))+(AH37*(AI37+AJ37))+(AM37*(AN37+AO37)))/60*IF(X37='Input|Setup'!$B$25,VLOOKUP(V37,bus_hours,8,0),VLOOKUP(V37,after_hours,8,0)) -> 0 | AV37: =+'Input|Indirect Cost Rates'!$D$25 -> 0.4372538646 | AW37: =+'Input|Indirect Cost Rates'!$D$26 -> 0.1481681034 | AX37: =+'Input|Indirect Cost Rates'!$D$37 -> 0 | AY37: =+'Input|Indirect Cost Rates'!$D$46 -> 0 | AZ37: 0 | BA37: 0 | BB37: 0 | BC37: 0 | BE37: 0
A38: 28 | B38: TDNSPTCAU | C38: Temporary de-energisation and re-energisation of supply to allow customer or contractor to work close - the service may be physically dismantled or disconnected (e.g. overhead service dropped). This services includes switching if required. - Dismantling Single Phase | D38: After hours | E38: Temporary disconnections and reconnections (which may involve a line drop) | F38: Connection application and management services | G38: Traffic Control No CT | H38: 0 | U38: 0 | V38: Technical Service Person | W38: After hours | X38: 1 | Y38: 31.5 | Z38: 120 | AA38: Technical Service Person | AB38: After hours | AC38: 1 | AD38: 31.5 | AE38: 120 | AI38: 0 | AJ38: 0 | AP38: 0 | AQ38: 0 | AS38: =((K38*L38)+(O38*P38)+(S38*T38)+(X38*(Y38+Z38))+(AC38*(AD38+AE38))+(AH38*(AI38+AJ38))+(AM38*(AN38+AO38)))/60*IF(W38='Input|Setup'!$B$25,VLOOKUP(V38,bus_hours,7,0),VLOOKUP(V38,after_hours,7,0)) -> 117.2714363 | AT38: =((K38*L38)+(O38*P38)+(S38*T38)+(X38*(Y38+Z38))+(AC38*(AD38+AE38))+(AH38*(AI38+AJ38))+(AM38*(AN38+AO38)))/60*IF(X38='Input|Setup'!$B$25,VLOOKUP(V38,bus_hours,8,0),VLOOKUP(V38,after_hours,8,0)) -> 0 | AV38: =+'Input|Indirect Cost Rates'!$D$25 -> 0.4372538646 | AW38: =+'Input|Indirect Cost Rates'!$D$26 -> 0.1481681034 | AX38: =+'Input|Indirect Cost Rates'!$D$37 -> 0 | AY38: =+'Input|Indirect Cost Rates'!$D$46 -> 0 | AZ38: 0 | BA38: 0 | BB38: 0 | BC38: 0 | BD38: Traffic control costs | BE38: 0
A39: 29 | B39: TDNMPTCAU | C39: Temporary de-energisation and re-energisation of supply to allow customer or contractor to work close - the service may be physically dismantled or disconnected (e.g. overhead service dropped). This services includes switching if required. - Dismantling Multi Phase | D39: After hours | E39: Temporary disconnections and reconnections (which may involve a line drop) | F39: Connection application and management services | G39: Traffic Control | H39: 0 | U39: 0 | V39: Technical Service Person | W39: After hours | X39: 1 | Y39: 31.5 | Z39: 150 | AA39: Technical Service Person | AB39: After hours | AC39: 1 | AD39: 31.5 | AE39: 150 | AI39: 0 | AJ39: 0 | AP39: 0 | AQ39: 0 | AS39: =((K39*L39)+(O39*P39)+(S39*T39)+(X39*(Y39+Z39))+(AC39*(AD39+AE39))+(AH39*(AI39+AJ39))+(AM39*(AN39+AO39)))/60*IF(W39='Input|Setup'!$B$25,VLOOKUP(V39,bus_hours,7,0),VLOOKUP(V39,after_hours,7,0)) -> 140.4935029 | AT39: =((K39*L39)+(O39*P39)+(S39*T39)+(X39*(Y39+Z39))+(AC39*(AD39+AE39))+(AH39*(AI39+AJ39))+(AM39*(AN39+AO39)))/60*IF(X39='Input|Setup'!$B$25,VLOOKUP(V39,bus_hours,8,0),VLOOKUP(V39,after_hours,8,0)) -> 0 | AV39: =+'Input|Indirect Cost Rates'!$D$25 -> 0.4372538646 | AW39: =+'Input|Indirect Cost Rates'!$D$26 -> 0.1481681034 | AX39: =+'Input|Indirect Cost Rates'!$D$37 -> 0 | AY39: =+'Input|Indirect Cost Rates'!$D$46 -> 0 | AZ39: 0 | BA39: 0 | BB39: 0 | BC39: 0 | BD39: Traffic control costs | BE39: 0
A40: 30 | B40: NCT1MBU | C40: Customer requested temporary connection (short term) and the recovery of the temporary builders supply. Excludes work on metering equipment. | D40: Business hours | E40: Temporary connection | F40: Connection application and management services | G40: No CT | H40: 0 | U40: 0 | V40: Technical Service Person | W40: Business hours | X40: 1 | Y40: 31.5 | Z40: 150 | AA40: Technical Service Person | AB40: Business hours | AC40: 1 | AD40: 31.5 | AE40: 150 | AI40: 0 | AJ40: 0 | AP40: 0 | AQ40: 0 | AS40: =((K40*L40)+(O40*P40)+(S40*T40)+(X40*(Y40+Z40))+(AC40*(AD40+AE40))+(AH40*(AI40+AJ40))+(AM40*(AN40+AO40)))/60*IF(W40='Input|Setup'!$B$25,VLOOKUP(V40,bus_hours,7,0),VLOOKUP(V40,after_hours,7,0)) -> 123.540032 | AT40: =((K40*L40)+(O40*P40)+(S40*T40)+(X40*(Y40+Z40))+(AC40*(AD40+AE40))+(AH40*(AI40+AJ40))+(AM40*(AN40+AO40)))/60*IF(X40='Input|Setup'!$B$25,VLOOKUP(V40,bus_hours,8,0),VLOOKUP(V40,after_hours,8,0)) -> 0 | AV40: =+'Input|Indirect Cost Rates'!$D$25 -> 0.4372538646 | AW40: =+'Input|Indirect Cost Rates'!$D$26 -> 0.1481681034 | AX40: =+'Input|Indirect Cost Rates'!$D$37 -> 0 | AY40: =+'Input|Indirect Cost Rates'!$D$46 -> 0 | AZ40: 0 | BA40: 0 | BB40: 0 | BC40: 0 | BE40: 0
A41: 31 | B41: NCT1MAU | C41: Customer requested temporary connection (short term) and the recovery of the temporary builders supply. Excludes work on metering equipment. | D41: After hours | E41: Temporary connection | F41: Connection application and management services | G41: No CT | H41: 0 | U41: 0 | V41: Technical Service Person | W41: After hours | X41: 1 | Y41: 31.5 | Z41: 150 | AA41: Technical Service Person | AB41: After hours | AC41: 1 | AD41: 31.5 | AE41: 150 | AI41: 0 | AJ41: 0 | AP41: 0 | AQ41: 0 | AS41: =((K41*L41)+(O41*P41)+(S41*T41)+(X41*(Y41+Z41))+(AC41*(AD41+AE41))+(AH41*(AI41+AJ41))+(AM41*(AN41+AO41)))/60*IF(W41='Input|Setup'!$B$25,VLOOKUP(V41,bus_hours,7,0),VLOOKUP(V41,after_hours,7,0)) -> 140.4935029 | AT41: =((K41*L41)+(O41*P41)+(S41*T41)+(X41*(Y41+Z41))+(AC41*(AD41+AE41))+(AH41*(AI41+AJ41))+(AM41*(AN41+AO41)))/60*IF(X41='Input|Setup'!$B$25,VLOOKUP(V41,bus_hours,8,0),VLOOKUP(V41,after_hours,8,0)) -> 0 | AV41: =+'Input|Indirect Cost Rates'!$D$25 -> 0.4372538646 | AW41: =+'Input|Indirect Cost Rates'!$D$26 -> 0.1481681034 | AX41: =+'Input|Indirect Cost Rates'!$D$37 -> 0 | AY41: =+'Input|Indirect Cost Rates'!$D$46 -> 0 | AZ41: 0 | BA41: 0 | BB41: 0 | BC41: 0 | BE41: 0
